DATE OF TRANSACTION,LA DEPARTMENT INCURRING SPEND,BENEFICIARY,GROSS AMOUNT,SUMMARY OF PURPOSEOF SPEND,MERCHANT CATEGORY
27/06/17,SE CARE - LAC,SURREY CC CARD PAY,-31.00,CHILDREN ACT SEC 17 PAYMENTS,COMPUTER NETWORK/INFORMATION SERVICES
27/06/17,PE/CDT MAINTENANCE OVERHEADS,WWW.ARCO.CO.UK,39.67,"CLOTHING, UNIFORM AND LAUNDRY",INDUSTRIAL SUPPLIES NOT ELSEWHERE CLASSIFIED
27/06/17,KARIBU COMMUNITY HOME,CRUK LOT,33.95,"CLOTHING, UNIFORM AND LAUNDRY","ORGANIZATIONS, CHARITABLE AND SOCIAL SERVICES"
27/06/17,PE/CDT MAINTENANCE OVERHEADS,ARCO LTD,48.34,"CLOTHING, UNIFORM AND LAUNDRY",INDUSTRIAL SUPPLIES NOT ELSEWHERE CLASSIFIED
27/06/17,RUTH HOUSE,PRIMARK,39.00,"CLOTHING, UNIFORM AND LAUNDRY",FAMILY CLOTHING STORES
27/06/17,TS SERVICE MANAGEMENT,VETS NOW REFERRALS,225.06,EQUIPMENT,VETERINARY SERVICES
27/06/17,TARGETED INTERVENTION,PRIMARK STORES 655,14.00,EDUC VISITS/HOLS/CAMPS/TOYS,FAMILY CLOTHING STORES
27/06/17,SW CARE - LAC,WWW.BRISTOL-CITY.GOV.U,-34.50,LEGAL EXPENSES,"GIFT, CARD, NOVELTY AND SOUVENIR SHOPS"
28/06/17,TRAINING AND DEVELOPMENT,QUEENS COURT HOTEL,85.00,SUBSISTENCE AND CONFERENCE EXPENSES,"LODGING-HOTELS,MOTELS,RESORTS-NOT CLASSIFIED"
28/06/17,TRAINING AND DEVELOPMENT,QUEENS COURT HOTEL,85.00,SUBSISTENCE AND CONFERENCE EXPENSES,"LODGING-HOTELS,MOTELS,RESORTS-NOT CLASSIFIED"
28/06/17,FAIRCROFT COMMUNITY HOME,WWW.TICKETS.REALLYUSEF,150.50,EDUC VISITS/HOLS/CAMPS/TOYS,"THEATRICAL PRODUCERS(EXCL MOTION PIX),TICKET AGNCY"
28/06/17,PSSS VISUALLY IMPAIRED,WWW.ROMPALTD.COM,48.49,EQUIPMENT,MISCELLANEOUS AND SPECIALTY RETAIL STORES
28/06/17,SW CARE - CP & COURT LAC,HALFORDS ON LINE,45.00,EQUIPMENT,BICYCLE SHOPS-SALES AND SERVICE
28/06/17,NW CARE - CP & COURT LAC,HALFORDS ON LINE,45.00,EQUIPMENT,BICYCLE SHOPS-SALES AND SERVICE
28/06/17,SE CARE - CP & COURT LAC,HALFORDS ON LINE,45.00,EQUIPMENT,BICYCLE SHOPS-SALES AND SERVICE
28/06/17,NE CARE - CP & COURT LAC,HALFORDS ON LINE,45.00,EQUIPMENT,BICYCLE SHOPS-SALES AND SERVICE
28/06/17,CHEYNE WALK COMMUNITY HOME,SKY BUSINESS,135.60,EQUIPMENT,"CABLE, SATELLITE, OTHER PAY TELEVISION, RADIO SVCS"
28/06/17,HR - APPRENTICESHIPS,GRADUATIONATTIRELTD,-162.50,"CLOTHING, UNIFORM AND LAUNDRY",CHILDREN'S AND INFANT'S WEAR STORES
28/06/17,LIBERTAS COMMUNITY HOME,WELCOME BREAK BK,11.08,PURCHASE OF FOOD (RAW MATERIALS),"MISC FOOD STORE-CONVENIENCE,MRKT,SPLTY,VENDNG MACS"
28/06/17,FAMILIES WAVERLEY,CO-OP GROUP 500340,9.71,PURCHASE OF FOOD (RAW MATERIALS),"GROCERY STORES, SUPERMARKETS"
28/06/17,FAMILIES SURREY HEATH,TESCO STORES 2334,4.99,PURCHASE OF FOOD (RAW MATERIALS),"GROCERY STORES, SUPERMARKETS"
28/06/17,PROJECT DELIVERY,AMAZON UK MARKETPLACE,5.99,COMPUTER HARDWARE,BOOK STORES
28/06/17,SOLD CURRICULUM PROGRAMME DELIVERY,ALDI,39.99,EQUIPMENT,"GROCERY STORES, SUPERMARKETS"
28/06/17,STANWELL YOUTH CLUB,POUNDLAND LTD 1287,2.00,EQUIPMENT,DISCOUNT STORES
28/06/17,LIBERTAS COMMUNITY HOME,SERENATA FLOWERS,29.98,EDUC VISITS/HOLS/CAMPS/TOYS,FLORISTS
28/06/17,TRANSPORT,AMAZON.CO.UK,4.45,STATIONERY,MISCELLANEOUS AND SPECIALTY RETAIL STORES
28/06/17,STANWELL YOUTH CLUB,WILKO STAINES,3.00,EQUIPMENT,HOUSEHOLD APPLIANCE STORES
28/06/17,STANWELL YOUTH CLUB,HOBBYCRAFT,9.70,EQUIPMENT,"ARTIST SUPPLY STORES, CRAFT SHOPS"
28/06/17,STANWELL YOUTH CLUB,WILKO STAINES,7.60,EQUIPMENT,HOUSEHOLD APPLIANCE STORES
28/06/17,WOODLANDS COMMUNITY HOME,TIMPSON LTD,14.85,EQUIPMENT,"HAT CLEANING SHOPS, SHOE REPAIR SHOPS, SHOE SHINE"
28/06/17,ACL CENTRAL EXPENDITURE,GUILDFORD BOROUGH CNCL,345.49,PUBLICITY,GOVERNMENT SERVICES-NOT ELSEWHERE CLASSIFIED
28/06/17,ARUNDEL,TESCO STORES 5999,130.67,REFRESHMENT COSTS,"GROCERY STORES, SUPERMARKETS"
28/06/17,LIBERTAS COMMUNITY HOME,SHELL GRISTHWAITE,4.30,PURCHASE OF FOOD (RAW MATERIALS),SERVICE STATIONS WITH OR WITHOUT ANCILLARY SERVICE
28/06/17,FAMILIES SURREY HEATH,WWW.STAPLES.CO.UK,18.47,CURRICULUM CONSUMABLES,"OFFICE, SCHOOL SUPPLY, AND STATIONERY STORES"
28/06/17,COUNTY HALL,BURGESS GLASS,39.50,DAY TO DAY MAINTENANCE,BUSINESS SERVICES-NOT ELSEWHERE CLASSIFIED
28/06/17,FAMILIES SURREY HEATH,WWW.STAPLES.CO.UK,56.48,CURRICULUM CONSUMABLES,"OFFICE, SCHOOL SUPPLY, AND STATIONERY STORES"
28/06/17,CYWS COMMISSIONING,BIDDLES OF GUILDFORD,13.99,CURRICULUM CONSUMABLES,"OFFICE, SCHOOL SUPPLY, AND STATIONERY STORES"
28/06/17,FAMILIES WAVERLEY,LITTLE MANOR SERVI,1.49,EQUIPMENT,SERVICE STATIONS WITH OR WITHOUT ANCILLARY SERVICE
28/06/17,CS BUSINESS SUPPORT WEST,AMAZON UK MARKETPLACE,16.98,EQUIPMENT,BOOK STORES
28/06/17,TRAINING AND DEVELOPMENT,TRAVELODGE,247.00,SUBSISTENCE AND CONFERENCE EXPENSES,TRAVELODGE
28/06/17,FAMILIES GUILDFORD,TESCO STORES 2025,11.90,PURCHASE OF FOOD (RAW MATERIALS),"GROCERY STORES, SUPERMARKETS"
28/06/17,CYWS COMMISSIONING,MAPLIN GUILDFORD GU1,11.99,CURRICULUM EQUIPMENT AND FURNITURE,TELECOMMUNICATION EQUIPMENT INCL TELEPHONE SALES
28/06/17,LIBERTAS COMMUNITY HOME,GUILDFORD LOCK & SAFE,24.76,EQUIPMENT,HARDWARE EQUIPMENT AND SUPPLIES
28/06/17,CS BUSINESS SUPPORT WEST,WWW.CHAMBERS-GROUP.CO.,246.00,TRADE REFUSE,"EQUIPMENT RENTAL&LEASING SVS, FURNTURE/TOOL RENTAL"
28/06/17,SOLD CATERING,ASDA SUPERSTORE,22.87,PURCHASE OF FOOD (RAW MATERIALS),"GROCERY STORES, SUPERMARKETS"
28/06/17,FAMILIES SURREY HEATH,B & Q 1191,111.78,PURCHASE OF BUILDING MATERIALS,"BUILDING MATERIALS, LUMBER STORES"
28/06/17,LOCAL DELIVERY GROUP,AMAZON UK RETAIL AMAZO,26.88,EQUIPMENT,MISCELLANEOUS AND SPECIALTY RETAIL STORES
28/06/17,FAMILIES WOKING,BOOKER LIMITED BYFLEET,54.81,ITEMS PURCHASED FOR RE-SALE,CATERERS
28/06/17,FAMILIES WOKING,BOOKER LIMITED BYFLEET,221.78,ITEMS PURCHASED FOR RE-SALE,CATERERS
28/06/17,LOWER MOLE COUNTRYSIDE PROJECT,SAINSBURYS 0683,123.70,REFRESHMENT COSTS,"GROCERY STORES, SUPERMARKETS"
28/06/17,FAMILIES REIGATE AND BANSTREAD,LIDL UK,2.68,PURCHASE OF FOOD (RAW MATERIALS),"GROCERY STORES, SUPERMARKETS"
28/06/17,STAFF OFFICE,DARTINGTON CRYSTAL TOR,207.17,DESCRIPTION &AWARD LONG SERVICE,CRYSTAL AND GLASSWARE STORES
28/06/17,EARLY HELP HUB SOUTH WEST,AMAZON UK MARKETPLACE,21.96,TELECOMMUNICATION CHARGES,BOOK STORES
28/06/17,LIBERTAS COMMUNITY HOME,DUNELM ONLINE ORDER,51.95,EQUIPMENT,"DRAPERY, UPOLSTERY, AND WINDOW COVERINGS STORES"
28/06/17,HOPE SERVICE - WEST,KFC-PEACOCKS CENTRE,6.86,REFRESHMENT COSTS,FAST FOOD RESTAURANTS
28/06/17,PROPERTY OPERATIONS TEAM,TRAVIS PERKINS,18.56,PURCHASE OF BUILDING MATERIALS,"BUILDING MATERIALS, LUMBER STORES"
28/06/17,EARLY HELP HUB SOUTH WEST,AMAZON UK RETAIL AMAZO,21.94,TELECOMMUNICATION CHARGES,MISCELLANEOUS AND SPECIALTY RETAIL STORES
28/06/17,RUTH HOUSE,CEX (WOKING),146.00,EDUC VISITS/HOLS/CAMPS/TOYS,ELECTRONIC SALES
28/06/17,SCHOOL APPEALS,AMAZON UK MARKETPLACE,197.31,STATIONERY,BOOK STORES
28/06/17,YSS YOUTH CENTRE IMPROVEMENTS,AMAZON UK MARKETPLACE,8.98,DAY TO DAY MAINTENANCE,BOOK STORES
28/06/17,FAMILIES WAVERLEY,HOMEBASE LTD,6.99,EQUIPMENT,"BUILDING MATERIALS, LUMBER STORES"
28/06/17,HOPE SERVICE - WEST,THE BIG APPLE,15.80,EDUC VISITS/HOLS/CAMPS/TOYS,BOWLING ALLEYS
28/06/17,TARGETED INTERVENTION,STARBUCKS,9.05,EDUC VISITS/HOLS/CAMPS/TOYS,"EATING PLACES, RESTAURANTS"
28/06/17,IMT CRITICAL ENVIRONMENTS,MILK@MORE ONLINE,44.55,REFRESHMENT COSTS,"MISC FOOD STORE-CONVENIENCE,MRKT,SPLTY,VENDNG MACS"
28/06/17,HILLSIDE,SAINSBURYS 0675,81.85,PURCHASE OF FOOD (RAW MATERIALS),"GROCERY STORES, SUPERMARKETS"
28/06/17,REIGATE AND BANSTEAD LOCALITY TEAM,AMAZON UK MARKETPLACE,36.49,EQUIPMENT,BOOK STORES
28/06/17,EXTENDED HOPE,TIMPSON LTD,43.20,FIXTURES AND FITTINGS,"HAT CLEANING SHOPS, SHOE REPAIR SHOPS, SHOE SHINE"
28/06/17,NW SECTION 17 CARE,TRAVELODGE,229.50,CHILDREN ACT SEC 17 PAYMENTS,TRAVELODGE
28/06/17,EARLY HELP HUB SOUTH WEST,AMAZON UK MARKETPLACE,21.96,TELECOMMUNICATION CHARGES,BOOK STORES
28/06/17,COMMUNICATIONS TEAM,ITUNES.COM/BILL,17.98,SUBSCRIPTIONS,RECORD SHOPS
28/06/17,SE CARE - CP & COURT LAC,GRO HM PASSPORT OFFICE,23.40,CHILDREN ACT SEC 17 PAYMENTS,GOVERNMENT SERVICES-NOT ELSEWHERE CLASSIFIED
28/06/17,SE CARE - CP & COURT LAC,GRO HM PASSPORT OFFICE,23.40,CHILDREN ACT SEC 17 PAYMENTS,GOVERNMENT SERVICES-NOT ELSEWHERE CLASSIFIED
28/06/17,COMMUNICATIONS TEAM,WPCHRG.COM WPCHRG.COM,30.00,SUBSCRIPTIONS,COMPUTER NETWORK/INFORMATION SERVICES
28/06/17,COMMUNICATIONS - SURREY MATTERS,SPARKOL,21.60,SUBSCRIPTIONS,COMPUTER SOFTWARE STORES
28/06/17,EARLY HELP HUB SOUTH WEST,AMAZON EU,21.94,TELECOMMUNICATION CHARGES,DIRECT MARKETING-OTHER DIRECT MARKETERS/NOT ELSEW.
28/06/17,FAMILIES SPELTHORNE,W M MORRISONS,1.71,REFRESHMENT COSTS,"GROCERY STORES, SUPERMARKETS"
28/06/17,LANGDOWN STAFF COST,EASYJET,701.78,3RD PARTY PAYMENTS PRIVATE INDIV,EASYJET
28/06/17,HOPE SERVICE - WEST,AMAZON UK MARKETPLACE,28.98,PURCHASE OF FOOD (RAW MATERIALS),BOOK STORES
28/06/17,HOPE SERVICE - WEST,SAINSBURYS SACAT(4409),1.10,PURCHASE OF FOOD (RAW MATERIALS),"GROCERY STORES, SUPERMARKETS"
28/06/17,GODALMING YC,M AND M DIRECT LTD,46.47,"CLOTHING, UNIFORM AND LAUNDRY",SPORTING GOODS STORES
28/06/17,BURBANK COMMUNITY HOME,ASDA STORES 4823,2.00,REFRESHMENT COSTS,"GROCERY STORES, SUPERMARKETS"
28/06/17,CAMHS SOCIAL WORKERS,MIXAM UK LTD,103.63,PUBLICITY,MISCELLANEOUS PUBLISHING AND PRINTING
28/06/17,CYWS COMMISSIONING,MIXAM UK LTD,352.00,PUBLICITY,MISCELLANEOUS PUBLISHING AND PRINTING
28/06/17,ACL CENTRAL EXPENDITURE,TESCO STORE 2160,56.06,REFRESHMENT COSTS,"GROCERY STORES, SUPERMARKETS"
28/06/17,WOODLANDS COMMUNITY HOME,SAINSBURYS TO YOU 0686,151.55,PURCHASE OF FOOD (RAW MATERIALS),"GROCERY STORES, SUPERMARKETS"
28/06/17,WOODLANDS COMMUNITY HOME,SAINSBURYS TO YOU 0686,18.90,PURCHASE OF FOOD (RAW MATERIALS),"GROCERY STORES, SUPERMARKETS"
28/06/17,WOODLANDS COMMUNITY HOME,SAINSBURYS TO YOU 0686,7.00,CLEANING MATERIALS,"GROCERY STORES, SUPERMARKETS"
28/06/17,BURBANK COMMUNITY HOME,SAINSBURYS TO YOU 0686,310.12,PURCHASE OF FOOD (RAW MATERIALS),"GROCERY STORES, SUPERMARKETS"
28/06/17,CHEYNE WALK COMMUNITY HOME,TESCO-STORES 6647,196.58,PURCHASE OF FOOD (RAW MATERIALS),"GROCERY STORES, SUPERMARKETS"
28/06/17,INNOVATION FUND,AMAZON EU,727.51,EQUIPMENT,DIRECT MARKETING-OTHER DIRECT MARKETERS/NOT ELSEW.
28/06/17,IMT CRITICAL ENVIRONMENTS,AMAZON EU,7.87,REFRESHMENT COSTS,DIRECT MARKETING-OTHER DIRECT MARKETERS/NOT ELSEW.
28/06/17,ACCOMMODATION CLEANING AND REFURBISHMENT,AMAZON PRIME,-7.99,CLEANING AND DOMESTIC SUPPLIES,DIRECT MARKETING-CONTINUITY/SUBSCRIPTION MERCHANTS
29/06/17,SE CP & COURT TEAM,PREMIER INN,165.98,CHILDREN ACT SEC 17 PAYMENTS,PREMIER INN
29/06/17,NW CARE - LAC,PREMIER INN,94.00,CHILDREN ACT SEC 17 PAYMENTS,PREMIER INN
29/06/17,ADOPTION TEAM,AMAZON UK RETAIL AMAZO,18.98,COMPUTER CONSUMABLES,MISCELLANEOUS AND SPECIALTY RETAIL STORES
29/06/17,VIRTUAL SCHOOL FOR LAC PUPIL PREMIUM,AMAZON EU,17.09,BOOKS,DIRECT MARKETING-OTHER DIRECT MARKETERS/NOT ELSEW.
29/06/17,VIRTUAL SCHOOL FOR LAC PUPIL PREMIUM,AMAZON EU,17.10,BOOKS,DIRECT MARKETING-OTHER DIRECT MARKETERS/NOT ELSEW.
29/06/17,VIRTUAL SCHOOL FOR LAC PUPIL PREMIUM,AMAZON EU,44.17,BOOKS,DIRECT MARKETING-OTHER DIRECT MARKETERS/NOT ELSEW.
29/06/17,ASHTEAD YC,AMAZON UK MARKETPLACE,16.18,EQUIPMENT,BOOK STORES
29/06/17,RUNNYMEDE STAFF,TESCO STORES 2017,54.33,PURCHASE OF FOOD (RAW MATERIALS),"GROCERY STORES, SUPERMARKETS"
29/06/17,WOODLANDS COMMUNITY HOME,TOOLSTATION LTD,4.97,DAY TO DAY MAINTENANCE,HARDWARE STORES
29/06/17,WOODLANDS COMMUNITY HOME,WICKES,8.48,DAY TO DAY MAINTENANCE,HOME SUPPLY WAREHOUSE STORES
29/06/17,FAMILIES WOKING,WAITROSE 181,15.40,PURCHASE OF FOOD (RAW MATERIALS),"GROCERY STORES, SUPERMARKETS"
29/06/17,SE ASSESSMENT TEAM,TRAVELODGE,74.25,CHILDREN ACT SEC 17 PAYMENTS,TRAVELODGE
29/06/17,PRISON CAPITATION                       ,AMAZON UK MARKETPLACE,50.32,LIBRARY RESOURCES,BOOK STORES
29/06/17,KARIBU COMMUNITY HOME,PARENTPAY E-COM R,10.00,PURCHASE OF FOOD (RAW MATERIALS),"COLLEGES, UNIV, PRO SCHOOLS, JUNIOR COLLEGES"
29/06/17,KARIBU COMMUNITY HOME,PARENTPAY E-COM R,25.00,PURCHASE OF FOOD (RAW MATERIALS),"COLLEGES, UNIV, PRO SCHOOLS, JUNIOR COLLEGES"
29/06/17,SHEPPERTON YC,BUDGENS SHEPPERTON,4.78,REFRESHMENT COSTS,"MISC FOOD STORE-CONVENIENCE,MRKT,SPLTY,VENDNG MACS"
29/06/17,TRANSPORT,TOOLSTATION LTD,30.03,DAY TO DAY MAINTENANCE,HARDWARE STORES
29/06/17,WOODLANDS COMMUNITY HOME,TESCO STORES 3220,9.05,"CLOTHING, UNIFORM AND LAUNDRY","GROCERY STORES, SUPERMARKETS"
29/06/17,CAMHS SOCIAL WORKERS,MILANO PIZZA,27.00,EDUC VISITS/HOLS/CAMPS/TOYS,FAST FOOD RESTAURANTS
29/06/17,GODALMING YC,SAINSBURYS SACAT 0670,.95,PURCHASE OF FOOD (RAW MATERIALS),"GROCERY STORES, SUPERMARKETS"
29/06/17,GODALMING YC,SAINSBURYS SACAT 0670,3.75,PURCHASE OF FOOD (RAW MATERIALS),"GROCERY STORES, SUPERMARKETS"
29/06/17,ACL CENTRAL EXPENDITURE,ROYAL MAIL DOOR TO DOO,90.00,PUBLICITY,POSTAL SERVICES-GOVERNMENT ONLY
29/06/17,SOLD CATERING,SAINSBURYS SACAT 2053,11.50,EQUIPMENT,"GROCERY STORES, SUPERMARKETS"
29/06/17,TARGETED INTERVENTION,TESCO STORE 2047,28.92,EDUC VISITS/HOLS/CAMPS/TOYS,"GROCERY STORES, SUPERMARKETS"
29/06/17,ARUNDEL,TESCO STORES 5999,61.73,REFRESHMENT COSTS,"GROCERY STORES, SUPERMARKETS"
29/06/17,ARUNDEL,TESCO STORES 5999,26.40,REFRESHMENT COSTS,"GROCERY STORES, SUPERMARKETS"
29/06/17,SOUTH EAST AREA TEAM,YMCA EAST SURREY,24.00,CURRICULUM CONSUMABLES,"CLUBS-CNTRY,MBRSHIP(ATHLET,REC,SPRTS,PRIVATE GOLF"
29/06/17,PROJECTS AND CONTRACTS GROUP,ESSEX COUNTY COUNCIL,250.00,PUBLICITY,GOVERNMENT SERVICES-NOT ELSEWHERE CLASSIFIED
29/06/17,SPLASH PROJECT,THORPE PARK CC,635.88,EDUC VISITS/HOLS/CAMPS/TOYS,"AMUSEMENT PARKS,CARNIVALS,CIRCUS,FORTUNE TELLERS"
29/06/17,HILLSIDE,NEXT RETAIL LTD,40.05,FIXTURES AND FITTINGS,FAMILY CLOTHING STORES
29/06/17,TARGETED INTERVENTION,WOKING COUNCIL PARKING,2.60,MISCELLANEOUS STAFF TRAVEL,AUTOMOBILE PARKING LOTS AND GARAGES
29/06/17,NE CARE - CP & COURT LAC,GRO HM PASSPORT OFFICE,23.40,CHILDREN ACT SEC 17 PAYMENTS,GOVERNMENT SERVICES-NOT ELSEWHERE CLASSIFIED
29/06/17,NE CARE - CP & COURT LAC,GRO HM PASSPORT OFFICE,27.75,CHILDREN ACT SEC 17 PAYMENTS,GOVERNMENT SERVICES-NOT ELSEWHERE CLASSIFIED
29/06/17,IMT PRODUCTION APPLICATIONS TEAM,RACKSPACE EMAIL & APPS,168.81,COMPUTER SERVICES,COMPUTER NETWORK/INFORMATION SERVICES
29/06/17,TARGETED INTERVENTION,BURGER KING,1.99,EDUC VISITS/HOLS/CAMPS/TOYS,"EATING PLACES, RESTAURANTS"
29/06/17,BOOKS - ADULT NON-FICTION               ,AMAZON EU,20.59,LIBRARY RESOURCES,DIRECT MARKETING-OTHER DIRECT MARKETERS/NOT ELSEW.
29/06/17,BURBANK COMMUNITY HOME,WOKING COUNCIL PARKING,3.90,MISCELLANEOUS STAFF TRAVEL,AUTOMOBILE PARKING LOTS AND GARAGES
29/06/17,FAIRCROFT COMMUNITY HOME,POLESDEN LACEY RES,17.10,REFRESHMENT COSTS,"ORGANIZATIONS, CHARITABLE AND SOCIAL SERVICES"
29/06/17,GODALMING YC,AMAZON UK MARKETPLACE,6.54,EQUIPMENT,BOOK STORES
29/06/17,FAMILIES SURREY HEATH,CUTTING EDGE FABRICS,7.98,CURRICULUM CONSUMABLES,"FABRIC, NEEDLEWORK, PIECE GOODS, AND SEWING STORES"
29/06/17,PSSS VISUALLY IMPAIRED,PRIME EMPORIUM LTD,14.94,EQUIPMENT,TENT AND AWNING SHOPS
29/06/17,TARGETED INTERVENTION,TOP GOLF LTD,33.75,EDUC VISITS/HOLS/CAMPS/TOYS,"CLUBS-CNTRY,MBRSHIP(ATHLET,REC,SPRTS,PRIVATE GOLF"
29/06/17,BURBANK COMMUNITY HOME,PAPERCHASE,21.65,3RD PARTY PAYMENTS PRIVATE INDIV,"GIFT, CARD, NOVELTY AND SOUVENIR SHOPS"
29/06/17,TARGETED INTERVENTION,CHESSINGTON WRLD A,9.60,EDUC VISITS/HOLS/CAMPS/TOYS,"AMUSEMENT PARKS,CARNIVALS,CIRCUS,FORTUNE TELLERS"
29/06/17,HILLSIDE,MATALAN,95.00,"CLOTHING, UNIFORM AND LAUNDRY",MEN'S AND WOMEN'S CLOTHING STORES
29/06/17,TARGETED INTERVENTION,MILLER AND CARTER,52.95,EDUC VISITS/HOLS/CAMPS/TOYS,"EATING PLACES, RESTAURANTS"
29/06/17,TARGETED INTERVENTION,TOP GOLF LTD,29.50,EDUC VISITS/HOLS/CAMPS/TOYS,"CLUBS-CNTRY,MBRSHIP(ATHLET,REC,SPRTS,PRIVATE GOLF"
29/06/17,LIBERTAS COMMUNITY HOME,DOROTHY PERKINS,59.05,"CLOTHING, UNIFORM AND LAUNDRY",MEN'S AND WOMEN'S CLOTHING STORES
29/06/17,TRANSPORT,AMAZON UK MARKETPLACE,5.74,STATIONERY,BOOK STORES
29/06/17,VIRTUAL SCHOOL FOR LAC PUPIL PREMIUM,AMAZON EU,31.84,BOOKS,DIRECT MARKETING-OTHER DIRECT MARKETERS/NOT ELSEW.
29/06/17,VIRTUAL SCHOOL FOR LAC PUPIL PREMIUM,AMAZON EU,45.53,BOOKS,DIRECT MARKETING-OTHER DIRECT MARKETERS/NOT ELSEW.
29/06/17,EPSOM & EWELL CMHRS CARE,HMCTS-SURREY125,75.00,FEES,FINES
29/06/17,TARGETED INTERVENTION,TOP GOLF LTD,13.75,EDUC VISITS/HOLS/CAMPS/TOYS,"CLUBS-CNTRY,MBRSHIP(ATHLET,REC,SPRTS,PRIVATE GOLF"
29/06/17,LIBERTAS COMMUNITY HOME,CLINTONS 4255,33.58,EDUC VISITS/HOLS/CAMPS/TOYS,"GIFT, CARD, NOVELTY AND SOUVENIR SHOPS"
29/06/17,CHILDREN'S RIGHTS TEAM,ASDA SUPERSTORE,93.17,REFRESHMENT COSTS,"GROCERY STORES, SUPERMARKETS"
29/06/17,BURBANK COMMUNITY HOME,MONSOON/ACCZ LTD,5.00,3RD PARTY PAYMENTS PRIVATE INDIV,FAMILY CLOTHING STORES
29/06/17,"NW REF, ASS & INT SERVICE - HUB 1",AMAZON UK MARKETPLACE,96.99,EQUIPMENT,BOOK STORES
29/06/17,TARGETED INTERVENTION,WOKING COUNCIL PARKING,1.30,EDUC VISITS/HOLS/CAMPS/TOYS,AUTOMOBILE PARKING LOTS AND GARAGES
29/06/17,NW CP & COURT TEAM,AMAZON UK MARKETPLACE,96.99,EQUIPMENT,BOOK STORES
29/06/17,FAIRCROFT COMMUNITY HOME,THE NATIONAL TRUST,27.20,EDUC VISITS/HOLS/CAMPS/TOYS,"ORGANIZATIONS, CHARITABLE AND SOCIAL SERVICES"
29/06/17,SW CARE - CP & COURT LAC,BCC REGISTER OFFIC,15.00,CHILDREN ACT SEC 17 PAYMENTS,GOVERNMENT SERVICES-NOT ELSEWHERE CLASSIFIED
29/06/17,BURBANK COMMUNITY HOME,THE ENTERTAINER 99,63.53,3RD PARTY PAYMENTS PRIVATE INDIV,"GAME, TOY, AND HOBBY SHOPS"
29/06/17,FAIRCROFT COMMUNITY HOME,SANBEI GUILDFORD,12.99,EQUIPMENT,TELECOMMUNICATION EQUIPMENT INCL TELEPHONE SALES
29/06/17,SCHOOL GAMES LOC 2015-16                ,WWW LITTLECRAFTYBUGS C,13.51,EQUIPMENT,"ARTIST SUPPLY STORES, CRAFT SHOPS"
29/06/17,SCHOOL GAMES LOC 2015-16                ,WWW LITTLECRAFTYBUGS C,2.95,EQUIPMENT,"ARTIST SUPPLY STORES, CRAFT SHOPS"
29/06/17,TARGETED INTERVENTION,COSTA COFFEE,8.55,EDUC VISITS/HOLS/CAMPS/TOYS,FAST FOOD RESTAURANTS
29/06/17,LANGDOWN STAFF COST,WYNVR.CO.UK HOL ACCOM,596.00,3RD PARTY PAYMENTS PRIVATE INDIV,TRAVEL AGENCIES AND TOUR OPERATORS
29/06/17,NE TEACHERS,THE PRINCESS ALICE,95.00,TRAINING EXPENSES EXTERNAL GENERAL,"ORGANIZATIONS, CHARITABLE AND SOCIAL SERVICES"
29/06/17,NE EDUCATION WELFARE OFFICERS,THE PRINCESS ALICE,95.00,TRAINING EXPENSES EXTERNAL GENERAL,"ORGANIZATIONS, CHARITABLE AND SOCIAL SERVICES"
29/06/17,TARGETED INTERVENTION,CHESSINGTON WORLD,45.00,EDUC VISITS/HOLS/CAMPS/TOYS,"AMUSEMENT PARKS,CARNIVALS,CIRCUS,FORTUNE TELLERS"
29/06/17,ACL CENTRAL EXPENDITURE,ROYAL MAIL DOOR TO DOO,"2,011.21",PUBLICITY,POSTAL SERVICES-GOVERNMENT ONLY
29/06/17,FAIRCROFT COMMUNITY HOME,SAINSBURYS SACAT 0687,24.00,PURCHASE OF FOOD (RAW MATERIALS),"GROCERY STORES, SUPERMARKETS"
29/06/17,SCHOOL GAMES LOC 2015-16                ,SCREWFIX DIRECT,60.80,EQUIPMENT,"BUILDING MATERIALS, LUMBER STORES"
29/06/17,HOPE SERVICE - WEST,AMAZON UK MARKETPLACE,1.15,CURRICULUM CONSUMABLES,BOOK STORES
29/06/17,HILLSIDE,SAINSBURYS 0675,51.55,PURCHASE OF FOOD (RAW MATERIALS),"GROCERY STORES, SUPERMARKETS"
29/06/17,ACL CENTRAL EXPENDITURE,FACEBK JJYQQBWT82,20.02,PUBLICITY,ADVERTISING SERVICES
29/06/17,HOLLAND CLOSE RESIDENTIAL HOME,GARRETT APPLIANCES,121.80,FIXTURES AND FITTINGS,ELECTRICAL PARTS AND EQUIPMENT
29/06/17,PROPERTY OPERATIONS TEAM,SCREWFIX,119.03,PURCHASE OF BUILDING MATERIALS,"BUILDING MATERIALS, LUMBER STORES"
29/06/17,SOLD DAY TO DAY OPERATIONS,B & Q 1029,7.92,EQUIPMENT,"BUILDING MATERIALS, LUMBER STORES"
29/06/17,HERITAGE PUBLIC SERVICE,W M MORRISONS,21.78,REFRESHMENT COSTS,"GROCERY STORES, SUPERMARKETS"
29/06/17,SOLD DAY TO DAY OPERATIONS,SPORTSDIRECT 234,16.00,EQUIPMENT,SPORTING GOODS STORES
29/06/17,SOLD ESTATES MANAGEMENT,B & Q 1029,29.65,DAY TO DAY MAINTENANCE,"BUILDING MATERIALS, LUMBER STORES"
29/06/17,KARIBU COMMUNITY HOME,TESCO STORE 2812,134.90,PURCHASE OF FOOD (RAW MATERIALS),"GROCERY STORES, SUPERMARKETS"
29/06/17,TRAINING AND DEVELOPMENT,ASSOCIATION OF INDUSTR,435.00,TRAINING EXPENSES EXTERNAL GENERAL,"ORGANIZATIONS, CHARITABLE AND SOCIAL SERVICES"
29/06/17,MALLOW CRESCENT,SAINSBURYS TO YOU 0652,16.60,PURCHASE OF FOOD (RAW MATERIALS),"GROCERY STORES, SUPERMARKETS"
29/06/17,MALLOW CRESCENT,SAINSBURYS TO YOU 0652,110.92,PURCHASE OF FOOD (RAW MATERIALS),"GROCERY STORES, SUPERMARKETS"
29/06/17,HOPE SERVICE - WEST,SAINSBURYS TO YOU 0686,72.11,PURCHASE OF FOOD (RAW MATERIALS),"GROCERY STORES, SUPERMARKETS"
29/06/17,LOWER MOLE COUNTRYSIDE PROJECT,WWW.PEGASUSHEALTH.COM,-5.00,EQUIPMENT,PET SHOPS - PET FOODS AND SUPPLIES
29/06/17,HR - CSF TRAINING OPEN PROGRAMME,FOSTER PARENT COLLEGE,160.77,TRAINING EXPENSES EXTERNAL GENERAL,SCHOOLS & EDUCATIONAL SVC-NOT ELSEWHERE CLASSIFIED
30/06/17,FAIRCROFT COMMUNITY HOME,BURGER KING GUILDFORD,11.47,REFRESHMENT COSTS,FAST FOOD RESTAURANTS
30/06/17,FAIRCROFT COMMUNITY HOME,DEEP BLUE COBHAM,36.70,REFRESHMENT COSTS,"EATING PLACES, RESTAURANTS"
30/06/17,E&I - TEXTILES                          ,FACEBK 4LC89DNZR2,58.13,PUBLICITY,ADVERTISING SERVICES
30/06/17,E&I - TEXTILES                          ,FACEBK ZKC89DNZR2,511.42,PUBLICITY,ADVERTISING SERVICES
30/06/17,ARUNDEL,TESCO STORES 5999,185.12,REFRESHMENT COSTS,"GROCERY STORES, SUPERMARKETS"
30/06/17,RUTH HOUSE,W M MORRISONS,18.00,PURCHASE OF FOOD (RAW MATERIALS),"GROCERY STORES, SUPERMARKETS"
30/06/17,ACL CENTRAL EXPENDITURE,FACEBK MP4W4CACB2,9.10,PUBLICITY,ADVERTISING SERVICES
30/06/17,RUTH HOUSE,HOBBYCRAFT,7.20,EDUC VISITS/HOLS/CAMPS/TOYS,"ARTIST SUPPLY STORES, CRAFT SHOPS"
30/06/17,LIBERTAS COMMUNITY HOME,PANDORA,40.00,EDUC VISITS/HOLS/CAMPS/TOYS,"CLOCK, JEWELRY, WATCH, AND SILVERWARE STORE"
30/06/17,E&I - TEXTILES                          ,FACEBK D5JC5DS9K2,8.05,PUBLICITY,ADVERTISING SERVICES
30/06/17,ARUNDEL,BUTLINS HOLIDAYS,150.00,EDUC VISITS/HOLS/CAMPS/TOYS,"LODGING-HOTELS,MOTELS,RESORTS-NOT CLASSIFIED"
30/06/17,ENSEMBLES & TOURS,BELL MUSIC LTD,134.95,EQUIPMENT,"MUSIC STORES-INSTRUMENTS, PIANOS, SHEET MUSIC"
30/06/17,HILLSIDE,SAINSBURYS 0675,55.99,PURCHASE OF FOOD (RAW MATERIALS),"GROCERY STORES, SUPERMARKETS"
30/06/17,COBHAM CHILDRENS CENTRE,AMAZON UK MARKETPLACE,99.99,EQUIPMENT,BOOK STORES
30/06/17,NW CP & COURT TEAM,ARGOS RETAIL GROUP,29.98,CHILDREN ACT SEC 17 PAYMENTS,DISCOUNT STORES
30/06/17,ACL CENTRAL EXPENDITURE,FACEBK XA6ZPBST82,2.68,PUBLICITY,ADVERTISING SERVICES
30/06/17,TARGETED INTERVENTION,WOKING COUNCIL PARKING,3.90,EDUC VISITS/HOLS/CAMPS/TOYS,AUTOMOBILE PARKING LOTS AND GARAGES
30/06/17,PROPERTY OPERATIONS TEAM,WICKES,7.89,PURCHASE OF BUILDING MATERIALS,"BUILDING MATERIALS, LUMBER STORES"
30/06/17,ARUNDEL,NRS HEALTHCARE,50.63,EQUIPMENT,DENTAL/LAB/MED/OPHTHALMIC HOSP EQUIP & SUPPLIES
30/06/17,TARGETED INTERVENTION,THE ATRIUM CAMBERLEY,1.80,MISCELLANEOUS STAFF TRAVEL,PROFESSIONAL SERVICES-NOT ELSEWHERE CLASSIFIED
30/06/17,RUTH HOUSE,WILKO.COM,30.00,EQUIPMENT,HOUSEHOLD APPLIANCE STORES
30/06/17,ACL CENTRAL EXPENDITURE,ARGOS LTD,14.99,PUBLICITY,DISCOUNT STORES
30/06/17,RUTH HOUSE,G J HONOUR,143.18,PURCHASE OF FOOD (RAW MATERIALS),"MISC FOOD STORE-CONVENIENCE,MRKT,SPLTY,VENDNG MACS"
30/06/17,DEVELOPMENT TEAM,"CLOUD9 IDE, INC",23.05,COMPUTER SOFTWARE,"COMPUTERS, COMPUTER PERIPHERAL EQUIPMENT, SOFTWARE"
30/06/17,MALLOW CRESCENT,WWW.ARGOS.CO.UK,168.94,EQUIPMENT,DISCOUNT STORES
30/06/17,COMMERCIAL TEAM,JOE MANBY LTD,156.01,FIXTURES AND FITTINGS,BUSINESS SERVICES-NOT ELSEWHERE CLASSIFIED
30/06/17,TARGETED INTERVENTION,WOKING TURNSTYLE LTD,18.50,EDUC VISITS/HOLS/CAMPS/TOYS,"THEATRICAL PRODUCERS(EXCL MOTION PIX),TICKET AGNCY"
30/06/17,TARGETED INTERVENTION,ATG TICKETS,21.00,EDUC VISITS/HOLS/CAMPS/TOYS,"THEATRICAL PRODUCERS(EXCL MOTION PIX),TICKET AGNCY"
30/06/17,TARGETED INTERVENTION,VUE BSL-SITE,8.49,EDUC VISITS/HOLS/CAMPS/TOYS,MOTION PICTURE THEATERS
30/06/17,TARGETED INTERVENTION,VUE BSL-ATM,36.27,EDUC VISITS/HOLS/CAMPS/TOYS,MOTION PICTURE THEATERS
30/06/17,ISPSB - ADAPTATIONS & IMPROVEMENTS,SENSORY DIRECT,428.40,EDUC VISITS/HOLS/CAMPS/TOYS,"GAME, TOY, AND HOBBY SHOPS"
30/06/17,CS BUSINESS SUPPORT WEST,OYPLA.COM,24.99,EQUIPMENT,"BUILDING MATERIALS, LUMBER STORES"
30/06/17,ISPSB - ADAPTATIONS & IMPROVEMENTS,AMAZON.CO.UK,2.88,EDUC VISITS/HOLS/CAMPS/TOYS,MISCELLANEOUS AND SPECIALTY RETAIL STORES
30/06/17,ISPSB - ADAPTATIONS & IMPROVEMENTS,AMAZON UK MARKETPLACE,48.75,EDUC VISITS/HOLS/CAMPS/TOYS,BOOK STORES
30/06/17,"NW REF, ASS & INT SERVICE - HUB 1",PREMIER INN,798.93,CHILDREN ACT SEC 17 PAYMENTS,PREMIER INN
30/06/17,HOPE SERVICE - WEST,AMAZON UK MARKETPLACE,2.85,CURRICULUM CONSUMABLES,BOOK STORES
30/06/17,WOODLANDS COMMUNITY HOME,SAINSBURYS 0686,6.30,EQUIPMENT,"GROCERY STORES, SUPERMARKETS"
30/06/17,WOODLANDS COMMUNITY HOME,SAINSBURYS 0686,8.25,PURCHASE OF FOOD (RAW MATERIALS),"GROCERY STORES, SUPERMARKETS"
30/06/17,WOODLANDS COMMUNITY HOME,SAINSBURYS 0686,98.22,PURCHASE OF FOOD (RAW MATERIALS),"GROCERY STORES, SUPERMARKETS"
30/06/17,TARGETED INTERVENTION,CINEWORLD CRA CP,34.70,EDUC VISITS/HOLS/CAMPS/TOYS,"THEATRICAL PRODUCERS(EXCL MOTION PIX),TICKET AGNCY"
30/06/17,TARGETED INTERVENTION,CINEWORLD CRA CP,9.35,EDUC VISITS/HOLS/CAMPS/TOYS,"THEATRICAL PRODUCERS(EXCL MOTION PIX),TICKET AGNCY"
30/06/17,ISPSB - ADAPTATIONS & IMPROVEMENTS,NOCHEX. SENSORY EDUCAT,190.14,EDUC VISITS/HOLS/CAMPS/TOYS,MISCELLANEOUS GENERAL MERCHANDISE
30/06/17,INNOVATION FUND,AMAZON UK MARKETPLACE,50.13,EQUIPMENT,BOOK STORES
30/06/17,FAIRCROFT COMMUNITY HOME,MCDONALDS,7.75,REFRESHMENT COSTS,"EATING PLACES, RESTAURANTS"
30/06/17,ROW MAINTENANCE,SCREWFIX DIRECT,65.78,STATIONERY,"BUILDING MATERIALS, LUMBER STORES"
30/06/17,RECRUITMENT,FACEBK A2W8SBAQ82,140.16,STAFF ADVERTISING ,ADVERTISING SERVICES
30/06/17,E&I - TEXTILES                          ,GOOGLE  ADWS2060179426,500.00,PUBLICITY,DIRECT MARKETING-CONTINUITY/SUBSCRIPTION MERCHANTS
30/06/17,FAMILIES SPELTHORNE,POUNDLAND LTD 1433,3.00,ITEMS PURCHASED FOR RE-SALE,DISCOUNT STORES
30/06/17,FAMILIES SPELTHORNE,W M MORRISONS,3.75,ITEMS PURCHASED FOR RE-SALE,"GROCERY STORES, SUPERMARKETS"
30/06/17,LIBERTAS COMMUNITY HOME,SAINSBURYS 0652,124.75,PURCHASE OF FOOD (RAW MATERIALS),"GROCERY STORES, SUPERMARKETS"
30/06/17,LIBERTAS COMMUNITY HOME,SAINSBURYS 0652,8.70,PURCHASE OF FOOD (RAW MATERIALS),"GROCERY STORES, SUPERMARKETS"
30/06/17,LIBERTAS COMMUNITY HOME,SAINSBURYS 0652,26.00,EQUIPMENT,"GROCERY STORES, SUPERMARKETS"
30/06/17,RUTH HOUSE,ARGOS RETAIL GROUP,15.00,EQUIPMENT,DISCOUNT STORES
30/06/17,CORPORATE GROUP - LEGAL SERVICES,ELIOR@WEST SUSSEX COUN,62.88,EXPENSES,CATERERS
30/06/17,COMMERCIAL TEAM,WWW.JOEMANBY.CO.UK,153.75,FIXTURES AND FITTINGS,BUSINESS SERVICES-NOT ELSEWHERE CLASSIFIED
30/06/17,ADOPTION TEAM,PREMIER INN,58.00,CHILDREN ACT SEC 17 PAYMENTS,PREMIER INN
30/06/17,ADOPTION TEAM,PREMIER INN,85.00,CHILDREN ACT SEC 17 PAYMENTS,PREMIER INN
30/06/17,ADOPTION TEAM,PREMIER INN,58.00,CHILDREN ACT SEC 17 PAYMENTS,PREMIER INN
30/06/17,ADOPTION TEAM,PREMIER INN,63.00,CHILDREN ACT SEC 17 PAYMENTS,PREMIER INN
30/06/17,SOLD ESTATES MANAGEMENT,SCREWFIX DIRECT,9.45,DAY TO DAY MAINTENANCE,"BUILDING MATERIALS, LUMBER STORES"
30/06/17,PE/CDT MAINTENANCE OVERHEADS,PORTER VALMIC,136.20,EQUIPMENT,"FURNITURE-REUPHOLSTERY AND REPAIR, REFINISHING"
30/06/17,COUNTY HALL,TLC (SOUTHERN) LTD,182.70,EQUIPMENT,HOUSEHOLD APPLIANCE STORES
30/06/17,CORPORATE GROUP - LEGAL SERVICES,LEWES PARKING,5.20,EXPENSES,SCHOOLS & EDUCATIONAL SVC-NOT ELSEWHERE CLASSIFIED
30/06/17,RUTH HOUSE,SAINSBURYS TO YOU 0686,51.55,PURCHASE OF FOOD (RAW MATERIALS),"GROCERY STORES, SUPERMARKETS"
30/06/17,RUTH HOUSE,SAINSBURYS TO YOU 0686,251.85,PURCHASE OF FOOD (RAW MATERIALS),"GROCERY STORES, SUPERMARKETS"
30/06/17,ACL CENTRAL EXPENDITURE,TESCO STORE 2160,72.76,REFRESHMENT COSTS,"GROCERY STORES, SUPERMARKETS"
30/06/17,APPLEWOOD,ASDA HOME SHOPPING,134.32,PURCHASE OF FOOD (RAW MATERIALS),"GROCERY STORES, SUPERMARKETS"
30/06/17,TS SERVICE MANAGEMENT,PREMIER INN 44534755,-128.99,SUBSISTENCE AND CONFERENCE EXPENSES,"EATING PLACES, RESTAURANTS"
30/06/17,RUTH HOUSE,SAINSBURYS TO YOU 0686,-1.25,PURCHASE OF FOOD (RAW MATERIALS),"GROCERY STORES, SUPERMARKETS"
30/06/17,RUTH HOUSE,EURO CAR PARTS LTD,-8.99,EQUIPMENT,"AUTOMOTIVE PARTS, ACCESSORIES STORES"
30/06/17,APPLEWOOD,ASDA HOME SHOPPING,-.81,PURCHASE OF FOOD (RAW MATERIALS),"GROCERY STORES, SUPERMARKETS"
30/06/17,ADOPTION TEAM,AMAZON UK MARKETPLACE,55.00,LIBRARY RESOURCES,BOOK STORES
01/07/17,HOLLAND CLOSE RESIDENTIAL HOME,KINDLE UNLIMITED AMAZO,7.99,SUBSCRIPTIONS,DIGITAL GOODS AUDIOVISUAL MEDIA
01/07/17,EXTENDED HOPE,WESTGATE HARVESTER,27.58,REFRESHMENT COSTS,"EATING PLACES, RESTAURANTS"
01/07/17,WOODLANDS COMMUNITY HOME,CONNAUGHT SERVICE,34.45,VEHICLE RUNNING COSTS,SERVICE STATIONS WITH OR WITHOUT ANCILLARY SERVICE
01/07/17,EXTENDED HOPE,TEAM SPORT FARNBOROUGH,7.00,"CLOTHING, UNIFORM AND LAUNDRY","AMUSEMENT PARKS,CARNIVALS,CIRCUS,FORTUNE TELLERS"
01/07/17,LIBERTAS COMMUNITY HOME,LONDON PALLADIUM BOX O,175.00,EDUC VISITS/HOLS/CAMPS/TOYS,"THEATRICAL PRODUCERS(EXCL MOTION PIX),TICKET AGNCY"
01/07/17,EXTENDED HOPE,WWW.TEAM-SPORT.CO.UK,70.00,EQUIPMENT,"AMUSEMENT PARKS,CARNIVALS,CIRCUS,FORTUNE TELLERS"
01/07/17,LIBERTAS COMMUNITY HOME,MOUNTAIN WAREHOUSE,65.94,"CLOTHING, UNIFORM AND LAUNDRY",MEN'S AND WOMEN'S CLOTHING STORES
01/07/17,HOLLAND CLOSE RESIDENTIAL HOME,AMAZON UK MARKETPLACE,26.65,EQUIPMENT,BOOK STORES
01/07/17,CHEYNE WALK COMMUNITY HOME,AMAZON UK MARKETPLACE,24.07,LIBRARY RESOURCES,BOOK STORES
01/07/17,CHEYNE WALK COMMUNITY HOME,AMAZON UK MARKETPLACE,11.02,EQUIPMENT,BOOK STORES
01/07/17,CHEYNE WALK COMMUNITY HOME,AMAZON UK MARKETPLACE,19.58,LIBRARY RESOURCES,BOOK STORES
01/07/17,HOPE SERVICE - WEST,AMAZON UK MARKETPLACE,12.03,CURRICULUM CONSUMABLES,BOOK STORES
01/07/17,HILLSIDE,SAINSBURYS SACAT 0784,6.00,PURCHASE OF FOOD (RAW MATERIALS),"GROCERY STORES, SUPERMARKETS"
01/07/17,ISPSB - ADAPTATIONS & IMPROVEMENTS,AMAZON.CO.UK,4.99,EDUC VISITS/HOLS/CAMPS/TOYS,MISCELLANEOUS AND SPECIALTY RETAIL STORES
01/07/17,CHILDREN'S RIGHTS TEAM,SUBWAY,8.00,REFRESHMENT COSTS,"EATING PLACES, RESTAURANTS"
01/07/17,CHEYNE WALK COMMUNITY HOME,AMFBOWLING.CO.UK,31.50,EDUC VISITS/HOLS/CAMPS/TOYS,BOWLING ALLEYS
01/07/17,CHILDREN'S RIGHTS TEAM,CO-OP GROUP 350098,8.60,REFRESHMENT COSTS,"GROCERY STORES, SUPERMARKETS"
01/07/17,WOKING LIBRARY,AMAZON UK MARKETPLACE,39.96,FIXTURES AND FITTINGS,BOOK STORES
01/07/17,ROW MAINTENANCE,AMAZON PRIME,79.00,EQUIPMENT,DIRECT MARKETING-CONTINUITY/SUBSCRIPTION MERCHANTS
01/07/17,HOLLAND CLOSE RESIDENTIAL HOME,TESCO-STORES 6647,148.03,PURCHASE OF FOOD (RAW MATERIALS),"GROCERY STORES, SUPERMARKETS"
01/07/17,BURBANK COMMUNITY HOME,WWW.UKFLAIR.COM,56.97,EDUC VISITS/HOLS/CAMPS/TOYS,"SPORTS APPAREL, RIDING APPAREL STORES"
01/07/17,HILLSIDE,SAINSBURYS TO YOU 0675,20.00,PURCHASE OF FOOD (RAW MATERIALS),"GROCERY STORES, SUPERMARKETS"
01/07/17,HILLSIDE,SAINSBURYS TO YOU 0675,190.00,PURCHASE OF FOOD (RAW MATERIALS),"GROCERY STORES, SUPERMARKETS"
01/07/17,MALLOW CRESCENT,WWW.ARGOS.CO.UK,5.99,EQUIPMENT,DISCOUNT STORES
02/07/17,HOLLAND CLOSE RESIDENTIAL HOME,AMAZON.CO.UK,59.64,EQUIPMENT,MISCELLANEOUS AND SPECIALTY RETAIL STORES
02/07/17,COMMUNICATIONS TEAM,TIMES NEWSPAPERS LTD,34.67,SUBSCRIPTIONS,"BOOKS,PERIODICALS AND NEWSPAPERS"
02/07/17,VIRTUAL SCHOOL FOR LAC PUPIL PREMIUM,AMAZON.CO.UK,181.50,BOOKS,MISCELLANEOUS AND SPECIALTY RETAIL STORES
02/07/17,ASHTEAD YC,AMAZON UK MARKETPLACE,35.70,EQUIPMENT,BOOK STORES
02/07/17,CHEYNE WALK COMMUNITY HOME,COSTA COFFEE,13.35,PURCHASE OF FOOD (RAW MATERIALS),FAST FOOD RESTAURANTS
02/07/17,CORPORATE GROUP - LEGAL SERVICES,AMAZON EU,74.95,EQUIPMENT,DIRECT MARKETING-OTHER DIRECT MARKETERS/NOT ELSEW.
02/07/17,CHEYNE WALK COMMUNITY HOME,NEXT RETAIL LTD,40.05,"CLOTHING, UNIFORM AND LAUNDRY",FAMILY CLOTHING STORES
02/07/17,HOLLAND CLOSE RESIDENTIAL HOME,AMAZON UK MARKETPLACE,79.95,EQUIPMENT,BOOK STORES
02/07/17,LIBERTAS COMMUNITY HOME,HOEBRIDGE GOLF,18.50,EDUC VISITS/HOLS/CAMPS/TOYS,GOLF COURSES-PUBLIC
02/07/17,ACL CENTRAL EXPENDITURE,W M MORRISONS,7.62,REFRESHMENT COSTS,"GROCERY STORES, SUPERMARKETS"
02/07/17,LIBERTAS COMMUNITY HOME,SAINSBURYS SACAT 0652,1.70,PURCHASE OF FOOD (RAW MATERIALS),"GROCERY STORES, SUPERMARKETS"
02/07/17,LIBERTAS COMMUNITY HOME,SAINSBURYS SACAT 0652,4.05,EQUIPMENT,"GROCERY STORES, SUPERMARKETS"
02/07/17,LIBERTAS COMMUNITY HOME,SAINSBURYS SACAT 0652,2.00,PURCHASE OF FOOD (RAW MATERIALS),"GROCERY STORES, SUPERMARKETS"
02/07/17,HILLSIDE,HOUSE OF FRASER,99.05,"CLOTHING, UNIFORM AND LAUNDRY",DEPARTMENT STORES
02/07/17,SUPERFAST BROADBAND ECONOMIC DEVELOPMENT,GOOGLE  SVCSAPPS_SUPER,13.75,COMPUTER SERVICES,DIRECT MARKETING-CONTINUITY/SUBSCRIPTION MERCHANTS
03/07/17,MALLOW CRESCENT,TVLICENSING.CO.UK,147.00,EQUIPMENT,"CONSULTING, MANAGEMENT, AND PUBLIC RELATIONS SVCS"
03/07/17,MALLOW CRESCENT,TVLICENSING.CO.UK,147.00,EQUIPMENT,"CONSULTING, MANAGEMENT, AND PUBLIC RELATIONS SVCS"
03/07/17,MALLOW CRESCENT,TVLICENSING.CO.UK,147.00,EQUIPMENT,"CONSULTING, MANAGEMENT, AND PUBLIC RELATIONS SVCS"
03/07/17,NW CARE - NON-LAC CIN,PREMIER INN,96.00,CHILDREN ACT SEC 17 PAYMENTS,PREMIER INN
03/07/17,ROW MAINTENANCE,WWW.ARCO.CO.UK,115.39,"CLOTHING, UNIFORM AND LAUNDRY",INDUSTRIAL SUPPLIES NOT ELSEWHERE CLASSIFIED
03/07/17,WOODLANDS COMMUNITY HOME,AMAZON PRIME,7.99,SUBSCRIPTIONS,DIRECT MARKETING-CONTINUITY/SUBSCRIPTION MERCHANTS
03/07/17,SOLD DAY TO DAY OPERATIONS,DECATHLON UK LTD,107.94,EQUIPMENT,SPORTING GOODS STORES
03/07/17,HOLLAND CLOSE RESIDENTIAL HOME,AMAZON UK MARKETPLACE,4.19,EQUIPMENT,BOOK STORES
03/07/17,RUTH HOUSE,ARGOS RETAIL GROUP,284.99,EQUIPMENT,DISCOUNT STORES
03/07/17,ROW AREA1 GFD SYH RNY SPL               ,SCREWFIX DIRECT,39.99,EQUIPMENT,"BUILDING MATERIALS, LUMBER STORES"
03/07/17,FAMILIES WAVERLEY,SAINSBURYS SACAT 0670,4.00,PURCHASE OF FOOD (RAW MATERIALS),"GROCERY STORES, SUPERMARKETS"
03/07/17,FAMILIES WAVERLEY,SAINSBURYS SACAT 0670,7.45,PURCHASE OF FOOD (RAW MATERIALS),"GROCERY STORES, SUPERMARKETS"
03/07/17,MASH,MILK & MORE OFFLINE,37.30,REFRESHMENT COSTS,"MISC FOOD STORE-CONVENIENCE,MRKT,SPLTY,VENDNG MACS"
03/07/17,MASH,MILK & MORE OFFLINE,177.00,REFRESHMENT COSTS,"MISC FOOD STORE-CONVENIENCE,MRKT,SPLTY,VENDNG MACS"
03/07/17,TARGETED INTERVENTION,TEAM SPORT V/T,120.00,EDUC VISITS/HOLS/CAMPS/TOYS,"AMUSEMENT PARKS,CARNIVALS,CIRCUS,FORTUNE TELLERS"
03/07/17,SECTOR MANAGER,DAISY GIFTS,82.99,ITEMS PURCHASED FOR RE-SALE,"GIFT, CARD, NOVELTY AND SOUVENIR SHOPS"
03/07/17,FAMILIES SPELTHORNE,TESCO STORE 2047,6.30,REFRESHMENT COSTS,"GROCERY STORES, SUPERMARKETS"
03/07/17,TRAINING LEGAL SERVICES,PAYPAL  ACT NOW,58.80,TRAINING EXPENSES EXTERNAL GENERAL,"CONSULTING, MANAGEMENT, AND PUBLIC RELATIONS SVCS"
03/07/17,SE CARE - CP & COURT LAC,GRO HM PASSPORT OFFICE,27.75,CHILDREN ACT SEC 17 PAYMENTS,GOVERNMENT SERVICES-NOT ELSEWHERE CLASSIFIED
03/07/17,SURREY ARTS GENERAL,THINK FORD FARNBOR,500.00,HIRE OF VEHICLES,AUTOMOTIVE SERVICE SHOPS
03/07/17,RUTH HOUSE,RUTH HOUSE  JUNE,786.95,PURCHASE OF FOOD (RAW MATERIALS),COMPUTER SOFTWARE STORES
03/07/17,SE CARE - CP & COURT LAC,SURREY CC CARD PAY,31.00,CHILDREN ACT SEC 17 PAYMENTS,COMPUTER NETWORK/INFORMATION SERVICES
03/07/17,BURBANK COMMUNITY HOME,WWW.HORSELL-JUNIOR.SUR,14.97,"CLOTHING, UNIFORM AND LAUNDRY","SCHOOLS, ELEMENTARY AND SECONDARY"
03/07/17,BURBANK COMMUNITY HOME,SURREY CC INTERNET,22.00,REFRESHMENT COSTS,PROFESSIONAL SERVICES-NOT ELSEWHERE CLASSIFIED
03/07/17,IMT CRITICAL ENVIRONMENTS,AMAZON UK MARKETPLACE,5.49,COMPUTER HARDWARE,BOOK STORES
03/07/17,BURBANK COMMUNITY HOME,CENTRAL AUTO REPAIR SE,143.53,VEHICLE REPAIRS AND MAINTENANCE,AUTOMOTIVE SERVICE SHOPS
03/07/17,CHEYNE WALK COMMUNITY HOME,AMAZON UK MARKETPLACE,4.60,EQUIPMENT,BOOK STORES
03/07/17,CHEYNE WALK COMMUNITY HOME,AMAZON.CO.UK,9.20,LIBRARY RESOURCES,MISCELLANEOUS AND SPECIALTY RETAIL STORES
03/07/17,POLICY AND PERFORMANCE TEAM,GOV.UK/PHE,230.00,TRAINING EXPENSES EXTERNAL GENERAL,"HEALTH PRACTITIONERS, MEDICAL SRVCS-NOT ELSEWHERE"
03/07/17,BURBANK COMMUNITY HOME,WICKES,6.83,DAY TO DAY MAINTENANCE,HOME SUPPLY WAREHOUSE STORES
03/07/17,TARGETED INTERVENTION,SAINSBURYS 0686,4.30,EDUC VISITS/HOLS/CAMPS/TOYS,"GROCERY STORES, SUPERMARKETS"
03/07/17,MALLOW CRESCENT,FAST KEY SERVICES LIMI,4.26,EQUIPMENT,BUSINESS SERVICES-NOT ELSEWHERE CLASSIFIED
03/07/17,TARGETED INTERVENTION,BLETCHINGLEY GOLF CLUB,4.75,EDUC VISITS/HOLS/CAMPS/TOYS,SPORTING GOODS STORES
03/07/17,PE/CDT MAINTENANCE OVERHEADS,SCREWFIX DIRECT,53.17,EQUIPMENT,"BUILDING MATERIALS, LUMBER STORES"
03/07/17,ACL CENTRAL EXPENDITURE,SP  CALOR IN SURREY,40.00,EQUIPMENT,MISCELLANEOUS GENERAL MERCHANDISE
03/07/17,FAMILY WORKFORCE DEVELOPMENT EAST,AMAZON UK RETAIL AMAZO,22.33,STATIONERY,MISCELLANEOUS AND SPECIALTY RETAIL STORES
03/07/17,SOLD DAY TO DAY OPERATIONS,CLUSKEYS CCP LTD,170.16,EQUIPMENT,MISCELLANEOUS GENERAL MERCHANDISE
03/07/17,SE CARE - CP & COURT LAC,SURREY CC CARD PAY,31.00,CHILDREN ACT SEC 17 PAYMENTS,COMPUTER NETWORK/INFORMATION SERVICES
03/07/17,SE CARE - CP & COURT LAC,ARGOS RETAIL GROUP,17.99,EQUIPMENT,DISCOUNT STORES
03/07/17,PE/CDT MAINTENANCE OVERHEADS,T A BOXALL & CO LTD,112.80,EQUIPMENT,"CONTRACTORS,SPECIAL TRADE-NOT ELSEWHERE CLASSIFIED"
03/07/17,SE CARE - NON-LAC CP & COURT,SURREY CC CARD PAY,31.00,CHILDREN ACT SEC 17 PAYMENTS,COMPUTER NETWORK/INFORMATION SERVICES
03/07/17,FAMILIES SPELTHORNE,POUNDLAND LTD 1287,3.00,REFRESHMENT COSTS,DISCOUNT STORES
03/07/17,FAMILIES SPELTHORNE,POUNDLAND LTD 1287,1.00,REFRESHMENT COSTS,DISCOUNT STORES
03/07/17,FAMILIES SURREY HEATH,TESCO STORE 3149,11.59,PURCHASE OF FOOD (RAW MATERIALS),"GROCERY STORES, SUPERMARKETS"
03/07/17,FAMILIES SURREY HEATH,TESCO STORE 3149,22.37,PURCHASE OF FOOD (RAW MATERIALS),"GROCERY STORES, SUPERMARKETS"
03/07/17,LIBERTAS COMMUNITY HOME,SAINSBURYS 0652,23.35,PURCHASE OF FOOD (RAW MATERIALS),"GROCERY STORES, SUPERMARKETS"
03/07/17,LIBERTAS COMMUNITY HOME,SAINSBURYS 0652,140.15,PURCHASE OF FOOD (RAW MATERIALS),"GROCERY STORES, SUPERMARKETS"
03/07/17,SOLD DAY TO DAY OPERATIONS,B & Q 1029,58.53,EQUIPMENT,"BUILDING MATERIALS, LUMBER STORES"
03/07/17,HOPE SERVICE - WEST,SAINSBURYS 0683,103.23,PURCHASE OF FOOD (RAW MATERIALS),"GROCERY STORES, SUPERMARKETS"
03/07/17,SOLD DAY TO DAY OPERATIONS,TRAVIS PERKINS,46.80,EQUIPMENT,"BUILDING MATERIALS, LUMBER STORES"
03/07/17,MALLOW CRESCENT,SAINSBURYS TO YOU 0652,16.25,PURCHASE OF FOOD (RAW MATERIALS),"GROCERY STORES, SUPERMARKETS"
03/07/17,MALLOW CRESCENT,SAINSBURYS TO YOU 0652,110.78,PURCHASE OF FOOD (RAW MATERIALS),"GROCERY STORES, SUPERMARKETS"
03/07/17,BURBANK COMMUNITY HOME,WICKES,22.63,DAY TO DAY MAINTENANCE,HOME SUPPLY WAREHOUSE STORES
03/07/17,SAP COMPETENCY CENTRE,AMAZON MKTPLACE PMTS,381.40,COMPUTER SERVICES,MISCELLANEOUS AND SPECIALTY RETAIL STORES
03/07/17,TRANSPORT,PP ANSON U.K. LTD,"1,436.64",OPERATIONAL FIRE EQUIPMENT,DENTAL/LAB/MED/OPHTHALMIC HOSP EQUIP & SUPPLIES
03/07/17,HILLSIDE,LIDL UK,.75,PURCHASE OF FOOD (RAW MATERIALS),"GROCERY STORES, SUPERMARKETS"
03/07/17,HILLSIDE,LIDL UK,23.13,PURCHASE OF FOOD (RAW MATERIALS),"GROCERY STORES, SUPERMARKETS"
03/07/17,HILLSIDE,LIDL UK,17.30,PURCHASE OF FOOD (RAW MATERIALS),"GROCERY STORES, SUPERMARKETS"
03/07/17,EXTENDED HOPE,SAINSBURYS SACAT 0652,24.75,EQUIPMENT,"GROCERY STORES, SUPERMARKETS"
03/07/17,FAIRCROFT COMMUNITY HOME,SAINSBURYS 0687,14.75,EQUIPMENT,"GROCERY STORES, SUPERMARKETS"
03/07/17,COVEHAM,SAINSBURYS TO YOU 0687,179.65,REFRESHMENT COSTS,"GROCERY STORES, SUPERMARKETS"
03/07/17,CHEYNE WALK COMMUNITY HOME,"CENTER PARCS, MOTO",723.18,EDUC VISITS/HOLS/CAMPS/TOYS,"LODGING-HOTELS,MOTELS,RESORTS-NOT CLASSIFIED"
03/07/17,CHEYNE WALK COMMUNITY HOME,"CENTER PARCS, MOTO",877.20,EDUC VISITS/HOLS/CAMPS/TOYS,"LODGING-HOTELS,MOTELS,RESORTS-NOT CLASSIFIED"
03/07/17,COMMUNICATIONS - SURREY MATTERS,HOO HOOTSUITE MEDIA I,5.72,SUBSCRIPTIONS,DIRECT MARKETING-CONTINUITY/SUBSCRIPTION MERCHANTS
03/07/17,CHEYNE WALK COMMUNITY HOME,"CENTER PARCS, MOTO",877.20,EDUC VISITS/HOLS/CAMPS/TOYS,"LODGING-HOTELS,MOTELS,RESORTS-NOT CLASSIFIED"
03/07/17,MALLOW CRESCENT,TESCO STORE 2590,1.00,PURCHASE OF FOOD (RAW MATERIALS),"GROCERY STORES, SUPERMARKETS"
03/07/17,MALLOW CRESCENT,TESCO STORE 2590,86.46,PURCHASE OF FOOD (RAW MATERIALS),"GROCERY STORES, SUPERMARKETS"
03/07/17,HOPE SERVICE - WEST,SAINSBURYS LOC 4409,3.30,NEWSPAPER AND PERIODICALS,"GROCERY STORES, SUPERMARKETS"
03/07/17,CHEYNE WALK COMMUNITY HOME,"CENTER PARCS, MOTO",478.38,EDUC VISITS/HOLS/CAMPS/TOYS,"LODGING-HOTELS,MOTELS,RESORTS-NOT CLASSIFIED"
03/07/17,CHEYNE WALK COMMUNITY HOME,"CENTER PARCS, MOTO",999.60,EDUC VISITS/HOLS/CAMPS/TOYS,"LODGING-HOTELS,MOTELS,RESORTS-NOT CLASSIFIED"
03/07/17,CHEYNE WALK COMMUNITY HOME,"CENTER PARCS, MOTO",999.60,EDUC VISITS/HOLS/CAMPS/TOYS,"LODGING-HOTELS,MOTELS,RESORTS-NOT CLASSIFIED"
03/07/17,LANGDOWN STAFF COST,WWW.POSTOFFICE.CO.UK,53.31,3RD PARTY PAYMENTS PRIVATE INDIV,POSTAL SERVICES-GOVERNMENT ONLY
03/07/17,LANGDOWN STAFF COST,WWW.POSTOFFICE.CO.UK,27.50,3RD PARTY PAYMENTS PRIVATE INDIV,POSTAL SERVICES-GOVERNMENT ONLY
03/07/17,LANGDOWN STAFF COST,WWW.POSTOFFICE.CO.UK,37.16,3RD PARTY PAYMENTS PRIVATE INDIV,POSTAL SERVICES-GOVERNMENT ONLY
03/07/17,MALLOW CRESCENT,SAINSBURYS TO YOU 0652,19.20,PURCHASE OF FOOD (RAW MATERIALS),"GROCERY STORES, SUPERMARKETS"
03/07/17,MALLOW CRESCENT,SAINSBURYS TO YOU 0652,116.08,PURCHASE OF FOOD (RAW MATERIALS),"GROCERY STORES, SUPERMARKETS"
03/07/17,ACL CENTRAL EXPENDITURE,TESCO STORE 3149,94.74,REFRESHMENT COSTS,"GROCERY STORES, SUPERMARKETS"
03/07/17,HOPE SERVICE - WEST,SAINSBURYS TO YOU 0686,98.24,PURCHASE OF FOOD (RAW MATERIALS),"GROCERY STORES, SUPERMARKETS"
03/07/17,FAIRCROFT COMMUNITY HOME,TESCO STORE 2812,210.37,PURCHASE OF FOOD (RAW MATERIALS),"GROCERY STORES, SUPERMARKETS"
03/07/17,MERSTHAM YC,AMAZON UK MARKETPLACE,5.98,EQUIPMENT,BOOK STORES
03/07/17,FAMILIES REIGATE AND BANSTREAD,"AMAZON SVCS EUROPE,SAR",3.76,EQUIPMENT,BOOK STORES
03/07/17,SCHOOL APPEALS,AMZ CAPITAL STORES,-20.00,STATIONERY,MISCELLANEOUS AND SPECIALTY RETAIL STORES
03/07/17,ACL CENTRAL EXPENDITURE,TESCO STORE 3149,-5.04,REFRESHMENT COSTS,"GROCERY STORES, SUPERMARKETS"
03/07/17,FAMILIES SPELTHORNE,MARKS&SPENCER PLC SACA,.89,REFRESHMENT COSTS,"GROCERY STORES, SUPERMARKETS"
03/07/17,MALLOW CRESCENT,SAINSBURYS TO YOU 0652,-6.75,PURCHASE OF FOOD (RAW MATERIALS),"GROCERY STORES, SUPERMARKETS"
03/07/17,HOLLAND CLOSE RESIDENTIAL HOME,AMAZON UK MARKETPLACE,1.95,EQUIPMENT,BOOK STORES
04/07/17,BURBANK COMMUNITY HOME,PAYPAL  SHAHICAN,479.99,EQUIPMENT,ELECTRONIC SALES
04/07/17,CHEYNE WALK COMMUNITY HOME,AMAZON UK RETAIL AMAZO,14.12,EQUIPMENT,MISCELLANEOUS AND SPECIALTY RETAIL STORES
04/07/17,WOODLANDS COMMUNITY HOME,SAINSBURYS 0686,19.66,EDUC VISITS/HOLS/CAMPS/TOYS,"GROCERY STORES, SUPERMARKETS"
04/07/17,WOODLANDS COMMUNITY HOME,SAINSBURYS 0686,6.00,EQUIPMENT,"GROCERY STORES, SUPERMARKETS"
04/07/17,WOODLANDS COMMUNITY HOME,SAINSBURYS 0686,60.10,"CLOTHING, UNIFORM AND LAUNDRY","GROCERY STORES, SUPERMARKETS"
04/07/17,CHEYNE WALK COMMUNITY HOME,TESCO STORES 2560,21.99,PURCHASE OF FOOD (RAW MATERIALS),"GROCERY STORES, SUPERMARKETS"
04/07/17,CHEYNE WALK COMMUNITY HOME,TESCO STORES 2560,71.97,EQUIPMENT,"GROCERY STORES, SUPERMARKETS"
04/07/17,FAMILIES MOLE VALLEY,TESCO STORES 2812,6.64,PURCHASE OF FOOD (RAW MATERIALS),"GROCERY STORES, SUPERMARKETS"
04/07/17,ARUNDEL,TESCO STORES 5999,59.64,REFRESHMENT COSTS,"GROCERY STORES, SUPERMARKETS"
04/07/17,SE CARE - LAC,SURREY CC CARD PAY,31.00,CHILDREN ACT SEC 17 PAYMENTS,COMPUTER NETWORK/INFORMATION SERVICES
04/07/17,SE CARE - CP & COURT LAC,SURREY CC CARD PAY,31.00,CHILDREN ACT SEC 17 PAYMENTS,COMPUTER NETWORK/INFORMATION SERVICES
04/07/17,BURBANK COMMUNITY HOME,W M MORRISONS,7.47,3RD PARTY PAYMENTS PRIVATE INDIV,"GROCERY STORES, SUPERMARKETS"
04/07/17,CAMHS SOCIAL WORKERS,MIXAM UK LTD,114.10,PUBLICITY,MISCELLANEOUS PUBLISHING AND PRINTING
04/07/17,ACL CENTRAL EXPENDITURE,SHOECARE,12.00,PUBLICITY,"HAT CLEANING SHOPS, SHOE REPAIR SHOPS, SHOE SHINE"
04/07/17,SCHOOL APPEALS,AMAZON.CO.UK,27.96,STATIONERY,MISCELLANEOUS AND SPECIALTY RETAIL STORES
04/07/17,BURBANK COMMUNITY HOME,W M MORRISONS,10.07,PURCHASE OF FOOD (RAW MATERIALS),"GROCERY STORES, SUPERMARKETS"
04/07/17,FAMILIES GUILDFORD,TABLE TABLE41015900,2.85,REFRESHMENT COSTS,"EATING PLACES, RESTAURANTS"
04/07/17,FAMILIES GUILDFORD,CO-OP GROUP 500031,6.72,POSTAGE AND COURIER CHARGES,"GROCERY STORES, SUPERMARKETS"
04/07/17,SE CARE - LAC,HOLIDAY INNS,99.99,CHILDREN ACT SEC 17 PAYMENTS,HOLIDAY INNS
04/07/17,SE CARE - CP & COURT LAC,SURREY CC CARD PAY,31.00,CHILDREN ACT SEC 17 PAYMENTS,COMPUTER NETWORK/INFORMATION SERVICES
04/07/17,DEVELOPMENT TEAM,AVANGATE PLUMSAIL.COM,369.36,COMPUTER SERVICES,"GIFT, CARD, NOVELTY AND SOUVENIR SHOPS"
04/07/17,SE CARE - CP & COURT LAC,SURREY CC CARD PAY,11.00,CHILDREN ACT SEC 17 PAYMENTS,COMPUTER NETWORK/INFORMATION SERVICES
04/07/17,FAMILIES SURREY HEATH,TESCO STORES 2334,7.26,PURCHASE OF FOOD (RAW MATERIALS),"GROCERY STORES, SUPERMARKETS"
04/07/17,WOODLANDS COMMUNITY HOME,WICKES,35.47,EQUIPMENT,HOME SUPPLY WAREHOUSE STORES
04/07/17,HERITAGE PUBLIC SERVICE,BOOKER LIMITED ALDERSH,42.48,REFRESHMENT COSTS,CATERERS
04/07/17,WOODLANDS COMMUNITY HOME,SAINSBURYS SACAT 0686,17.00,EQUIPMENT,"GROCERY STORES, SUPERMARKETS"
04/07/17,WOODLANDS COMMUNITY HOME,SAINSBURYS SACAT 0686,15.47,EDUC VISITS/HOLS/CAMPS/TOYS,"GROCERY STORES, SUPERMARKETS"
04/07/17,WOODLANDS COMMUNITY HOME,SAINSBURYS SACAT 0686,25.15,PURCHASE OF FOOD (RAW MATERIALS),"GROCERY STORES, SUPERMARKETS"
04/07/17,WOODLANDS COMMUNITY HOME,SAINSBURYS SACAT 0686,30.00,EDUC VISITS/HOLS/CAMPS/TOYS,"GROCERY STORES, SUPERMARKETS"
04/07/17,PE/CDT MAINTENANCE OVERHEADS,BISHOP SPORTS & LEISUR,179.40,EQUIPMENT,SPORTING GOODS STORES
04/07/17,SOLD ESTATES MANAGEMENT,SCREWFIX GUILDFORD,11.57,DAY TO DAY MAINTENANCE,"BUILDING MATERIALS, LUMBER STORES"
04/07/17,FAMILIES WOKING,ASDA STORES 4823,12.48,PURCHASE OF FOOD (RAW MATERIALS),"GROCERY STORES, SUPERMARKETS"
04/07/17,TARGETED INTERVENTION,WOKING BOROUGH COUNCIL,2.60,EDUC VISITS/HOLS/CAMPS/TOYS,AUTOMOBILE PARKING LOTS AND GARAGES
04/07/17,ISPSB - ADAPTATIONS & IMPROVEMENTS,NRS HEALTHCARE,51.86,EQUIPMENT,DENTAL/LAB/MED/OPHTHALMIC HOSP EQUIP & SUPPLIES
04/07/17,MALLOW CRESCENT,WWW ESPARES CO UK,10.48,EQUIPMENT,ELECTRICAL PARTS AND EQUIPMENT
04/07/17,WOODLANDS COMMUNITY HOME,POST OFFICE COUNTER,39.00,POSTAGE AND COURIER CHARGES,POSTAL SERVICES-GOVERNMENT ONLY
04/07/17,ISPSB - ADAPTATIONS & IMPROVEMENTS,WOKING B C TELEPHONE,25.45,MISCELLANEOUS STAFF TRAVEL,GOVERNMENT SERVICES-NOT ELSEWHERE CLASSIFIED
04/07/17,FAMILY WORKFORCE DEVELOPMENT EAST,AMAZON UK MARKETPLACE,8.40,STATIONERY,BOOK STORES
04/07/17,YSS YOUTH CENTRE IMPROVEMENTS,AMAZON EU,62.98,EQUIPMENT,DIRECT MARKETING-OTHER DIRECT MARKETERS/NOT ELSEW.
04/07/17,LEAVING CARE PACKAGES,TRAVELODGE,77.25,INDEPENDENT LIVING PLACEMENTS,TRAVELODGE
04/07/17,TARGETED INTERVENTION,FREEDOM LEISURE,28.00,EDUC VISITS/HOLS/CAMPS/TOYS,GOVERNMENT SERVICES-NOT ELSEWHERE CLASSIFIED
04/07/17,TARGETED INTERVENTION,COSTA,6.80,EDUC VISITS/HOLS/CAMPS/TOYS,"EATING PLACES, RESTAURANTS"
04/07/17,HOPE SERVICE - WEST,COSTA COFFEE 43037185,7.60,REFRESHMENT COSTS,FAST FOOD RESTAURANTS
04/07/17,CHEYNE WALK COMMUNITY HOME,TESCO STORES 2560,19.15,PURCHASE OF FOOD (RAW MATERIALS),"GROCERY STORES, SUPERMARKETS"
04/07/17,TARGETED INTERVENTION,COSTA,6.40,EDUC VISITS/HOLS/CAMPS/TOYS,"EATING PLACES, RESTAURANTS"
04/07/17,TARGETED INTERVENTION,WWW.TENPIN.CO.UK,10.59,EDUC VISITS/HOLS/CAMPS/TOYS,"CLUBS-CNTRY,MBRSHIP(ATHLET,REC,SPRTS,PRIVATE GOLF"
04/07/17,ROW AREA1 GFD SYH RNY SPL               ,SCREWFIX GUILDFORD,23.99,PURCHASE OF BUILDING MATERIALS,"BUILDING MATERIALS, LUMBER STORES"
04/07/17,ROW VOLUNTEERS WEST                     ,TRADEFIX DIRECT,58.97,PURCHASE OF BUILDING MATERIALS,CONSTRUCTION MATERIALS NOT ELSEWHERE CLASSIFIED
04/07/17,NE CARE - NON-LAC CP & COURT,WAYFAIR STORES LIM,223.99,CHILDREN ACT SEC 17 PAYMENTS,DIRECT MARKETING-COMBINATION CATALOG/RETAIL MERCH.
04/07/17,HILLSIDE,SAINSBURYS 0675,44.69,PURCHASE OF FOOD (RAW MATERIALS),"GROCERY STORES, SUPERMARKETS"
04/07/17,IMT CRITICAL ENVIRONMENTS,AMAZON.CO.UK,61.76,EQUIPMENT,MISCELLANEOUS AND SPECIALTY RETAIL STORES
04/07/17,RUTH HOUSE,PAYPAL  N.S.S EBAY,19.50,EQUIPMENT,VARIETY STORES
04/07/17,ROW VOLUNTEERS EAST                     ,ESSO MRH ROUNDABOUT,14.79,PETROL/DIESEL ALL OFF BUSINESS,SERVICE STATIONS WITH OR WITHOUT ANCILLARY SERVICE
04/07/17,EPSOM & EWELL CMHRS CARE,HMCTS-SURREY125,75.00,FEES,FINES
04/07/17,ROW VOLUNTEERS EAST                     ,CHOICE VEHICLE RENTALS,43.50,HIRE OF VEHICLES,AUTOMOBILE RENTAL AGENCY-NOT ELSEWHERE CLASSIFIED
04/07/17,SE CARE - CP & COURT LAC,ARGOS RETAIL GROUP,59.99,EQUIPMENT,DISCOUNT STORES
04/07/17,FAIRCROFT COMMUNITY HOME,TESCO STORE 2812,99.20,PURCHASE OF FOOD (RAW MATERIALS),"GROCERY STORES, SUPERMARKETS"
04/07/17,EXTENDED HOPE,TESCO STORE 2590,13.28,PURCHASE OF FOOD (RAW MATERIALS),"GROCERY STORES, SUPERMARKETS"
04/07/17,EXTENDED HOPE,TESCO STORE 2590,75.14,PURCHASE OF FOOD (RAW MATERIALS),"GROCERY STORES, SUPERMARKETS"
04/07/17,ACL CENTRAL EXPENDITURE,TESCO STORE 2160,120.44,REFRESHMENT COSTS,"GROCERY STORES, SUPERMARKETS"
04/07/17,ACL CENTRAL EXPENDITURE,TESCO STORE 2160,56.37,REFRESHMENT COSTS,"GROCERY STORES, SUPERMARKETS"
04/07/17,COVEHAM,SAINSBURYS TO YOU 0687,43.20,CLEANING MATERIALS,"GROCERY STORES, SUPERMARKETS"
04/07/17,HOLLAND CLOSE RESIDENTIAL HOME,TESCO DELIVERY SAVER2,72.00,PURCHASE OF FOOD (RAW MATERIALS),DIRECT MARKETING-CONTINUITY/SUBSCRIPTION MERCHANTS
04/07/17,TRANSPORT,AMZ VASUTECH,-31.20,COMPUTER CONSUMABLES,MISCELLANEOUS AND SPECIALTY RETAIL STORES
04/07/17,COVEHAM,SAINSBURYS TO YOU 0687,-3.00,REFRESHMENT COSTS,"GROCERY STORES, SUPERMARKETS"
04/07/17,HOLLAND CLOSE RESIDENTIAL HOME,AMZ AMAZON.CO.UK,-24.66,EQUIPMENT,MISCELLANEOUS AND SPECIALTY RETAIL STORES
04/07/17,HOLLAND CLOSE RESIDENTIAL HOME,AMZ IZILLA,-77.95,EQUIPMENT,MISCELLANEOUS AND SPECIALTY RETAIL STORES
05/07/17,FAIRCROFT COMMUNITY HOME,PRIMARK 493,7.00,3RD PARTY PAYMENTS PRIVATE INDIV,FAMILY CLOTHING STORES
05/07/17,TARGETED INTERVENTION,TOP GOLF LTD,9.55,EDUC VISITS/HOLS/CAMPS/TOYS,"CLUBS-CNTRY,MBRSHIP(ATHLET,REC,SPRTS,PRIVATE GOLF"
05/07/17,COMMERCIAL TEAM,PREMIER INN,403.96,TRAINING EXPENSES EXTERNAL GENERAL,PREMIER INN
05/07/17,WOODLANDS COMMUNITY HOME,SHELLEY NEWS,3.30,REFRESHMENT COSTS,"GROCERY STORES, SUPERMARKETS"
05/07/17,COVEHAM,AMAZON.CO.UK,8.98,"CLOTHING, UNIFORM AND LAUNDRY",MISCELLANEOUS AND SPECIALTY RETAIL STORES
05/07/17,CORONER,AMAZON UK RETAIL AMAZO,79.60,STATIONERY,MISCELLANEOUS AND SPECIALTY RETAIL STORES
05/07/17,TS SERVICE MANAGEMENT,PREMIER INN 44534755,-128.99,SUBSISTENCE AND CONFERENCE EXPENSES,"EATING PLACES, RESTAURANTS"
05/07/17,ARUNDEL,ASDA SUPERSTORE,24.00,EQUIPMENT,"GROCERY STORES, SUPERMARKETS"
05/07/17,ARUNDEL,ASDA SUPERSTORE,56.70,CLEANING MATERIALS,"GROCERY STORES, SUPERMARKETS"
05/07/17,ARUNDEL,ASDA SUPERSTORE,40.00,EQUIPMENT,"GROCERY STORES, SUPERMARKETS"
05/07/17,FAMILIES REIGATE AND BANSTREAD,TESCO STORE 3235,19.92,PURCHASE OF FOOD (RAW MATERIALS),"GROCERY STORES, SUPERMARKETS"
05/07/17,FAMILIES REIGATE AND BANSTREAD,TESCO STORE 3235,12.84,PURCHASE OF FOOD (RAW MATERIALS),"GROCERY STORES, SUPERMARKETS"
05/07/17,ACL CENTRAL EXPENDITURE,AMAZON UK MARKETPLACE,54.74,EQUIPMENT,BOOK STORES
05/07/17,FAIRCROFT COMMUNITY HOME,WOWCHER,25.00,EDUC VISITS/HOLS/CAMPS/TOYS,OTHER SERVICES (NOT ELSEWHERE CLASSIFIED)
05/07/17,CHEYNE WALK COMMUNITY HOME,GPW FAST FOODS LIMITED,8.30,PURCHASE OF FOOD (RAW MATERIALS),FAST FOOD RESTAURANTS
05/07/17,SOUTH WEST OUTREACH,AMAZON UK RETAIL AMAZO,78.76,EQUIPMENT,MISCELLANEOUS AND SPECIALTY RETAIL STORES
05/07/17,HOLLAND CLOSE RESIDENTIAL HOME,GARRETT APPLIANCES,45.68,EQUIPMENT,ELECTRICAL PARTS AND EQUIPMENT
05/07/17,FAMILIES WAVERLEY,CO-OP GROUP 500340,5.22,PURCHASE OF FOOD (RAW MATERIALS),"GROCERY STORES, SUPERMARKETS"
05/07/17,BURBANK COMMUNITY HOME,W M MORRISONS,3.61,PURCHASE OF FOOD (RAW MATERIALS),"GROCERY STORES, SUPERMARKETS"
05/07/17,SE SECTION 17 CARE,LYNWOOD GUEST HOUSE,40.00,CHILDREN ACT SEC 17 PAYMENTS,"LODGING-HOTELS,MOTELS,RESORTS-NOT CLASSIFIED"
05/07/17,CHEYNE WALK COMMUNITY HOME,HARBOUR PARK,7.19,PURCHASE OF FOOD (RAW MATERIALS),"AMUSEMENT PARKS,CARNIVALS,CIRCUS,FORTUNE TELLERS"
05/07/17,CHEYNE WALK COMMUNITY HOME,TESCO STORES 6320,2.25,PURCHASE OF FOOD (RAW MATERIALS),"GROCERY STORES, SUPERMARKETS"
05/07/17,TARGETED INTERVENTION,CAR PARKS SPH,3.50,EDUC VISITS/HOLS/CAMPS/TOYS,GOVERNMENT SERVICES-NOT ELSEWHERE CLASSIFIED
05/07/17,HERITAGE PUBLIC SERVICE,W M MORRISONS,15.97,REFRESHMENT COSTS,"GROCERY STORES, SUPERMARKETS"
05/07/17,ARUNDEL,TESCO STORES 5999,90.10,REFRESHMENT COSTS,"GROCERY STORES, SUPERMARKETS"
05/07/17,SOLD DAY TO DAY OPERATIONS,AMAZON.CO.UK,11.95,DAY TO DAY MAINTENANCE,MISCELLANEOUS AND SPECIALTY RETAIL STORES
05/07/17,CHEYNE WALK COMMUNITY HOME,AMAZON EU,70.51,EDUC VISITS/HOLS/CAMPS/TOYS,DIRECT MARKETING-OTHER DIRECT MARKETERS/NOT ELSEW.
05/07/17,FAIRCROFT COMMUNITY HOME,STEP IN FASHIONS L,14.90,3RD PARTY PAYMENTS PRIVATE INDIV,WOMEN'S READY TO WEAR STORES
05/07/17,FAIRCROFT COMMUNITY HOME,J D SPORTS 105,45.00,"CLOTHING, UNIFORM AND LAUNDRY",SPORTING GOODS STORES
05/07/17,EXTENDED HOPE,AMAZON UK MARKETPLACE,7.00,EQUIPMENT,BOOK STORES
05/07/17,TARGETED INTERVENTION,"CHERTSEY, FORDWATER RO",3.80,EDUC VISITS/HOLS/CAMPS/TOYS,DEPARTMENT STORES
05/07/17,FAIRCROFT COMMUNITY HOME,H SAMUEL,25.00,3RD PARTY PAYMENTS PRIVATE INDIV,"CLOCK, JEWELRY, WATCH, AND SILVERWARE STORE"
05/07/17,QUADRANT COURT WOKING,AMAZON.CO.UK,25.98,EQUIPMENT,MISCELLANEOUS AND SPECIALTY RETAIL STORES
05/07/17,FAMILIES SPELTHORNE,TESCO STORE 2047,11.68,PURCHASE OF FOOD (RAW MATERIALS),"GROCERY STORES, SUPERMARKETS"
05/07/17,CAMHS SOCIAL WORKERS,MIXAM UK LTD,9.00,PUBLICITY,MISCELLANEOUS PUBLISHING AND PRINTING
05/07/17,EPSOM & EWELL LOCAL CARE OP,HMCTS-SUSSEX126,75.00,FEES,FINES
05/07/17,FAMILIES MOLE VALLEY,TESCO STORES 5371,10.43,PURCHASE OF FOOD (RAW MATERIALS),"GROCERY STORES, SUPERMARKETS"
05/07/17,IMT CRITICAL ENVIRONMENTS,AMAZON.CO.UK,22.50,COMPUTER HARDWARE,MISCELLANEOUS AND SPECIALTY RETAIL STORES
05/07/17,TARGETED INTERVENTION,TOP GOLF LTD,5.50,EDUC VISITS/HOLS/CAMPS/TOYS,"CLUBS-CNTRY,MBRSHIP(ATHLET,REC,SPRTS,PRIVATE GOLF"
05/07/17,CHILDREN'S RIGHTS TEAM,WWW.GROUPON.CO.UK,9.97,EQUIPMENT,"BUYING/SHOPPING CLUBS, SERVICES"
05/07/17,CYWS COMMISSIONING,BIDDLES OF GUILDFORD,17.46,STATIONERY,"OFFICE, SCHOOL SUPPLY, AND STATIONERY STORES"
05/07/17,HOPE SERVICE - WEST,THE RICHMON FELLOW SHI,112.95,UPKEEP OF GROUNDS,LAWN AND GARDEN SUPPLY STORES
05/07/17,SURREY ARTS GENERAL,AMAZON.CO.UK,21.22,EQUIPMENT,MISCELLANEOUS AND SPECIALTY RETAIL STORES
05/07/17,SURREY ARTS GENERAL,AMAZON UK MARKETPLACE,6.97,EQUIPMENT,BOOK STORES
05/07/17,SURREY ARTS GENERAL,AMAZON UK MARKETPLACE,2.49,EQUIPMENT,BOOK STORES
05/07/17,HILLSIDE,SAINSBURYS 0680,56.04,PURCHASE OF FOOD (RAW MATERIALS),"GROCERY STORES, SUPERMARKETS"
05/07/17,MALLOW CRESCENT,PARKDEAN HOLIDAY P,364.39,EDUC VISITS/HOLS/CAMPS/TOYS,CAMPGROUNDS AND TRAILER PARKS
05/07/17,FAMILIES SURREY HEATH,SAINSBURYS SACAT 0675,10.05,EQUIPMENT,"GROCERY STORES, SUPERMARKETS"
05/07/17,COUNTY HALL,SCREWFIX DIRECT,148.94,DAY TO DAY MAINTENANCE,"BUILDING MATERIALS, LUMBER STORES"
05/07/17,MALLOW CRESCENT,PARKDEAN HOLIDAY P,364.39,EDUC VISITS/HOLS/CAMPS/TOYS,CAMPGROUNDS AND TRAILER PARKS
05/07/17,NW CARE - CP & COURT LAC,SURREY CC CARD PAY,11.00,FEES,COMPUTER NETWORK/INFORMATION SERVICES
05/07/17,CSF COMMUNICATIONS TEAM,HOO HOOTSUITE MEDIA I,9.59,SUBSCRIPTIONS,DIRECT MARKETING-CONTINUITY/SUBSCRIPTION MERCHANTS
05/07/17,NW CP & COURT TEAM,SURREY CC CARD PAY,11.00,FEES,COMPUTER NETWORK/INFORMATION SERVICES
05/07/17,NW CP & COURT TEAM,SURREY CC CARD PAY,11.00,FEES,COMPUTER NETWORK/INFORMATION SERVICES
05/07/17,HOPE SERVICE - WEST,ASDA STORES 4873,2.25,REFRESHMENT COSTS,"GROCERY STORES, SUPERMARKETS"
05/07/17,NW CP & COURT TEAM,SURREY CC CARD PAY,11.00,FEES,COMPUTER NETWORK/INFORMATION SERVICES
05/07/17,NW CP & COURT TEAM,SURREY CC CARD PAY,11.00,FEES,COMPUTER NETWORK/INFORMATION SERVICES
05/07/17,IMT PRODUCTION APPLICATIONS TEAM,RACKSPACE EMAIL & APPS,6.14,COMPUTER SERVICES,COMPUTER NETWORK/INFORMATION SERVICES
05/07/17,COVEHAM,FARRANTS,4.05,STATIONERY,STATIONERY/OFFICE SUPPLIES/PRINTING & WRITING PAP.
05/07/17,HOPE SERVICE - WEST,THE RICHMON FELLOW SHI,42.66,UPKEEP OF GROUNDS,LAWN AND GARDEN SUPPLY STORES
05/07/17,CS BUSINESS SUPPORT WEST,AMAZON UK MARKETPLACE,24.98,COMPUTER HARDWARE,BOOK STORES
05/07/17,PROPERTY OPERATIONS TEAM,WICKES 260,38.25,PURCHASE OF BUILDING MATERIALS,HOME SUPPLY WAREHOUSE STORES
05/07/17,FAMILY GROUP CONFERENCES,AMAZON EU,19.66,BOOKS,DIRECT MARKETING-OTHER DIRECT MARKETERS/NOT ELSEW.
05/07/17,HOPE SERVICE - WEST,TESCO STORES 6320,7.40,PURCHASE OF FOOD (RAW MATERIALS),"GROCERY STORES, SUPERMARKETS"
05/07/17,BURBANK COMMUNITY HOME,SAINSBURYS SACAT 0686,10.75,PURCHASE OF FOOD (RAW MATERIALS),"GROCERY STORES, SUPERMARKETS"
05/07/17,COMMUNICATIONS TEAM,WPCHRG.COM WPCHRG.COM,85.00,SUBSCRIPTIONS,COMPUTER NETWORK/INFORMATION SERVICES
05/07/17,TS SERVICE MANAGEMENT,WWW.CRIMELINE.INFO,132.00,SUBSCRIPTIONS,BUSINESS SERVICES-NOT ELSEWHERE CLASSIFIED
05/07/17,E&I - COMMUNITY RECYCLING CENTRES       ,GOOGLE  ADWS2060179426,500.00,PUBLICITY,DIRECT MARKETING-CONTINUITY/SUBSCRIPTION MERCHANTS
05/07/17,MALLOW CRESCENT,SAINSBURYS TO YOU 0652,32.55,PURCHASE OF FOOD (RAW MATERIALS),"GROCERY STORES, SUPERMARKETS"
05/07/17,MALLOW CRESCENT,SAINSBURYS TO YOU 0652,111.19,PURCHASE OF FOOD (RAW MATERIALS),"GROCERY STORES, SUPERMARKETS"
05/07/17,BURBANK COMMUNITY HOME,SAINSBURYS TO YOU 0686,230.62,PURCHASE OF FOOD (RAW MATERIALS),"GROCERY STORES, SUPERMARKETS"
05/07/17,CHEYNE WALK COMMUNITY HOME,TESCO-STORES 6647,177.78,PURCHASE OF FOOD (RAW MATERIALS),"GROCERY STORES, SUPERMARKETS"
05/07/17,FAMILIES SPELTHORNE,POUNDLAND LTD,1.00,REFRESHMENT COSTS,DISCOUNT STORES
05/07/17,COVEHAM,AMAZON UK MARKETPLACE,29.99,TELECOMMUNICATION CHARGES,BOOK STORES
05/07/17,BURBANK COMMUNITY HOME,SAINSBURYS TO YOU 0686,-1.80,PURCHASE OF FOOD (RAW MATERIALS),"GROCERY STORES, SUPERMARKETS"
06/07/17,WOODLANDS COMMUNITY HOME,J & E TRADERS LIMITED,4.67,REFRESHMENT COSTS,"PACKAGE STORES, BEER, WINE, LIQUOR"
06/07/17,ARUNDEL,BUTLINS HOLIDAYS,402.10,EDUC VISITS/HOLS/CAMPS/TOYS,"LODGING-HOTELS,MOTELS,RESORTS-NOT CLASSIFIED"
06/07/17,ARUNDEL,BUTLINS HOLIDAYS,"1,000.00",EDUC VISITS/HOLS/CAMPS/TOYS,"LODGING-HOTELS,MOTELS,RESORTS-NOT CLASSIFIED"
06/07/17,WOODLANDS COMMUNITY HOME,BRITISH A,"1,915.35",EDUC VISITS/HOLS/CAMPS/TOYS,BRITISH A
06/07/17,DRAINAGE MAINTENANCE - COUNTYWIDE NPR,AMZ AMAZON.CO.UK +44 2,-180.76,EQUIPMENT,MISCELLANEOUS AND SPECIALTY RETAIL STORES
06/07/17,WOODLANDS COMMUNITY HOME,CREME CAFE WINDSOR,17.25,REFRESHMENT COSTS,"EATING PLACES, RESTAURANTS"
06/07/17,ARUNDEL,AMAZON UK RETAIL AMAZO,99.99,EQUIPMENT,MISCELLANEOUS AND SPECIALTY RETAIL STORES
06/07/17,ACL CENTRAL EXPENDITURE,W M MORRISONS,12.80,REFRESHMENT COSTS,"GROCERY STORES, SUPERMARKETS"
06/07/17,FAMILIES WAVERLEY,HOMEBASE LTD 305,10.12,PURCHASE OF FOOD (RAW MATERIALS),"BUILDING MATERIALS, LUMBER STORES"
06/07/17,FAMILIES TANDRIDGE,SAINSBURYS SACAT 4137,2.50,PURCHASE OF FOOD (RAW MATERIALS),"GROCERY STORES, SUPERMARKETS"
06/07/17,WOODLANDS COMMUNITY HOME,HOMEBASE LTD 084,9.99,EDUC VISITS/HOLS/CAMPS/TOYS,"BUILDING MATERIALS, LUMBER STORES"
06/07/17,FAIRCROFT COMMUNITY HOME,SAINSBURYS PFS0473,64.03,VEHICLE RUNNING COSTS,SERVICE STATIONS WITH OR WITHOUT ANCILLARY SERVICE
06/07/17,WOODLANDS COMMUNITY HOME,SAINSBURYS 0686,12.00,EDUC VISITS/HOLS/CAMPS/TOYS,"GROCERY STORES, SUPERMARKETS"
06/07/17,WOODLANDS COMMUNITY HOME,SAINSBURYS 0686,10.00,EQUIPMENT,"GROCERY STORES, SUPERMARKETS"
06/07/17,WOODLANDS COMMUNITY HOME,SAINSBURYS 0686,6.00,DAY TO DAY MAINTENANCE,"GROCERY STORES, SUPERMARKETS"
06/07/17,WOODLANDS COMMUNITY HOME,SAINSBURYS 0686,11.95,PURCHASE OF FOOD (RAW MATERIALS),"GROCERY STORES, SUPERMARKETS"
06/07/17,NE EDUCATION PSYCHOLOGISTS,WWW.GL-EDUCATION.C,40.94,EQUIPMENT,BOOK STORES
06/07/17,FAMILIES WAVERLEY,SAINSBURYS SACAT 0670,2.05,PURCHASE OF FOOD (RAW MATERIALS),"GROCERY STORES, SUPERMARKETS"
06/07/17,FAMILIES WAVERLEY,SAINSBURYS SACAT 0670,2.31,PURCHASE OF FOOD (RAW MATERIALS),"GROCERY STORES, SUPERMARKETS"
06/07/17,FAMILIES TANDRIDGE,WAITROSE 838,6.41,PURCHASE OF FOOD (RAW MATERIALS),"GROCERY STORES, SUPERMARKETS"
06/07/17,REMA ETHNIC/LANGUAGE MINORITY SUPPORT,WWW.SURREY.GOV.UK,312.50,TRAINING EXPENSES EXTERNAL GENERAL,GOVERNMENT SERVICES-NOT ELSEWHERE CLASSIFIED
06/07/17,YSS YOUTH CENTRE IMPROVEMENTS,AMAZON UK MARKETPLACE,27.70,EQUIPMENT,BOOK STORES
06/07/17,FAIRCROFT COMMUNITY HOME,THE HEAD OFFICE,60.00,EQUIPMENT,BARBER AND BEAUTY SHOPS
06/07/17,ARUNDEL,TESCO STORES 5999,44.18,REFRESHMENT COSTS,"GROCERY STORES, SUPERMARKETS"
06/07/17,SE CARE - LAC,WWW.AIRHOPTRAMPELINEOA,39.00,CHILDREN ACT SEC 17 PAYMENTS,RECREATIONAL AND SPORTING CAMPS
06/07/17,ACCESS PROGRAMMES,AMAZON EU,32.97,EQUIPMENT,DIRECT MARKETING-OTHER DIRECT MARKETERS/NOT ELSEW.
06/07/17,ACCESS PROGRAMMES,AMAZON UK MARKETPLACE,31.44,EQUIPMENT,BOOK STORES
06/07/17,ACCESS PROGRAMMES,AMAZON UK MARKETPLACE,16.17,EQUIPMENT,BOOK STORES
06/07/17,WOODLANDS COMMUNITY HOME,CINEWORLD,99.39,EDUC VISITS/HOLS/CAMPS/TOYS,"THEATRICAL PRODUCERS(EXCL MOTION PIX),TICKET AGNCY"
06/07/17,WOODLANDS COMMUNITY HOME,CINEWORLD UNLIMIT,4.95,EDUC VISITS/HOLS/CAMPS/TOYS,"THEATRICAL PRODUCERS(EXCL MOTION PIX),TICKET AGNCY"
06/07/17,FAIRCROFT COMMUNITY HOME,MCAFEE  WWW.MCAFEE.COM,31.99,EQUIPMENT,DIRECT MARKETING-CONTINUITY/SUBSCRIPTION MERCHANTS
06/07/17,WOODLANDS COMMUNITY HOME,ATIX    2034182,225.00,EDUC VISITS/HOLS/CAMPS/TOYS,TOURIST ATTRACTIONS AND EXHIBITS
06/07/17,LIBERTAS COMMUNITY HOME,THE THAI TERRACE,42.85,EDUC VISITS/HOLS/CAMPS/TOYS,"EATING PLACES, RESTAURANTS"
06/07/17,ROW VOLUNTEERS WEST                     ,SHELL BURNT CM 199,15.00,PETROL/DIESEL ALL OFF BUSINESS,SERVICE STATIONS WITH OR WITHOUT ANCILLARY SERVICE
06/07/17,ENSEMBLES & TOURS,SOUTHERN PERCUSSION LT,189.15,EQUIPMENT,"MUSIC STORES-INSTRUMENTS, PIANOS, SHEET MUSIC"
06/07/17,AD OPERATIONS HIGHWAYS AND COUNTRYSIDE,CURRYS ONLINE,44.99,EQUIPMENT,ELECTRONIC SALES
06/07/17,HOPE SERVICE - WEST,AMAZON UK MARKETPLACE,1.10,CURRICULUM CONSUMABLES,BOOK STORES
06/07/17,PROPERTY OPERATIONS TEAM,C BREWER & SONS,9.59,PURCHASE OF BUILDING MATERIALS,"BUILDING MATERIALS, LUMBER STORES"
06/07/17,FAIRCROFT COMMUNITY HOME,HOME BARGAINS BYFLEET,11.97,EQUIPMENT,HARDWARE STORES
06/07/17,CYWS COMMISSIONING,POST OFFICE COUNTER,5.04,POSTAGE AND COURIER CHARGES,POSTAL SERVICES-GOVERNMENT ONLY
06/07/17,TARGETED INTERVENTION,GODSTONE FARM LIMITED,17.80,EDUC VISITS/HOLS/CAMPS/TOYS,RECREATION SERVICES (NOT ELSEWHERE CLASSIFIED)
06/07/17,PROPERTY OPERATIONS TEAM,B & Q 1029,45.00,PURCHASE OF BUILDING MATERIALS,"BUILDING MATERIALS, LUMBER STORES"
06/07/17,CHEYNE WALK COMMUNITY HOME,"BOOTS,HORSHAM",2.40,PRINTING,"DRUG STORES, PHARMACIES"
06/07/17,HERITAGE MANAGER,W M MORRISONS,20.00,EQUIPMENT,"GROCERY STORES, SUPERMARKETS"
06/07/17,CHEYNE WALK COMMUNITY HOME,CARD FACTORY,5.00,3RD PARTY PAYMENTS PRIVATE INDIV,"GIFT, CARD, NOVELTY AND SOUVENIR SHOPS"
06/07/17,TARGETED INTERVENTION,WELCOME BREAK STARBUCK,8.05,EDUC VISITS/HOLS/CAMPS/TOYS,"MISC FOOD STORE-CONVENIENCE,MRKT,SPLTY,VENDNG MACS"
06/07/17,TARGETED INTERVENTION,M&S SIMPLY FOOD,3.00,EDUC VISITS/HOLS/CAMPS/TOYS,"MISC FOOD STORE-CONVENIENCE,MRKT,SPLTY,VENDNG MACS"
06/07/17,CHEYNE WALK COMMUNITY HOME,DUNELM LTD,23.24,3RD PARTY PAYMENTS PRIVATE INDIV,"DRAPERY, UPOLSTERY, AND WINDOW COVERINGS STORES"
06/07/17,SE CARE - CP & COURT LAC,SURREY CC CARD PAY,31.00,CHILDREN ACT SEC 17 PAYMENTS,COMPUTER NETWORK/INFORMATION SERVICES
06/07/17,RUTH HOUSE,WWW.OFFICESTATIONARYWA,33.26,STATIONERY,"OFFICE, SCHOOL SUPPLY, AND STATIONERY STORES"
06/07/17,HOPE SERVICE - WEST,SAINSBURYS LOC 6152,16.30,PURCHASE OF FOOD (RAW MATERIALS),"GROCERY STORES, SUPERMARKETS"
06/07/17,ROW VOLUNTEERS WEST                     ,SHELL BURNT CM 199,10.76,REFRESHMENT COSTS,SERVICE STATIONS WITH OR WITHOUT ANCILLARY SERVICE
06/07/17,LIBERTAS COMMUNITY HOME,MARTIN MCCOLL,47.98,NEWSPAPER AND PERIODICALS,"MISC FOOD STORE-CONVENIENCE,MRKT,SPLTY,VENDNG MACS"
06/07/17,FAMILIES SURREY HEATH,THE RANGE,11.04,CURRICULUM CONSUMABLES,DEPARTMENT STORES
06/07/17,FAMILIES SURREY HEATH,THE RANGE,15.00,CURRICULUM CONSUMABLES,DEPARTMENT STORES
06/07/17,CHEYNE WALK COMMUNITY HOME,CARD FACTORY,5.34,STATIONERY,"GIFT, CARD, NOVELTY AND SOUVENIR SHOPS"
06/07/17,SYG 2015                                ,TIMPSON LTD,40.00,EQUIPMENT,"HAT CLEANING SHOPS, SHOE REPAIR SHOPS, SHOE SHINE"
06/07/17,HILLSIDE,SAINSBURYS 0675,14.70,PURCHASE OF FOOD (RAW MATERIALS),"GROCERY STORES, SUPERMARKETS"
06/07/17,HILLSIDE,SAINSBURYS 0675,77.34,PURCHASE OF FOOD (RAW MATERIALS),"GROCERY STORES, SUPERMARKETS"
06/07/17,HOPE SERVICE - WEST,CHESSINGTON GARDEN CTR,62.98,UPKEEP OF GROUNDS,LAWN AND GARDEN SUPPLY STORES
06/07/17,SCHOOL APPEALS,TESCO STORE 3324,55.40,REFRESHMENT COSTS,"GROCERY STORES, SUPERMARKETS"
06/07/17,LOCAL DELIVERY GROUP,AMAZON EU,26.63,EQUIPMENT,DIRECT MARKETING-OTHER DIRECT MARKETERS/NOT ELSEW.
06/07/17,MALLOW CRESCENT,AMAZON EU,14.48,EQUIPMENT,DIRECT MARKETING-OTHER DIRECT MARKETERS/NOT ELSEW.
06/07/17,EPSOM & EWELL CMHRS CARE,HMCTS-SURREY125,75.00,FEES,FINES
06/07/17,SOLD DAY TO DAY OPERATIONS,WHITEWATER THE CANOE C,180.00,EQUIPMENT,SPORTING GOODS STORES
06/07/17,BURBANK COMMUNITY HOME,WICKES,37.35,PURCHASE OF BUILDING MATERIALS,HOME SUPPLY WAREHOUSE STORES
06/07/17,NE TEACHERS,WWW.ELKLAN.CO.UK,80.00,TRAINING EXPENSES EXTERNAL GENERAL,SCHOOLS & EDUCATIONAL SVC-NOT ELSEWHERE CLASSIFIED
06/07/17,LOCAL DELIVERY GROUP,AMAZON UK MARKETPLACE,14.99,EQUIPMENT,BOOK STORES
06/07/17,NE TEACHERS,WWW.ELKLAN.CO.UK,55.00,TRAINING EXPENSES EXTERNAL GENERAL,SCHOOLS & EDUCATIONAL SVC-NOT ELSEWHERE CLASSIFIED
06/07/17,SE CARE - CP & COURT LAC,SURREY CC CARD PAY,31.00,CHILDREN ACT SEC 17 PAYMENTS,COMPUTER NETWORK/INFORMATION SERVICES
06/07/17,KARIBU COMMUNITY HOME,NOTONTHEHIGHSTREET.COM,24.00,EDUC VISITS/HOLS/CAMPS/TOYS,MISCELLANEOUS AND SPECIALTY RETAIL STORES
06/07/17,NW CARE - LAC,SURREY CC CARD PAY,21.00,FEES,COMPUTER NETWORK/INFORMATION SERVICES
06/07/17,WOODLANDS COMMUNITY HOME,SAINSBURYS TO YOU 0686,24.05,PURCHASE OF FOOD (RAW MATERIALS),"GROCERY STORES, SUPERMARKETS"
06/07/17,WOODLANDS COMMUNITY HOME,SAINSBURYS TO YOU 0686,139.30,PURCHASE OF FOOD (RAW MATERIALS),"GROCERY STORES, SUPERMARKETS"
06/07/17,HOPE SERVICE - WEST,SAINSBURYS TO YOU 0686,64.90,PURCHASE OF FOOD (RAW MATERIALS),"GROCERY STORES, SUPERMARKETS"
06/07/17,PE/CDT MAINTENANCE OVERHEADS,WWW.EXPERTFITNESSUK.CO,98.45,EQUIPMENT,SPORTING GOODS STORES
06/07/17,NW SECTION 17 CARE,PREMIER INN,136.00,CHILDREN ACT SEC 17 PAYMENTS,PREMIER INN
06/07/17,ACL CENTRAL EXPENDITURE,TESCO DELIVERY SAVER2,7.00,REFRESHMENT COSTS,DIRECT MARKETING-CONTINUITY/SUBSCRIPTION MERCHANTS
06/07/17,WOODLANDS COMMUNITY HOME,SAINSBURYS TO YOU 0686,-2.35,PURCHASE OF FOOD (RAW MATERIALS),"GROCERY STORES, SUPERMARKETS"
06/07/17,RUTH HOUSE,AMAZON EU,11.36,BOOKS,DIRECT MARKETING-OTHER DIRECT MARKETERS/NOT ELSEW.
07/07/17,ASHTEAD YC,TESCO STORES 3235,6.55,PURCHASE OF FOOD (RAW MATERIALS),"GROCERY STORES, SUPERMARKETS"
07/07/17,FAMILIES WOKING,SHELL BURNT CM 199,4.24,PETROL/DIESEL ALL OFF BUSINESS,SERVICE STATIONS WITH OR WITHOUT ANCILLARY SERVICE
07/07/17,BURBANK COMMUNITY HOME,TESCO STORES-2025,19.16,PURCHASE OF FOOD (RAW MATERIALS),"GROCERY STORES, SUPERMARKETS"
07/07/17,FAIRCROFT COMMUNITY HOME,SAINSBURYS 0687,3.00,EQUIPMENT,"GROCERY STORES, SUPERMARKETS"
07/07/17,ARUNDEL,TESCO STORES 5999,158.53,REFRESHMENT COSTS,"GROCERY STORES, SUPERMARKETS"
07/07/17,ARUNDEL,TESCO STORES 5999,6.00,REFRESHMENT COSTS,"GROCERY STORES, SUPERMARKETS"
07/07/17,ASHTEAD YC,ASHTEAD PARK 350,16.53,PETROL/DIESEL ALL OFF BUSINESS,SERVICE STATIONS WITH OR WITHOUT ANCILLARY SERVICE
07/07/17,ASHTEAD YC,ASHTEAD PARK 350,85.50,PETROL/DIESEL ALL OFF BUSINESS,SERVICE STATIONS WITH OR WITHOUT ANCILLARY SERVICE
07/07/17,SW SECTION 17 CARE,TRAVELODGE,219.00,INDEPENDENT LIVING PLACEMENTS,TRAVELODGE
07/07/17,RUTH HOUSE,DIRECTBLINDS CO UK,49.97,EQUIPMENT,"DRAPERY, UPOLSTERY, AND WINDOW COVERINGS STORES"
07/07/17,FAMILIES WOKING,TESCO STORES 5706,7.64,REFRESHMENT COSTS,"GROCERY STORES, SUPERMARKETS"
07/07/17,FAMILIES REIGATE AND BANSTREAD,TESCO STORE 3235,14.13,PURCHASE OF FOOD (RAW MATERIALS),"GROCERY STORES, SUPERMARKETS"
07/07/17,FINANCIAL ASSESSMENTS AND BENEFITS TEAM,WWW.GOV.UK,20.00,LEGAL EXPENSES,PROFESSIONAL SERVICES-NOT ELSEWHERE CLASSIFIED
07/07/17,LEAVING CARE PACKAGES,WWW.GWR.COM,70.10,NON-STAFF RELATED TRANSPORT COSTS,PASSENGER RAILWAYS
07/07/17,WOODLANDS COMMUNITY HOME,TIMPSON LTD,16.95,"CLOTHING, UNIFORM AND LAUNDRY","HAT CLEANING SHOPS, SHOE REPAIR SHOPS, SHOE SHINE"
07/07/17,WOODLANDS COMMUNITY HOME,SAINSBURYS SACAT 0686,30.00,EDUC VISITS/HOLS/CAMPS/TOYS,"GROCERY STORES, SUPERMARKETS"
07/07/17,WOODLANDS COMMUNITY HOME,SAINSBURYS SACAT 0686,6.00,"CLOTHING, UNIFORM AND LAUNDRY","GROCERY STORES, SUPERMARKETS"
07/07/17,TARGETED INTERVENTION,CAR PARKS SPH,3.50,EDUC VISITS/HOLS/CAMPS/TOYS,GOVERNMENT SERVICES-NOT ELSEWHERE CLASSIFIED
07/07/17,WOODLANDS COMMUNITY HOME,WICKES,26.32,DAY TO DAY MAINTENANCE,HOME SUPPLY WAREHOUSE STORES
07/07/17,WOODLANDS COMMUNITY HOME,WICKES,9.98,EDUC VISITS/HOLS/CAMPS/TOYS,HOME SUPPLY WAREHOUSE STORES
07/07/17,RUTH HOUSE,PAYPAL  NAPLESUK,21.70,EQUIPMENT,"ANTIQUE SHOPS-SALES,REPAIRS,RESTORATION SERVICES"
07/07/17,NE CARE - CP & COURT LAC,HM PASSPORT,180.00,OTHER COMMUNITY CARE VOL,GOVERNMENT SERVICES-NOT ELSEWHERE CLASSIFIED
07/07/17,ACCESS PROGRAMMES,AMAZON UK RETAIL AMAZO,276.30,EQUIPMENT,MISCELLANEOUS AND SPECIALTY RETAIL STORES
07/07/17,TARGETED INTERVENTION,TWO RIVERS CAR PK,2.70,MISCELLANEOUS STAFF TRAVEL,AUTOMOBILE PARKING LOTS AND GARAGES
07/07/17,TARGETED INTERVENTION,NEW LOOK 1570,14.00,EXAMINATION FEES,WOMEN'S READY TO WEAR STORES
07/07/17,HOMELESSNESS PREVENTION PROJECT,NETWORK CARS AND CITY,38.94,TRANSPORT SOCIAL CARE-TAXI,LIMOUSINES AND TAXICABS
07/07/17,RUTH HOUSE,G J HONOUR,129.00,PURCHASE OF FOOD (RAW MATERIALS),"MISC FOOD STORE-CONVENIENCE,MRKT,SPLTY,VENDNG MACS"
07/07/17,SOUTH EAST AREA TEAM,WICKES,6.98,CURRICULUM CONSUMABLES,"BUILDING MATERIALS, LUMBER STORES"
07/07/17,WOODLANDS COMMUNITY HOME,BURGER KING,17.77,REFRESHMENT COSTS,"EATING PLACES, RESTAURANTS"
07/07/17,ISPSB - ADAPTATIONS & IMPROVEMENTS,APPLIANCEDIRECT CO,578.46,EQUIPMENT,COMPUTER SOFTWARE STORES
07/07/17,HOPE SERVICE - WEST,AMAZON UK MARKETPLACE,6.01,CURRICULUM CONSUMABLES,BOOK STORES
07/07/17,EXTENDED HOPE,AMAZON UK MARKETPLACE,43.95,CURRICULUM CONSUMABLES,BOOK STORES
07/07/17,ISPSB - ADAPTATIONS & IMPROVEMENTS,AMAZON UK MARKETPLACE,7.65,EDUC VISITS/HOLS/CAMPS/TOYS,BOOK STORES
07/07/17,WOODLANDS COMMUNITY HOME,POUNDLAND LTD 1247,24.70,EDUC VISITS/HOLS/CAMPS/TOYS,DISCOUNT STORES
07/07/17,WOODLANDS COMMUNITY HOME,POUNDLAND LTD 1247,2.00,EDUC VISITS/HOLS/CAMPS/TOYS,DISCOUNT STORES
07/07/17,BURBANK COMMUNITY HOME,W M MORRISONS,8.00,EQUIPMENT,"GROCERY STORES, SUPERMARKETS"
07/07/17,MISC EDCAT SUPPORT,AMAZON PRIME,7.99,COMPUTER HARDWARE,DIRECT MARKETING-CONTINUITY/SUBSCRIPTION MERCHANTS
07/07/17,QUADRANT COURT WOKING,ARGOS LTD,10.99,EQUIPMENT,DISCOUNT STORES
07/07/17,TARGETED INTERVENTION,HOEBRIDGE GOLF,40.00,EDUC VISITS/HOLS/CAMPS/TOYS,GOLF COURSES-PUBLIC
07/07/17,HOPE SERVICE - WEST,SAINSBURYS SACAT(4409),1.15,PURCHASE OF FOOD (RAW MATERIALS),"GROCERY STORES, SUPERMARKETS"
07/07/17,ADDLESTONE YC,TESCO STORES-2017,4.34,PURCHASE OF FOOD (RAW MATERIALS),"GROCERY STORES, SUPERMARKETS"
07/07/17,FAIRMOUNT HOUSE LEATHERHEAD,ARGOS RETAIL GROUP,38.99,EQUIPMENT,DISCOUNT STORES
07/07/17,TARGETED INTERVENTION,COSTA COFFEE,6.90,EDUC VISITS/HOLS/CAMPS/TOYS,FAST FOOD RESTAURANTS
07/07/17,FAMILIES WAVERLEY,SAINSBURYS SACAT 0665,10.25,PURCHASE OF FOOD (RAW MATERIALS),"GROCERY STORES, SUPERMARKETS"
07/07/17,KARIBU COMMUNITY HOME,BRIGHTON,33.00,EDUC VISITS/HOLS/CAMPS/TOYS,TOURIST ATTRACTIONS AND EXHIBITS
07/07/17,IMT CRITICAL ENVIRONMENTS,SP  YOUNGMANACCESS,9.36,EQUIPMENT,MEN'S AND WOMEN'S CLOTHING STORES
07/07/17,FAMILIES MOLE VALLEY,SPORTSDIRECT 53,18.03,EQUIPMENT,SPORTING GOODS STORES
07/07/17,HOPE SERVICE - WEST,TESCO STORES 6320,2.25,PURCHASE OF FOOD (RAW MATERIALS),"GROCERY STORES, SUPERMARKETS"
07/07/17,LOCAL DELIVERY GROUP,AMAZON UK MARKETPLACE,16.19,EQUIPMENT,BOOK STORES
07/07/17,HOPE SERVICE - WEST,THE NATIONAL TRUST,5.00,MISCELLANEOUS STAFF TRAVEL,"ORGANIZATIONS, CHARITABLE AND SOCIAL SERVICES"
07/07/17,HILLSIDE,SAINSBURYS 0675,40.45,PURCHASE OF FOOD (RAW MATERIALS),"GROCERY STORES, SUPERMARKETS"
07/07/17,LIBERTAS COMMUNITY HOME,SAINSBURYS 0652,24.40,PURCHASE OF FOOD (RAW MATERIALS),"GROCERY STORES, SUPERMARKETS"
07/07/17,LIBERTAS COMMUNITY HOME,SAINSBURYS 0652,128.38,PURCHASE OF FOOD (RAW MATERIALS),"GROCERY STORES, SUPERMARKETS"
07/07/17,LIBERTAS COMMUNITY HOME,SAINSBURYS 0652,9.80,EQUIPMENT,"GROCERY STORES, SUPERMARKETS"
07/07/17,HOPE SERVICE - WEST,TESCO STORES 6320,15.97,PURCHASE OF FOOD (RAW MATERIALS),"GROCERY STORES, SUPERMARKETS"
07/07/17,SPELTHORNE CMHRS CARE,HMCTS-SURREY125,75.00,FEES,FINES
07/07/17,BURBANK COMMUNITY HOME,SAINSBURYS SACAT 0686,5.20,PURCHASE OF FOOD (RAW MATERIALS),"GROCERY STORES, SUPERMARKETS"
07/07/17,BURBANK COMMUNITY HOME,W M MORRISONS,5.28,PURCHASE OF FOOD (RAW MATERIALS),"GROCERY STORES, SUPERMARKETS"
07/07/17,RUTH HOUSE,SAINSBURYS TO YOU 0686,71.60,PURCHASE OF FOOD (RAW MATERIALS),"GROCERY STORES, SUPERMARKETS"
07/07/17,RUTH HOUSE,SAINSBURYS TO YOU 0686,285.38,PURCHASE OF FOOD (RAW MATERIALS),"GROCERY STORES, SUPERMARKETS"
07/07/17,APPLEWOOD,DOMESTIC & GENERAL,203.88,EQUIPMENT,"INSURANCE SALES,UNDERWRITING,AND PREMIUMS"
07/07/17,APPLEWOOD,ASDA HOME SHOPPING,152.16,PURCHASE OF FOOD (RAW MATERIALS),"GROCERY STORES, SUPERMARKETS"
07/07/17,WOODLANDS COMMUNITY HOME,POUNDLAND LTD,6.10,EDUC VISITS/HOLS/CAMPS/TOYS,DISCOUNT STORES
07/07/17,WOODLANDS COMMUNITY HOME,POUNDLAND LTD,4.00,EDUC VISITS/HOLS/CAMPS/TOYS,DISCOUNT STORES
07/07/17,APPLEWOOD,ASDA HOME SHOPPING,-.74,PURCHASE OF FOOD (RAW MATERIALS),"GROCERY STORES, SUPERMARKETS"
07/07/17,SURREY ARTS GENERAL,AMAZON UK MARKETPLACE,14.24,EQUIPMENT,BOOK STORES
07/07/17,MALLOW CRESCENT,AMAZON EU,99.00,EQUIPMENT,DIRECT MARKETING-OTHER DIRECT MARKETERS/NOT ELSEW.
07/07/17,FAIRMOUNT HOUSE LEATHERHEAD,ARGOS LTD,-6.00,EQUIPMENT,DISCOUNT STORES
08/07/17,IMT CRITICAL ENVIRONMENTS,AMAZON EU,10.90,EQUIPMENT,DIRECT MARKETING-OTHER DIRECT MARKETERS/NOT ELSEW.
08/07/17,RUTH HOUSE,AMAZON UK MARKETPLACE,9.98,EQUIPMENT,BOOK STORES
08/07/17,ASHTEAD YC,TESCO STORE 2812,11.17,PURCHASE OF FOOD (RAW MATERIALS),"GROCERY STORES, SUPERMARKETS"
08/07/17,IMT PRODUCTION APPLICATIONS TEAM,RACKSPACE EMAIL & APPS,10.88,COMPUTER SERVICES,COMPUTER NETWORK/INFORMATION SERVICES
08/07/17,HOPE SERVICE - WEST,PAPERCHASE,20.30,CURRICULUM CONSUMABLES,"GIFT, CARD, NOVELTY AND SOUVENIR SHOPS"
08/07/17,ASHTEAD YC,TESCO STORES 5371,1.15,PURCHASE OF FOOD (RAW MATERIALS),"GROCERY STORES, SUPERMARKETS"
08/07/17,BURBANK COMMUNITY HOME,W M MORRISONS,44.83,PURCHASE OF FOOD (RAW MATERIALS),"GROCERY STORES, SUPERMARKETS"
08/07/17,CHEYNE WALK COMMUNITY HOME,CRAFT STORES,19.80,EDUC VISITS/HOLS/CAMPS/TOYS,"ARTIST SUPPLY STORES, CRAFT SHOPS"
08/07/17,AD OPERATIONS HIGHWAYS AND COUNTRYSIDE,AMAZON EU,320.12,EQUIPMENT,DIRECT MARKETING-OTHER DIRECT MARKETERS/NOT ELSEW.
08/07/17,KARIBU COMMUNITY HOME,TESCO STORE 2812,204.95,PURCHASE OF FOOD (RAW MATERIALS),"GROCERY STORES, SUPERMARKETS"
08/07/17,ASHTEAD YC,TESCO STORES 5371,9.55,PURCHASE OF FOOD (RAW MATERIALS),"GROCERY STORES, SUPERMARKETS"
08/07/17,HOLLAND CLOSE RESIDENTIAL HOME,TESCO-STORES 6647,151.59,PURCHASE OF FOOD (RAW MATERIALS),"GROCERY STORES, SUPERMARKETS"
08/07/17,ISPSB - ADAPTATIONS & IMPROVEMENTS,AMAZON.CO.UK,25.14,EDUC VISITS/HOLS/CAMPS/TOYS,MISCELLANEOUS AND SPECIALTY RETAIL STORES
08/07/17,HILLSIDE,TESCO STORE 3149,46.91,PURCHASE OF FOOD (RAW MATERIALS),"GROCERY STORES, SUPERMARKETS"
08/07/17,HILLSIDE,TESCO STORE 3149,182.57,PURCHASE OF FOOD (RAW MATERIALS),"GROCERY STORES, SUPERMARKETS"
08/07/17,HOPE SERVICE - WEST,AMAZON EU,6.03,CURRICULUM CONSUMABLES,DIRECT MARKETING-OTHER DIRECT MARKETERS/NOT ELSEW.
09/07/17,IMT CRITICAL ENVIRONMENTS,AMAZON UK MARKETPLACE,3.84,EQUIPMENT,BOOK STORES
09/07/17,WOODLANDS COMMUNITY HOME,WEST WITTERING ESTATE,16.15,REFRESHMENT COSTS,"EATING PLACES, RESTAURANTS"
09/07/17,RUTH HOUSE,SAINSBURYS 0686,54.49,EDUC VISITS/HOLS/CAMPS/TOYS,"GROCERY STORES, SUPERMARKETS"
09/07/17,ASHTEAD YC,TESCO PFS 3783,12.40,PURCHASE OF FOOD (RAW MATERIALS),SERVICE STATIONS WITH OR WITHOUT ANCILLARY SERVICE
09/07/17,FAIRCROFT COMMUNITY HOME,SAINSBURYS SACAT 0687,12.05,PURCHASE OF FOOD (RAW MATERIALS),"GROCERY STORES, SUPERMARKETS"
09/07/17,FAIRCROFT COMMUNITY HOME,SAINSBURYS 0687,43.20,PURCHASE OF FOOD (RAW MATERIALS),"GROCERY STORES, SUPERMARKETS"
09/07/17,FAIRCROFT COMMUNITY HOME,SAINSBURYS SACAT 0687,22.75,EQUIPMENT,"GROCERY STORES, SUPERMARKETS"
09/07/17,COMMUNICATIONS TEAM,GUARDIAN NEWS  MEDIA,51.96,SUBSCRIPTIONS,"BOOKS,PERIODICALS AND NEWSPAPERS"
09/07/17,HOLLAND CLOSE RESIDENTIAL HOME,ENCORE TICKETS,79.00,EDUC VISITS/HOLS/CAMPS/TOYS,"THEATRICAL PRODUCERS(EXCL MOTION PIX),TICKET AGNCY"
09/07/17,HOLLAND CLOSE RESIDENTIAL HOME,WWW.JOHNLEWIS.COM,619.00,EQUIPMENT,DEPARTMENT STORES
09/07/17,HILLSIDE,SAINSBURYS SACAT 0784,24.80,PURCHASE OF FOOD (RAW MATERIALS),"GROCERY STORES, SUPERMARKETS"
09/07/17,ASHTEAD YC,PILGRIM CYCLES,8.99,PURCHASE OF FOOD (RAW MATERIALS),BICYCLE SHOPS-SALES AND SERVICE
10/07/17,NW SECTION 17 CARE,PREMIER INN,870.43,INDEPENDENT LIVING PLACEMENTS,PREMIER INN
10/07/17,STUDENT FARECARD,SURREY CC CARD PAY,-10.00,NON-STAFF RELATED TRANSPORT COSTS,COMPUTER NETWORK/INFORMATION SERVICES
10/07/17,TRANSPORT,PP 2019CODE,1.00,VEHICLE REPAIRS AND MAINTENANCE,PROFESSIONAL SERVICES-NOT ELSEWHERE CLASSIFIED
10/07/17,FAIRCROFT COMMUNITY HOME,SAINSBURYS SACAT 0687,8.00,PURCHASE OF FOOD (RAW MATERIALS),"GROCERY STORES, SUPERMARKETS"
10/07/17,FAMILIES TANDRIDGE,WAITROSE 178,6.79,PURCHASE OF FOOD (RAW MATERIALS),"GROCERY STORES, SUPERMARKETS"
10/07/17,COMMUNICATIONS TEAM,AMAZON UK MARKETPLACE,10.59,SUBSCRIPTIONS,BOOK STORES
10/07/17,FAMILIES MOLE VALLEY,SAINSBURYS 0764,7.15,PURCHASE OF FOOD (RAW MATERIALS),"GROCERY STORES, SUPERMARKETS"
10/07/17,WOODLANDS COMMUNITY HOME,SAINSBURYS 0670,7.75,3RD PARTY PAYMENTS PRIVATE INDIV,"GROCERY STORES, SUPERMARKETS"
10/07/17,FAMILIES TANDRIDGE,WM MORRISONS,12.70,PURCHASE OF FOOD (RAW MATERIALS),"GROCERY STORES, SUPERMARKETS"
10/07/17,FAMILIES TANDRIDGE,WM MORRISONS,7.68,PURCHASE OF FOOD (RAW MATERIALS),"GROCERY STORES, SUPERMARKETS"
10/07/17,WOODLANDS COMMUNITY HOME,PHOTOBOX LIMITED,4.34,EQUIPMENT,MISCELLANEOUS PUBLISHING AND PRINTING
10/07/17,FAMILIES TANDRIDGE,THEWORKS.CO.UK,8.00,EQUIPMENT,DISCOUNT STORES
10/07/17,ACL CENTRAL EXPENDITURE,TESCO - TESCOPAY,375.00,EQUIPMENT,MISCELLANEOUS AND SPECIALTY RETAIL STORES
10/07/17,FAIRCROFT COMMUNITY HOME,MCDONALDS,10.67,REFRESHMENT COSTS,"EATING PLACES, RESTAURANTS"
10/07/17,CYWS COMMISSIONING,BIDDLES OF GUILDFORD,6.98,STATIONERY,"OFFICE, SCHOOL SUPPLY, AND STATIONERY STORES"
10/07/17,HOPE SERVICE - WEST,AMAZON UK MARKETPLACE,119.99,CURRICULUM EQUIPMENT AND FURNITURE,BOOK STORES
10/07/17,FAMILIES ELMBRIDGE,SAINSBURYS 2663,12.45,PURCHASE OF FOOD (RAW MATERIALS),"GROCERY STORES, SUPERMARKETS"
10/07/17,THE MEADS CHERTSEY,AMAZON EU,19.74,EQUIPMENT,DIRECT MARKETING-OTHER DIRECT MARKETERS/NOT ELSEW.
10/07/17,SOLD DAY TO DAY OPERATIONS,AMAZON UK MARKETPLACE,24.08,EQUIPMENT,BOOK STORES
10/07/17,KARIBU COMMUNITY HOME,ARGOS RETAIL GROUP,47.96,EQUIPMENT,DISCOUNT STORES
10/07/17,LOCAL DELIVERY GROUP,AMAZON EU,65.00,EQUIPMENT,DIRECT MARKETING-OTHER DIRECT MARKETERS/NOT ELSEW.
10/07/17,KARIBU COMMUNITY HOME,WWW.ARGOS.CO.UK,88.85,EQUIPMENT,DISCOUNT STORES
10/07/17,FAIRCROFT COMMUNITY HOME,RSCH ANTENATAL CLINIC,10.00,MISCELLANEOUS STAFF TRAVEL,HOSPITALS
10/07/17,FAMILIES WAVERLEY,SAINSBURYS SACAT 0670,7.05,PURCHASE OF FOOD (RAW MATERIALS),"GROCERY STORES, SUPERMARKETS"
10/07/17,FAMILIES WAVERLEY,SAINSBURYS SACAT 0670,8.70,PURCHASE OF FOOD (RAW MATERIALS),"GROCERY STORES, SUPERMARKETS"
10/07/17,WOODLANDS COMMUNITY HOME,AMAZON UK MARKETPLACE,11.99,EQUIPMENT,BOOK STORES
10/07/17,FAMILIES SPELTHORNE,TESCO STORE 2047,9.89,PURCHASE OF FOOD (RAW MATERIALS),"GROCERY STORES, SUPERMARKETS"
10/07/17,WOODLANDS COMMUNITY HOME,SAINSBURYS 0686,23.25,PURCHASE OF FOOD (RAW MATERIALS),"GROCERY STORES, SUPERMARKETS"
10/07/17,WOODLANDS COMMUNITY HOME,CAKETOPPERS.CO.UK,45.00,CHILDCARE CATERING,"GIFT, CARD, NOVELTY AND SOUVENIR SHOPS"
10/07/17,FAMILIES SURREY HEATH,CO-OP GROUP 350033,18.41,PURCHASE OF FOOD (RAW MATERIALS),"GROCERY STORES, SUPERMARKETS"
10/07/17,WOODLANDS COMMUNITY HOME,AMAZON UK MARKETPLACE,92.98,3RD PARTY PAYMENTS PRIVATE INDIV,BOOK STORES
10/07/17,ADOPTION TEAM,WP-TROUBADOR PUBLI,59.54,BOOKS,MISCELLANEOUS PUBLISHING AND PRINTING
10/07/17,CHEYNE WALK COMMUNITY HOME,TESCO STORES 2675,5.50,PURCHASE OF FOOD (RAW MATERIALS),"GROCERY STORES, SUPERMARKETS"
10/07/17,E&I - COMMUNITY RECYCLING CENTRES       ,GOOGLE  ADWS2060179426,500.00,PUBLICITY,DIRECT MARKETING-CONTINUITY/SUBSCRIPTION MERCHANTS
10/07/17,TARGETED INTERVENTION,WOKING COUNCIL PARKING,2.60,EDUC VISITS/HOLS/CAMPS/TOYS,AUTOMOBILE PARKING LOTS AND GARAGES
10/07/17,CHEYNE WALK COMMUNITY HOME,NEWBRIDGE GARDEN,27.48,3RD PARTY PAYMENTS PRIVATE INDIV,LAWN AND GARDEN SUPPLY STORES
10/07/17,TARGETED INTERVENTION,BLETCHINGLEY GOLF CLUB,1.95,EDUC VISITS/HOLS/CAMPS/TOYS,SPORTING GOODS STORES
10/07/17,TARGETED INTERVENTION,SAINSBURYS 0686,7.90,EDUC VISITS/HOLS/CAMPS/TOYS,"GROCERY STORES, SUPERMARKETS"
10/07/17,HOPE SERVICE - WEST,AMAZON UK MARKETPLACE,4.78,CURRICULUM CONSUMABLES,BOOK STORES
10/07/17,BURBANK COMMUNITY HOME,AMAZON UK RETAIL AMAZO,13.99,BOOKS,MISCELLANEOUS AND SPECIALTY RETAIL STORES
10/07/17,WOODLANDS COMMUNITY HOME,BRITISH HEART FOUNDATI,85.00,FURNITURE,"ORGANIZATIONS, CHARITABLE AND SOCIAL SERVICES"
10/07/17,TARGETED INTERVENTION,BLETCHINGLEY GOLF CLUB,8.15,EDUC VISITS/HOLS/CAMPS/TOYS,SPORTING GOODS STORES
10/07/17,RBDM - GENERAL,TLC SOUTHERN,684.00,EQUIPMENT,HOUSEHOLD APPLIANCE STORES
10/07/17,SW SECTION 17 CARE,TRAVELODGE,368.00,INDEPENDENT LIVING PLACEMENTS,TRAVELODGE
10/07/17,ROW AREA3 MV EPS ELM                    ,HOLMBUSH FENCING,46.80,EQUIPMENT,"BUILDING MATERIALS, LUMBER STORES"
10/07/17,LIBERTAS COMMUNITY HOME,SAINSBURYS 0652,24.05,PURCHASE OF FOOD (RAW MATERIALS),"GROCERY STORES, SUPERMARKETS"
10/07/17,LIBERTAS COMMUNITY HOME,SAINSBURYS 0652,108.83,PURCHASE OF FOOD (RAW MATERIALS),"GROCERY STORES, SUPERMARKETS"
10/07/17,LIBERTAS COMMUNITY HOME,SAINSBURYS 0652,4.60,EQUIPMENT,"GROCERY STORES, SUPERMARKETS"
10/07/17,STUDENT FARECARD,SURREY CC CARD PAY,10.00,NON-STAFF RELATED TRANSPORT COSTS,COMPUTER NETWORK/INFORMATION SERVICES
10/07/17,PE/CDT MAINTENANCE OVERHEADS,B & Q 1191,30.00,EQUIPMENT,"BUILDING MATERIALS, LUMBER STORES"
10/07/17,WOODLANDS COMMUNITY HOME,SAINSBURYS 0686,11.00,PURCHASE OF FOOD (RAW MATERIALS),"GROCERY STORES, SUPERMARKETS"
10/07/17,WOODLANDS COMMUNITY HOME,SAINSBURYS 0686,20.60,3RD PARTY PAYMENTS PRIVATE INDIV,"GROCERY STORES, SUPERMARKETS"
10/07/17,MALLOW CRESCENT,SAINSBURYS TO YOU 0652,1.20,PURCHASE OF FOOD (RAW MATERIALS),"GROCERY STORES, SUPERMARKETS"
10/07/17,MALLOW CRESCENT,SAINSBURYS TO YOU 0652,132.85,PURCHASE OF FOOD (RAW MATERIALS),"GROCERY STORES, SUPERMARKETS"
10/07/17,ORBIS HR REWARD,FARNHAM MALTINGS - BOX,345.00,VENUE COSTS (INCLUDING HIRE OF ROOMS),"THEATRICAL PRODUCERS(EXCL MOTION PIX),TICKET AGNCY"
10/07/17,ARUNDEL,TESCO STORES 5999,54.00,CLEANING MATERIALS,"GROCERY STORES, SUPERMARKETS"
10/07/17,HOPE SERVICE - WEST,SAINSBURYS 0683,114.58,PURCHASE OF FOOD (RAW MATERIALS),"GROCERY STORES, SUPERMARKETS"
10/07/17,BURBANK COMMUNITY HOME,WICKES,41.67,DAY TO DAY MAINTENANCE,HOME SUPPLY WAREHOUSE STORES
10/07/17,LOWER MOLE COUNTRYSIDE PROJECT,ERNEST DOE / SONS,247.66,EQUIPMENT,MISC/AUTO/AIRCRAFT/FARM EQUIP  NOT ELSEWHERE CLASS
10/07/17,FAMILIES SPELTHORNE,SAINSBURYS SACAT 4981,8.10,REFRESHMENT COSTS,"GROCERY STORES, SUPERMARKETS"
10/07/17,LIBERTAS COMMUNITY HOME,BT BILL PAYMENT 1,55.89,TELECOMMUNICATION CHARGES,TELECOMMUNICATION EQUIPMENT INCL TELEPHONE SALES
10/07/17,HOPE SERVICE - WEST,SAINSBURYS SACAT(4409),3.35,NEWSPAPER AND PERIODICALS,"GROCERY STORES, SUPERMARKETS"
10/07/17,EXTENDED HOPE,TESCO STORE 2590,4.00,PURCHASE OF FOOD (RAW MATERIALS),"GROCERY STORES, SUPERMARKETS"
10/07/17,EXTENDED HOPE,TESCO STORE 2590,85.29,PURCHASE OF FOOD (RAW MATERIALS),"GROCERY STORES, SUPERMARKETS"
10/07/17,MALLOW CRESCENT,TESCO STORE 2590,3.60,PURCHASE OF FOOD (RAW MATERIALS),"GROCERY STORES, SUPERMARKETS"
10/07/17,MALLOW CRESCENT,TESCO STORE 2590,87.40,PURCHASE OF FOOD (RAW MATERIALS),"GROCERY STORES, SUPERMARKETS"
10/07/17,ACL CENTRAL EXPENDITURE,TESCO STORE 3149,62.03,REFRESHMENT COSTS,"GROCERY STORES, SUPERMARKETS"
10/07/17,FAIRCROFT COMMUNITY HOME,TESCO STORE 2812,223.87,PURCHASE OF FOOD (RAW MATERIALS),"GROCERY STORES, SUPERMARKETS"
10/07/17,ACL CENTRAL EXPENDITURE,TESCO STORE 2160,74.88,REFRESHMENT COSTS,"GROCERY STORES, SUPERMARKETS"
10/07/17,HOPE SERVICE - WEST,SAINSBURYS TO YOU 0686,161.16,PURCHASE OF FOOD (RAW MATERIALS),"GROCERY STORES, SUPERMARKETS"
10/07/17,COVEHAM,SAINSBURYS TO YOU 0687,6.40,REFRESHMENT COSTS,"GROCERY STORES, SUPERMARKETS"
10/07/17,COVEHAM,SAINSBURYS TO YOU 0687,223.72,REFRESHMENT COSTS,"GROCERY STORES, SUPERMARKETS"
10/07/17,MALLOW CRESCENT,SAINSBURYS TO YOU 0652,20.45,PURCHASE OF FOOD (RAW MATERIALS),"GROCERY STORES, SUPERMARKETS"
10/07/17,MALLOW CRESCENT,SAINSBURYS TO YOU 0652,118.27,PURCHASE OF FOOD (RAW MATERIALS),"GROCERY STORES, SUPERMARKETS"
10/07/17,PSSS ICT SUPPORT,AMAZON UK RETAIL AMAZO,38.79,EQUIPMENT,MISCELLANEOUS AND SPECIALTY RETAIL STORES
10/07/17,APPLEWOOD,ASDA HOME SHOPPING,113.21,PURCHASE OF FOOD (RAW MATERIALS),"GROCERY STORES, SUPERMARKETS"
10/07/17,FAIRCROFT COMMUNITY HOME,SIX CARD CONTACTLESS S,4.00,MISCELLANEOUS STAFF TRAVEL,AUTOMOBILE PARKING LOTS AND GARAGES
10/07/17,MALLOW CRESCENT,TESCO STORE 3539,-1.25,PURCHASE OF FOOD (RAW MATERIALS),"GROCERY STORES, SUPERMARKETS"
10/07/17,HOPE SERVICE - WEST,AMZ SUPER.DEALS,-4.78,CURRICULUM CONSUMABLES,MISCELLANEOUS AND SPECIALTY RETAIL STORES
10/07/17,APPLEWOOD,ASDA HOME SHOPPING,-.61,PURCHASE OF FOOD (RAW MATERIALS),"GROCERY STORES, SUPERMARKETS"
10/07/17,LOCAL DELIVERY GROUP,AMAZON UK MARKETPLACE,14.81,EQUIPMENT,BOOK STORES
10/07/17,WOODLANDS COMMUNITY HOME,NETFLIX.COM,7.49,EDUC VISITS/HOLS/CAMPS/TOYS,"CABLE, SATELLITE, OTHER PAY TELEVISION, RADIO SVCS"
11/07/17,TARGETED INTERVENTION,TOP GOLF LTD,10.40,EDUC VISITS/HOLS/CAMPS/TOYS,"CLUBS-CNTRY,MBRSHIP(ATHLET,REC,SPRTS,PRIVATE GOLF"
11/07/17,CS BUSINESS SUPPORT WEST,AMAZON UK RETAIL AMAZO,25.45,CURRICULUM EQUIPMENT AND FURNITURE,MISCELLANEOUS AND SPECIALTY RETAIL STORES
11/07/17,DEVELOPMENT TEAM,GITHUB.COM  6BH7W,27.27,COMPUTER SERVICES,"COMPUTERS, COMPUTER PERIPHERAL EQUIPMENT, SOFTWARE"
11/07/17,ACL CENTRAL EXPENDITURE,WWW.ARGOS.CO.UK,20.94,EQUIPMENT,DISCOUNT STORES
11/07/17,NW CP & COURT TEAM,ARGOS RETAIL GROUP,-14.99,CHILDREN ACT SEC 17 PAYMENTS,DISCOUNT STORES
11/07/17,FAIRCROFT COMMUNITY HOME,TESCO-STORES 2590,22.00,EQUIPMENT,"GROCERY STORES, SUPERMARKETS"
11/07/17,FAMILIES REIGATE AND BANSTREAD,TESCO STORES-2700,7.33,REFRESHMENT COSTS,"GROCERY STORES, SUPERMARKETS"
11/07/17,HILLSIDE,TESCO STORES 3149,155.50,"CLOTHING, UNIFORM AND LAUNDRY","GROCERY STORES, SUPERMARKETS"
11/07/17,VIRTUAL SCHOOL FOR LAC PUPIL PREMIUM,AMAZON EU,218.75,BOOKS,DIRECT MARKETING-OTHER DIRECT MARKETERS/NOT ELSEW.
11/07/17,VIRTUAL SCHOOL FOR LAC PUPIL PREMIUM,AMAZON UK MARKETPLACE,79.72,BOOKS,BOOK STORES
11/07/17,LIBERTAS COMMUNITY HOME,SAINSBURYS SACAT 0652,22.40,PURCHASE OF FOOD (RAW MATERIALS),"GROCERY STORES, SUPERMARKETS"
11/07/17,TRAINING AND DEVELOPMENT,COMPANY OF WEAVERS,10.15,REFRESHMENT COSTS,"EATING PLACES, RESTAURANTS"
11/07/17,FAMILIES MOLE VALLEY,TESCO STORES 2812,8.23,PURCHASE OF FOOD (RAW MATERIALS),"GROCERY STORES, SUPERMARKETS"
11/07/17,NW CARE - NON-LAC CP & COURT,TRAVELODGE,200.00,INDEPENDENT LIVING PLACEMENTS,TRAVELODGE
11/07/17,SOLD ESTATES MANAGEMENT,SCREWFIX DIRECT,43.87,DAY TO DAY MAINTENANCE,"BUILDING MATERIALS, LUMBER STORES"
11/07/17,ARUNDEL,WILKO RETAIL LIMIT,27.01,EQUIPMENT,HOUSEHOLD APPLIANCE STORES
11/07/17,WOODLANDS COMMUNITY HOME,SAINSBURYS 0686,10.00,REFRESHMENT COSTS,"GROCERY STORES, SUPERMARKETS"
11/07/17,CYWS COMMISSIONING,POST OFFICE COUNTER,52.32,POSTAGE AND COURIER CHARGES,POSTAL SERVICES-GOVERNMENT ONLY
11/07/17,LOCAL DELIVERY GROUP,AMAZON UK MARKETPLACE,26.61,EQUIPMENT,BOOK STORES
11/07/17,MGMT - ORBIS (MANAGEMENT TEAM & SUPPORT),CUSTOMER THERMOMETER,95.27,FEES,COMPUTER SOFTWARE STORES
11/07/17,LANGDOWN STAFF COST,WWW.POSTOFFICE.CO.UK,36.13,3RD PARTY PAYMENTS PRIVATE INDIV,POSTAL SERVICES-GOVERNMENT ONLY
11/07/17,LANGDOWN STAFF COST,WWW.BUNNLEISURE.CO.UK,907.41,3RD PARTY PAYMENTS PRIVATE INDIV,"LODGING-HOTELS,MOTELS,RESORTS-NOT CLASSIFIED"
11/07/17,IMT CRITICAL ENVIRONMENTS,SETON,104.10,EQUIPMENT,"DURABLE GOODS, NOT ELSEWHERE CLASSIFIED"
11/07/17,LANGDOWN STAFF COST,WWW.POSTOFFICE.CO.UK,67.96,3RD PARTY PAYMENTS PRIVATE INDIV,POSTAL SERVICES-GOVERNMENT ONLY
11/07/17,COMMUNICATIONS TEAM,AMAZON UK MARKETPLACE,31.96,SUBSCRIPTIONS,BOOK STORES
11/07/17,ROW VOLUNTEERS WEST                     ,METHOLD VEHICLE HIRE,331.00,HIRE OF VEHICLES,AUTOMOBILE RENTAL AGENCY-NOT ELSEWHERE CLASSIFIED
11/07/17,WOODLANDS COMMUNITY HOME,SAINSBURYS 0686,40.00,EDUC VISITS/HOLS/CAMPS/TOYS,"GROCERY STORES, SUPERMARKETS"
11/07/17,WOODLANDS COMMUNITY HOME,SAINSBURYS 0686,98.95,PURCHASE OF FOOD (RAW MATERIALS),"GROCERY STORES, SUPERMARKETS"
11/07/17,KARIBU COMMUNITY HOME,SAINSBURYS SACAT 0683,4.00,PURCHASE OF FOOD (RAW MATERIALS),"GROCERY STORES, SUPERMARKETS"
11/07/17,HILLSIDE,THE BELL,25.00,PURCHASE OF FOOD (RAW MATERIALS),"LODGING-HOTELS,MOTELS,RESORTS-NOT CLASSIFIED"
11/07/17,TARGETED INTERVENTION,TOP GOLF LTD,22.75,EDUC VISITS/HOLS/CAMPS/TOYS,"CLUBS-CNTRY,MBRSHIP(ATHLET,REC,SPRTS,PRIVATE GOLF"
11/07/17,READY FOR WORK YSS,VUE NCS CITB HS&E TEST,19.50,EDUC VISITS/HOLS/CAMPS/TOYS,SCHOOLS & EDUCATIONAL SVC-NOT ELSEWHERE CLASSIFIED
11/07/17,WOODLANDS COMMUNITY HOME,ARGOS BROOKWOOD IN,64.97,EQUIPMENT,DISCOUNT STORES
11/07/17,IMCA / DEPRIVATION OF LIBERTY,AMAZON UK MARKETPLACE,156.64,3RD PARTY PAYMENTS PRIVATE INDIV,BOOK STORES
11/07/17,TARGETED INTERVENTION,COSTA COFFEE,7.05,EDUC VISITS/HOLS/CAMPS/TOYS,FAST FOOD RESTAURANTS
11/07/17,CHEYNE WALK COMMUNITY HOME,B & M RETAIL,6.28,EQUIPMENT,DISCOUNT STORES
11/07/17,NW LOOKED AFTER TEAM,SURREY CC CARD PAY,21.00,FEES,COMPUTER NETWORK/INFORMATION SERVICES
11/07/17,FAMILIES SPELTHORNE,SAINSBURYS LOC4117,2.25,REFRESHMENT COSTS,"GROCERY STORES, SUPERMARKETS"
11/07/17,TRANSPORT,PAYPAL  FURNISHED,16.99,DAY TO DAY MAINTENANCE,HOUSEHOLD APPLIANCE STORES
11/07/17,MEMBERS EXPENSES (INCL ALLOWANCES),HOC CRS,86.45,REFRESHMENT COSTS,"EATING PLACES, RESTAURANTS"
11/07/17,TS SERVICE MANAGEMENT,AMAZON UK MARKETPLACE,32.74,EQUIPMENT,BOOK STORES
11/07/17,HILLSIDE,SAINSBURYS 0675,43.50,PURCHASE OF FOOD (RAW MATERIALS),"GROCERY STORES, SUPERMARKETS"
11/07/17,IMT CRITICAL ENVIRONMENTS,COMMS EXP,440.64,COMPUTER HARDWARE,ELECTRONIC SALES
11/07/17,ASSET PLANNING - OPERATIONS,BRITISH STANDARDS,292.80,BOOKS,BUSINESS SERVICES-NOT ELSEWHERE CLASSIFIED
11/07/17,HOPE SERVICE - WEST,TESCO STORE 2590,67.50,PURCHASE OF FOOD (RAW MATERIALS),"GROCERY STORES, SUPERMARKETS"
11/07/17,FAIRCROFT COMMUNITY HOME,TESCO STORE 2812,83.80,PURCHASE OF FOOD (RAW MATERIALS),"GROCERY STORES, SUPERMARKETS"
11/07/17,ACL CENTRAL EXPENDITURE,TESCO STORE 2160,54.80,REFRESHMENT COSTS,"GROCERY STORES, SUPERMARKETS"
11/07/17,KARIBU COMMUNITY HOME,TRIPADV HLETS HTRIP TR,936.00,EDUC VISITS/HOLS/CAMPS/TOYS,"LODGING-HOTELS,MOTELS,RESORTS-NOT CLASSIFIED"
11/07/17,WOODLANDS COMMUNITY HOME,POUNDLAND LTD 1518,8.05,EDUC VISITS/HOLS/CAMPS/TOYS,DISCOUNT STORES
11/07/17,WOODLANDS COMMUNITY HOME,POUNDLAND LTD 1518,3.00,EDUC VISITS/HOLS/CAMPS/TOYS,DISCOUNT STORES
11/07/17,IMT CRITICAL ENVIRONMENTS,SETON,72.88,EQUIPMENT,"DURABLE GOODS, NOT ELSEWHERE CLASSIFIED"
11/07/17,IMT CRITICAL ENVIRONMENTS,COMMS EXP,593.96,COMPUTER HARDWARE,ELECTRONIC SALES
11/07/17,COMMUNICATIONS TEAM,AMAZON UK MARKETPLACE,39.58,SUBSCRIPTIONS,BOOK STORES
12/07/17,FRIENDS & FAMILY CARE,PREMIER INN,74.99,CHILDREN ACT SEC 17 PAYMENTS,PREMIER INN
12/07/17,NW LOOKED AFTER TEAM,PREMIER INN,83.00,CHILDREN ACT SEC 17 PAYMENTS,PREMIER INN
12/07/17,CHEYNE WALK COMMUNITY HOME,TESCO STORES 2560,12.00,EQUIPMENT,"GROCERY STORES, SUPERMARKETS"
12/07/17,FAMILIES WAVERLEY,CO-OP GROUP 500340,11.00,PURCHASE OF FOOD (RAW MATERIALS),"GROCERY STORES, SUPERMARKETS"
12/07/17,LIBERTAS COMMUNITY HOME,SAINSBURYS 0670,45.00,EQUIPMENT,"GROCERY STORES, SUPERMARKETS"
12/07/17,FAMILIES SPELTHORNE,SAINSBURYS LOC4117,1.64,REFRESHMENT COSTS,"GROCERY STORES, SUPERMARKETS"
12/07/17,SUNBURY YC,ALDI,6.71,PURCHASE OF FOOD (RAW MATERIALS),"GROCERY STORES, SUPERMARKETS"
12/07/17,CYWS COMMISSIONING,ROBERT DYAS HOLDNG LTD,10.49,CURRICULUM EQUIPMENT AND FURNITURE,HARDWARE STORES
12/07/17,PROJECTS AND CONTRACTS GROUP,MEON LTD,176.97,EQUIPMENT,BUSINESS SERVICES-NOT ELSEWHERE CLASSIFIED
12/07/17,FAMILIES SURREY HEATH,LIDL UK,5.49,REFRESHMENT COSTS,"GROCERY STORES, SUPERMARKETS"
12/07/17,CYWS COMMISSIONING,BIDDLES OF GUILDFORD,6.98,STATIONERY,"OFFICE, SCHOOL SUPPLY, AND STATIONERY STORES"
12/07/17,ARUNDEL,TESCO STORES 5999,89.66,REFRESHMENT COSTS,"GROCERY STORES, SUPERMARKETS"
12/07/17,RUTH HOUSE,G J HONOUR,273.90,PURCHASE OF FOOD (RAW MATERIALS),"MISC FOOD STORE-CONVENIENCE,MRKT,SPLTY,VENDNG MACS"
12/07/17,DOWNLANDS COUNTRYSIDE PROJECT,WWW.KEEPBRITAINTIDY.OR,126.00,STATIONERY,"ORGANIZATIONS, CHARITABLE AND SOCIAL SERVICES"
12/07/17,RUTH HOUSE,BT BILL PAYMENT 2,67.06,TELECOMMUNICATION CHARGES,TELECOMMUNICATION EQUIPMENT INCL TELEPHONE SALES
12/07/17,BUSINESS AND COMPLIANCE TEAM            ,TRADING STANDARDS INST,600.00,SUBSCRIPTIONS,DIRECT MARKETING-COMBINATION CATALOG/RETAIL MERCH.
12/07/17,ASYLUM SEEKERS 16-17,NATIONAL EXPRESS LIMIT,21.30,CHILDREN ACT SEC 17 PAYMENTS,BUS LINES
12/07/17,APPLEWOOD,SCHOOLSDIRECTCOUK,67.70,EDUC VISITS/HOLS/CAMPS/TOYS,"ARTIST SUPPLY STORES, CRAFT SHOPS"
12/07/17,KARIBU COMMUNITY HOME,MCDONALDS,9.58,PURCHASE OF FOOD (RAW MATERIALS),"EATING PLACES, RESTAURANTS"
12/07/17,SOLD DAY TO DAY OPERATIONS,WWW.LEISURE.ORDNANCE,23.99,EQUIPMENT,DIRECT MARKETING-CATALOG MERCHANTS
12/07/17,HERITAGE ENTERPRISE (SCAU),MUSEUM OF LONDON,60.00,FEES,TOURIST ATTRACTIONS AND EXHIBITS
12/07/17,HILLSIDE,TESCO STORE 3149,42.08,PURCHASE OF FOOD (RAW MATERIALS),"GROCERY STORES, SUPERMARKETS"
12/07/17,FAMILIES WAVERLEY,SAINSBURYS SACAT 0670,19.47,PURCHASE OF FOOD (RAW MATERIALS),"GROCERY STORES, SUPERMARKETS"
12/07/17,SEN ADAPTATIONS IN SCHOOLS,CMPCARESHOP,"1,003.14",EQUIPMENT,VARIETY STORES
12/07/17,FAMILIES WAVERLEY,HOMEBASE LTD 305,3.34,PURCHASE OF FOOD (RAW MATERIALS),"BUILDING MATERIALS, LUMBER STORES"
12/07/17,HOPE SERVICE - WEST,SAINSBURYS SACAT(4409),3.45,PURCHASE OF FOOD (RAW MATERIALS),"GROCERY STORES, SUPERMARKETS"
12/07/17,KARIBU COMMUNITY HOME,BRIGHTON,31.00,EDUC VISITS/HOLS/CAMPS/TOYS,TOURIST ATTRACTIONS AND EXHIBITS
12/07/17,HOPE SERVICE - WEST,NOTCUTTS GARDEN CE,109.98,CURRICULUM EQUIPMENT AND FURNITURE,LAWN AND GARDEN SUPPLY STORES
12/07/17,WOKING LIBRARY,WWW.LOCKERKEYS.BIZ,57.42,EQUIPMENT,BUSINESS SERVICES-NOT ELSEWHERE CLASSIFIED
12/07/17,SW CARE - NON-LAC CP & COURT,GRO HM PASSPORT OFFICE,9.25,LEGAL EXPENSES,GOVERNMENT SERVICES-NOT ELSEWHERE CLASSIFIED
12/07/17,TRAINING AND DEVELOPMENT,AMAZON UK MARKETPLACE,48.26,EQUIPMENT,BOOK STORES
12/07/17,PROPERTY OPERATIONS TEAM,TOOLSTATION LTD,26.21,PURCHASE OF BUILDING MATERIALS,HARDWARE STORES
12/07/17,ASSET PLANNING GROUP,AXMINSTER.CO.UK,15.58,EQUIPMENT,"BUILDING MATERIALS, LUMBER STORES"
12/07/17,ACL CENTRAL EXPENDITURE,AMAZON UK MARKETPLACE,4.95,EQUIPMENT,BOOK STORES
12/07/17,PROPERTY OPERATIONS TEAM,THE FASCIA PLACE,35.88,PURCHASE OF BUILDING MATERIALS,"BUILDING MATERIALS, LUMBER STORES"
12/07/17,GODALMING YC,SURREY CC CARD PAY,50.00,TRAINING EXPENSES EXTERNAL GENERAL,COMPUTER NETWORK/INFORMATION SERVICES
12/07/17,HOPE SERVICE - WEST,CHESSINGTON GARDEN CTR,8.58,REFRESHMENT COSTS,LAWN AND GARDEN SUPPLY STORES
12/07/17,TARGETED INTERVENTION,MERCEDES-BENZ WORLD,7.95,EDUC VISITS/HOLS/CAMPS/TOYS,"EATING PLACES, RESTAURANTS"
12/07/17,SOLD ESTATES MANAGEMENT,A J S LANDROVERS,79.20,VEHICLE REPAIRS AND MAINTENANCE,AUTOMOTIVE TIRE STORES
12/07/17,TARGETED INTERVENTION,AMAZON UK MARKETPLACE,18.49,EXAMINATION FEES,BOOK STORES
12/07/17,SOLD CATERING,TESCO STORES 3102,2.08,REFRESHMENT COSTS,"GROCERY STORES, SUPERMARKETS"
12/07/17,EPSOM & EWELL CMHRS CARE,HMCTS-SURREY125,75.00,FEES,FINES
12/07/17,CHEYNE WALK COMMUNITY HOME,TESCO-STORES 6647,187.57,PURCHASE OF FOOD (RAW MATERIALS),"GROCERY STORES, SUPERMARKETS"
12/07/17,COBHAM CHILDRENS CENTRE,BOOKWHENCOM,228.00,SUBSCRIPTIONS,COMPUTER SOFTWARE STORES
12/07/17,TRAINING AND DEVELOPMENT,WWWFLEECEWHITNEY.CO.UK,382.50,TRAINING EXPENSES EXTERNAL GENERAL,"BAR,LOUNGE,DISCO,NIGHTCLUB,TAVERN-ALCOHOLIC DRINKS"
12/07/17,WOODLANDS COMMUNITY HOME,SAINSBURYS TO YOU 0686,8.00,PURCHASE OF FOOD (RAW MATERIALS),"GROCERY STORES, SUPERMARKETS"
12/07/17,WOODLANDS COMMUNITY HOME,SAINSBURYS TO YOU 0686,95.75,PURCHASE OF FOOD (RAW MATERIALS),"GROCERY STORES, SUPERMARKETS"
12/07/17,BURBANK COMMUNITY HOME,SAINSBURYS TO YOU 0686,302.81,PURCHASE OF FOOD (RAW MATERIALS),"GROCERY STORES, SUPERMARKETS"
12/07/17,BURBANK COMMUNITY HOME,SAINSBURYS TO YOU 0686,-.90,PURCHASE OF FOOD (RAW MATERIALS),"GROCERY STORES, SUPERMARKETS"
13/07/17,PE/CDT MAINTENANCE OVERHEADS,ARCO LTD,58.13,"CLOTHING, UNIFORM AND LAUNDRY",INDUSTRIAL SUPPLIES NOT ELSEWHERE CLASSIFIED
13/07/17,CHEYNE WALK COMMUNITY HOME,CURRY INN,83.95,PURCHASE OF FOOD (RAW MATERIALS),"EATING PLACES, RESTAURANTS"
13/07/17,FAMILIES REIGATE AND BANSTREAD,AMAZON UK MARKETPLACE,1.49,EQUIPMENT,BOOK STORES
13/07/17,BURBANK COMMUNITY HOME,WOKING COUNCIL PARKING,1.30,MISCELLANEOUS STAFF TRAVEL,AUTOMOBILE PARKING LOTS AND GARAGES
13/07/17,BURBANK COMMUNITY HOME,NEW LOOK 1792,18.00,"CLOTHING, UNIFORM AND LAUNDRY",WOMEN'S READY TO WEAR STORES
13/07/17,RUTH HOUSE,AMAZON EU,7.39,EQUIPMENT,DIRECT MARKETING-OTHER DIRECT MARKETERS/NOT ELSEW.
13/07/17,HILLSIDE,CAMBERLEY THEATRE,53.00,PURCHASE OF FOOD (RAW MATERIALS),MOTION PICTURE THEATERS
13/07/17,COMMUNICATIONS TEAM,AMAZON UK MARKETPLACE,20.76,SUBSCRIPTIONS,BOOK STORES
13/07/17,FOSTERING SERVICE CENTRAL COSTS,TRAVELODGE,70.25,CHILDREN ACT SEC 17 PAYMENTS,TRAVELODGE
13/07/17,LIBERTAS COMMUNITY HOME,AMAZON.CO.UK,3.08,EQUIPMENT,MISCELLANEOUS AND SPECIALTY RETAIL STORES
13/07/17,LIBERTAS COMMUNITY HOME,AMAZON UK MARKETPLACE,14.99,EQUIPMENT,BOOK STORES
13/07/17,SW SECTION 17 CARE,TRAVELODGE,222.00,INDEPENDENT LIVING PLACEMENTS,TRAVELODGE
13/07/17,HOPE SERVICE - WEST,CO-OP GROUP 500340,4.65,REFRESHMENT COSTS,"GROCERY STORES, SUPERMARKETS"
13/07/17,CHEYNE WALK COMMUNITY HOME,THE NEWS POINT,6.48,PURCHASE OF FOOD (RAW MATERIALS),NEWS DEALERS AND NEWSSTANDS
13/07/17,ARUNDEL,TESCO STORES 5999,46.97,REFRESHMENT COSTS,"GROCERY STORES, SUPERMARKETS"
13/07/17,ENSEMBLES & TOURS,SHEETMUSICPLUS.COM,8.59,CURRIC BOOKS,"MUSIC STORES-INSTRUMENTS, PIANOS, SHEET MUSIC"
13/07/17,HOPE SERVICE - WEST,B & Q 1029,19.96,CURRICULUM CONSUMABLES,"BUILDING MATERIALS, LUMBER STORES"
13/07/17,POLICY AND PERFORMANCE TEAM,HOUSE OF COMMONS,280.00,TRAINING EXPENSES EXTERNAL GENERAL,"BOOKS,PERIODICALS AND NEWSPAPERS"
13/07/17,FAMILIES SPELTHORNE,POUNDLAND LTD,2.00,STATIONERY,DISCOUNT STORES
13/07/17,SURREY ARTS GENERAL,AMAZON EU,233.74,EQUIPMENT,DIRECT MARKETING-OTHER DIRECT MARKETERS/NOT ELSEW.
13/07/17,SHEPPERTON YC,SAINSBURYS SACAT (4117,5.00,REFRESHMENT COSTS,"GROCERY STORES, SUPERMARKETS"
13/07/17,TARGETED INTERVENTION,TESCO STORES-2047,10.28,EDUC VISITS/HOLS/CAMPS/TOYS,"GROCERY STORES, SUPERMARKETS"
13/07/17,TARGETED INTERVENTION,TWO RIVERS CAR PK,2.20,EDUC VISITS/HOLS/CAMPS/TOYS,AUTOMOBILE PARKING LOTS AND GARAGES
13/07/17,DEPUTYSHIP TEAM,VODAFONE LTD,134.62,3RD PARTY PAYMENTS PRIVATE INDIV,TELECOM INCL PREPAID/RECURRING PHONE SVCS
13/07/17,CYWS COMMISSIONING,POST OFFICE COUNTER,183.00,POSTAGE AND COURIER CHARGES,POSTAL SERVICES-GOVERNMENT ONLY
13/07/17,FAMILIES ELMBRIDGE,SAINSBURYS SACAT 0687,4.70,PURCHASE OF FOOD (RAW MATERIALS),"GROCERY STORES, SUPERMARKETS"
13/07/17,HILLSIDE,SAINSBURYS 0784,45.06,PURCHASE OF FOOD (RAW MATERIALS),"GROCERY STORES, SUPERMARKETS"
13/07/17,SE CARE - CP & COURT LAC,TANDRIDGE DISTRICT COU,102.00,INDEPENDENT LIVING PLACEMENTS,BUSINESS SERVICES-NOT ELSEWHERE CLASSIFIED
13/07/17,ACL CENTRAL EXPENDITURE,AMAZON UK MARKETPLACE,21.70,EQUIPMENT,BOOK STORES
13/07/17,RUTH HOUSE,PAYPAL  COVEREDBUCK,11.58,EQUIPMENT,"COMP PROGRAMING,DATA PRCSNG,INTGRTD SYS DSGN SRVS"
13/07/17,FRIENDS & FAMILY CARE,TRAVELODGE,5.00,INDEPENDENT LIVING PLACEMENTS,TRAVELODGE
13/07/17,FRIENDS & FAMILY CARE,TRAVELODGE,307.75,INDEPENDENT LIVING PLACEMENTS,TRAVELODGE
13/07/17,TRANSPORT,TOOLSTATION LTD,59.28,PURCHASE OF BUILDING MATERIALS,HARDWARE STORES
13/07/17,HOPE SERVICE - WEST,B & Q 1029,10.00,CURRICULUM CONSUMABLES,"BUILDING MATERIALS, LUMBER STORES"
13/07/17,TARGETED INTERVENTION,COSTA COFFEE,9.05,EDUC VISITS/HOLS/CAMPS/TOYS,FAST FOOD RESTAURANTS
13/07/17,FAIRCROFT COMMUNITY HOME,ROBERT DYAS HOLDNG LTD,29.99,EQUIPMENT,HARDWARE STORES
13/07/17,NW CARE - CP & COURT LAC,GRAND CENTRAL,144.35,NON-STAFF RELATED TRANSPORT COSTS,PASSENGER RAILWAYS
13/07/17,TRANSPORT,DON RUFFLES LTD,658.80,STATIONERY,"OFFICE, SCHOOL SUPPLY, AND STATIONERY STORES"
13/07/17,ELMBRIDGE CMHRS CARE,HMCTS-SURREY125,75.00,FEES,FINES
13/07/17,NW CARE - CP & COURT LAC,GRAND CENTRAL,150.00,NON-STAFF RELATED TRANSPORT COSTS,PASSENGER RAILWAYS
13/07/17,SW SECTION 17 CARE,SURREY FAM. & MED.,96.00,LEGAL EXPENSES,"ATTORNEYS, LEGAL SERVICES"
13/07/17,HOPE SERVICE - WEST,TESCO STORES 6320,6.49,CURRICULUM CONSUMABLES,"GROCERY STORES, SUPERMARKETS"
13/07/17,WOODLANDS COMMUNITY HOME,SAINSBURYS 0686,16.00,PURCHASE OF FOOD (RAW MATERIALS),"GROCERY STORES, SUPERMARKETS"
13/07/17,WOODLANDS COMMUNITY HOME,SAINSBURYS 0686,81.00,CLEANING MATERIALS,"GROCERY STORES, SUPERMARKETS"
13/07/17,CSF BUSINESS SUPPORT EDUCATION,UKBA6600491053,"3,199.00",FEES,GOVERNMENT SERVICES-NOT ELSEWHERE CLASSIFIED
13/07/17,FARNHAM LIBRARY,BULLSEYE LOCKSMITHS BU,95.00,EQUIPMENT,COMPUTER SOFTWARE STORES
13/07/17,HOPE SERVICE - WEST,SAINSBURYS LOC 4334,6.50,CURRICULUM CONSUMABLES,"GROCERY STORES, SUPERMARKETS"
13/07/17,FAIRCROFT COMMUNITY HOME,PARENTPAY E-COM R,10.00,REFRESHMENT COSTS,"COLLEGES, UNIV, PRO SCHOOLS, JUNIOR COLLEGES"
13/07/17,HOPE SERVICE - WEST,SAINSBURYS LOC 4334,1.62,PURCHASE OF FOOD (RAW MATERIALS),"GROCERY STORES, SUPERMARKETS"
13/07/17,ACL CENTRAL EXPENDITURE,TESCO STORE 2160,70.10,REFRESHMENT COSTS,"GROCERY STORES, SUPERMARKETS"
13/07/17,TRANSPORT,PP 2019CODE,-1.00,VEHICLE REPAIRS AND MAINTENANCE,PROFESSIONAL SERVICES-NOT ELSEWHERE CLASSIFIED
14/07/17,NE CARE - NON-LAC CP & COURT,GRO HM PASSPORT OFFICE,-9.25,OTHER COMMUNITY CARE VOL,GOVERNMENT SERVICES-NOT ELSEWHERE CLASSIFIED
14/07/17,SOLD DAY TO DAY OPERATIONS,AMAZON UK MARKETPLACE,23.90,FIXTURES AND FITTINGS,BOOK STORES
14/07/17,FAMILIES REIGATE AND BANSTREAD,AMAZON UK MARKETPLACE,1.40,EQUIPMENT,BOOK STORES
14/07/17,CHEYNE WALK COMMUNITY HOME,XENIA LOUNGE,246.59,PURCHASE OF FOOD (RAW MATERIALS),"EATING PLACES, RESTAURANTS"
14/07/17,RUTH HOUSE,SURREY CC CARD PAY,50.00,TRAINING USING EXTERNAL PROVIDERS,COMPUTER NETWORK/INFORMATION SERVICES
14/07/17,ROW VOLUNTEERS WEST                     ,B & Q 1018,8.00,PURCHASE OF BUILDING MATERIALS,"BUILDING MATERIALS, LUMBER STORES"
14/07/17,ROW MAINTENANCE,METHOLD VEHICLE HIRE,42.00,HIRE OF VEHICLES,AUTOMOBILE RENTAL AGENCY-NOT ELSEWHERE CLASSIFIED
14/07/17,RUTH HOUSE,SURREY CC CARD PAY,50.00,TRAINING USING EXTERNAL PROVIDERS,COMPUTER NETWORK/INFORMATION SERVICES
14/07/17,SERVICE DELIVERY RESOURCES,AMAZON.CO.UK,124.05,OPERATIONAL FIRE EQUIPMENT,MISCELLANEOUS AND SPECIALTY RETAIL STORES
14/07/17,ROW MAINTENANCE,SHELL BURNT CM 199,12.01,PETROL/DIESEL ALL OFF BUSINESS,SERVICE STATIONS WITH OR WITHOUT ANCILLARY SERVICE
14/07/17,RUTH HOUSE,SURREY CC CARD PAY,50.00,TRAINING USING EXTERNAL PROVIDERS,COMPUTER NETWORK/INFORMATION SERVICES
14/07/17,CHEYNE WALK COMMUNITY HOME,TESCO STORES 2560,10.24,PURCHASE OF FOOD (RAW MATERIALS),"GROCERY STORES, SUPERMARKETS"
14/07/17,ARUNDEL,TESCO STORES 5999,110.94,REFRESHMENT COSTS,"GROCERY STORES, SUPERMARKETS"
14/07/17,LIBERTAS COMMUNITY HOME,AMAZON UK MARKETPLACE,18.95,EQUIPMENT,BOOK STORES
14/07/17,DOWNLANDS COUNTRYSIDE PROJECT,ROVERTOW,150.00,VEHICLE REPAIRS AND MAINTENANCE,"CAMPER DEALERS, RECREATIONAL AND UTILITY TRAILERS"
14/07/17,RUTH HOUSE,AMAZON UK MARKETPLACE,18.20,EDUC VISITS/HOLS/CAMPS/TOYS,BOOK STORES
14/07/17,BUSINESS OPERATIONS TRAINING,WWW.THEKNOWLEDGEACADEM,"1,614.00",TRAINING USING EXTERNAL PROVIDERS,"SCHOOLS, TRADE AND VOCATIONAL"
14/07/17,VIRTUAL SERVICE MANAGER,AMAZON.CO.UK,294.65,EQUIPMENT,MISCELLANEOUS AND SPECIALTY RETAIL STORES
14/07/17,COVEHAM,SAINSBURYS SACAT 0687,25.60,CLEANING MATERIALS,"GROCERY STORES, SUPERMARKETS"
14/07/17,CONSORT HOUSE REDHILL,WWWTESTMETERCOUK,143.88,EQUIPMENT,"COMMERCIAL EQUIPMENT, NOT ELSEWHERE CLASSIFIED"
14/07/17,CONSORT HOUSE REDHILL,MARKS&SPENCER PLC,92.50,"CLOTHING, UNIFORM AND LAUNDRY","GROCERY STORES, SUPERMARKETS"
14/07/17,ACL CENTRAL EXPENDITURE,WWW.TOOLSTATION.COM,14.20,EQUIPMENT,HARDWARE STORES
14/07/17,TRANSPORT,SELCO TRADING CTR,8.25,PURCHASE OF BUILDING MATERIALS,"BUILDING MATERIALS, LUMBER STORES"
14/07/17,PE/CDT MAINTENANCE OVERHEADS,WWW.ARCO.CO.UK,112.43,EQUIPMENT,INDUSTRIAL SUPPLIES NOT ELSEWHERE CLASSIFIED
14/07/17,CHILDREN'S RIGHTS TEAM,POUNDWORLD RETAIL,4.60,EQUIPMENT,DISCOUNT STORES
14/07/17,CONSORT HOUSE REDHILL,CURRYS ONLINE,159.00,EQUIPMENT,ELECTRONIC SALES
14/07/17,ACL CENTRAL EXPENDITURE,JANOME UK LTD,57.00,EQUIPMENT,"ARCHITECTURAL, ENGINEERING, AND SURVEYING SERVICES"
14/07/17,TARGETED INTERVENTION,ODEON,11.05,EDUC VISITS/HOLS/CAMPS/TOYS,MOTION PICTURE THEATERS
14/07/17,PE/CDT MAINTENANCE OVERHEADS,SCREWFIX DIRECT,44.97,EQUIPMENT,"BUILDING MATERIALS, LUMBER STORES"
14/07/17,TARGETED INTERVENTION,ODEON,8.90,EDUC VISITS/HOLS/CAMPS/TOYS,MOTION PICTURE THEATERS
14/07/17,TARGETED INTERVENTION,ODEON UPT,34.00,EDUC VISITS/HOLS/CAMPS/TOYS,MOTION PICTURE THEATERS
14/07/17,SE CARE - CP & COURT LAC,GRO HM PASSPORT OFFICE,18.50,OTHER COMMUNITY CARE VOL,GOVERNMENT SERVICES-NOT ELSEWHERE CLASSIFIED
14/07/17,TARGETED INTERVENTION,LIPHOOK SOUTH 230,18.13,EDUC VISITS/HOLS/CAMPS/TOYS,SERVICE STATIONS WITH OR WITHOUT ANCILLARY SERVICE
14/07/17,PE/CDT MAINTENANCE OVERHEADS,BEARINGS AND BELTS,40.88,EQUIPMENT,"ARCHITECTURAL, ENGINEERING, AND SURVEYING SERVICES"
14/07/17,EXTENDED HOPE,SAINSBURYS 0652,4.45,PURCHASE OF FOOD (RAW MATERIALS),"GROCERY STORES, SUPERMARKETS"
14/07/17,EXTENDED HOPE,SAINSBURYS 0652,77.55,PURCHASE OF FOOD (RAW MATERIALS),"GROCERY STORES, SUPERMARKETS"
14/07/17,SW CARE - LAC,TRAVELODGE,178.95,CHILDREN ACT SEC 17 PAYMENTS,TRAVELODGE
14/07/17,TARGETED INTERVENTION,ODEON,11.70,EDUC VISITS/HOLS/CAMPS/TOYS,MOTION PICTURE THEATERS
14/07/17,TARGETED INTERVENTION,RINGGO PARKING,6.19,EDUC VISITS/HOLS/CAMPS/TOYS,AUTOMOBILE PARKING LOTS AND GARAGES
14/07/17,HOLLAND CLOSE RESIDENTIAL HOME,TESCO PFS 3874,29.15,PETROL/DIESEL ALL OFF BUSINESS,SERVICE STATIONS WITH OR WITHOUT ANCILLARY SERVICE
14/07/17,SW CARE - NON-LAC CP & COURT,GRO HM PASSPORT OFFICE,18.50,LEGAL EXPENSES,GOVERNMENT SERVICES-NOT ELSEWHERE CLASSIFIED
14/07/17,TS SERVICE MANAGEMENT,WWW.CRIMELINE.INFO,132.00,SUBSCRIPTIONS,BUSINESS SERVICES-NOT ELSEWHERE CLASSIFIED
14/07/17,LIBERTAS COMMUNITY HOME,SAINSBURYS 0652,160.13,PURCHASE OF FOOD (RAW MATERIALS),"GROCERY STORES, SUPERMARKETS"
14/07/17,TRANSPORT,PAYPAL  ANDESK LTD,49.18,DAY TO DAY MAINTENANCE,HOME SUPPLY WAREHOUSE STORES
14/07/17,HOPE SERVICE - WEST,SAINSBURYS SACAT(4409),8.70,PURCHASE OF FOOD (RAW MATERIALS),"GROCERY STORES, SUPERMARKETS"
14/07/17,ACL CENTRAL EXPENDITURE,WWW.TOOLSTATION.COM,21.52,EQUIPMENT,HARDWARE STORES
14/07/17,FINANCIAL ASSESSMENTS AND BENEFITS TEAM,WWW.GOV.UK,10.00,LEGAL EXPENSES,PROFESSIONAL SERVICES-NOT ELSEWHERE CLASSIFIED
14/07/17,SURREY FRS CAPITAL EQUIPMENT,REVEALMEDIA,"3,100.80",CE03 CAPITAL VEHICLES AND PLANT,CAMERA AND PHOTOGRAPHIC SUPPLY STORES
14/07/17,ROW VOLUNTEERS WEST                     ,SAINSBURYS PFS0482,10.39,PETROL/DIESEL ALL OFF BUSINESS,SERVICE STATIONS WITH OR WITHOUT ANCILLARY SERVICE
14/07/17,ROW MAINTENANCE,JACKSON & GOCHER LIMIT,18.00,PURCHASE OF BUILDING MATERIALS,MISCELLANEOUS GENERAL MERCHANDISE
14/07/17,NW CARE - NON-LAC CP & COURT,WWW.ARGOS.CO.UK,179.99,EQUIPMENT,DISCOUNT STORES
14/07/17,NE CARE - NON-LAC CP & COURT,GRO HM PASSPORT OFFICE,9.25,OTHER COMMUNITY CARE VOL,GOVERNMENT SERVICES-NOT ELSEWHERE CLASSIFIED
14/07/17,WOODLANDS COMMUNITY HOME,SAINSBURYS TO YOU 0686,10.75,PURCHASE OF FOOD (RAW MATERIALS),"GROCERY STORES, SUPERMARKETS"
14/07/17,WOODLANDS COMMUNITY HOME,SAINSBURYS TO YOU 0686,81.98,PURCHASE OF FOOD (RAW MATERIALS),"GROCERY STORES, SUPERMARKETS"
14/07/17,RUTH HOUSE,SAINSBURYS TO YOU 0686,77.20,PURCHASE OF FOOD (RAW MATERIALS),"GROCERY STORES, SUPERMARKETS"
14/07/17,RUTH HOUSE,SAINSBURYS TO YOU 0686,188.10,PURCHASE OF FOOD (RAW MATERIALS),"GROCERY STORES, SUPERMARKETS"
14/07/17,APPLEWOOD,ASDA HOME SHOPPING,99.97,PURCHASE OF FOOD (RAW MATERIALS),"GROCERY STORES, SUPERMARKETS"
14/07/17,CYWS COMMISSIONING,AMAZON UK MARKETPLACE,36.96,CURRICULUM EQUIPMENT AND FURNITURE,BOOK STORES
14/07/17,APPLEWOOD,ASDA HOME SHOPPING,.37,PURCHASE OF FOOD (RAW MATERIALS),"GROCERY STORES, SUPERMARKETS"
15/07/17,SE ASSESSMENT TEAM,TRAVELODGE,138.50,CHILDREN ACT SEC 17 PAYMENTS,TRAVELODGE
15/07/17,CHEYNE WALK COMMUNITY HOME,CO-OP GROUP PETROL,2.87,PURCHASE OF FOOD (RAW MATERIALS),SERVICE STATIONS WITH OR WITHOUT ANCILLARY SERVICE
15/07/17,LIBERTAS COMMUNITY HOME,Q PARK BURLINGTON,37.00,EDUC VISITS/HOLS/CAMPS/TOYS,AUTOMOBILE PARKING LOTS AND GARAGES
15/07/17,LIBERTAS COMMUNITY HOME,LEON CARNABY STREE,9.90,PURCHASE OF FOOD (RAW MATERIALS),"EATING PLACES, RESTAURANTS"
15/07/17,KARIBU COMMUNITY HOME,RAMADA ENCORE BOURNEMO,133.40,EDUC VISITS/HOLS/CAMPS/TOYS,"LODGING-HOTELS,MOTELS,RESORTS-NOT CLASSIFIED"
15/07/17,BURBANK COMMUNITY HOME,WOKING COUNCIL PARKING,1.30,MISCELLANEOUS STAFF TRAVEL,AUTOMOBILE PARKING LOTS AND GARAGES
15/07/17,CHEYNE WALK COMMUNITY HOME,COUNTY MALL CAR PARK,2.50,EDUC VISITS/HOLS/CAMPS/TOYS,AUTOMOBILE PARKING LOTS AND GARAGES
15/07/17,CHEYNE WALK COMMUNITY HOME,COSTA COFFEE,10.40,REFRESHMENT COSTS,FAST FOOD RESTAURANTS
15/07/17,CHEYNE WALK COMMUNITY HOME,J D SPORTS PLC,86.10,"CLOTHING, UNIFORM AND LAUNDRY",SPORTING GOODS STORES
15/07/17,FAIRCROFT COMMUNITY HOME,SAINSBURYS PFS0473,4.00,PURCHASE OF FOOD (RAW MATERIALS),SERVICE STATIONS WITH OR WITHOUT ANCILLARY SERVICE
15/07/17,LIBERTAS COMMUNITY HOME,BEN'S COOKIES,25.95,EDUC VISITS/HOLS/CAMPS/TOYS,"MISC FOOD STORE-CONVENIENCE,MRKT,SPLTY,VENDNG MACS"
15/07/17,VIRTUAL SERVICE MANAGER,AMAZON UK MARKETPLACE,199.91,EQUIPMENT,BOOK STORES
15/07/17,VIRTUAL SERVICE MANAGER,AMAZON UK MARKETPLACE,150.73,EQUIPMENT,BOOK STORES
15/07/17,BURBANK COMMUNITY HOME,THE ENTERTAINER 7,3.25,EQUIPMENT,"GAME, TOY, AND HOBBY SHOPS"
15/07/17,VIRTUAL SERVICE MANAGER,AMAZON UK MARKETPLACE,352.63,EQUIPMENT,BOOK STORES
15/07/17,FAIRCROFT COMMUNITY HOME,SAINSBURYS PFS0473,2.25,PURCHASE OF FOOD (RAW MATERIALS),SERVICE STATIONS WITH OR WITHOUT ANCILLARY SERVICE
15/07/17,FAIRCROFT COMMUNITY HOME,CEX (WOKING),5.50,EQUIPMENT,ELECTRONIC SALES
15/07/17,HILLSIDE,SAINSBURYS 0675,13.30,PURCHASE OF FOOD (RAW MATERIALS),"GROCERY STORES, SUPERMARKETS"
15/07/17,HILLSIDE,SAINSBURYS 0675,34.95,PURCHASE OF FOOD (RAW MATERIALS),"GROCERY STORES, SUPERMARKETS"
15/07/17,SFRS-SERVICE DELIVERY,CAFE ONE,342.50,REFRESHMENT COSTS,"EATING PLACES, RESTAURANTS"
15/07/17,ARUNDEL,ASDA SUPERSTORE,11.71,REFRESHMENT COSTS,"GROCERY STORES, SUPERMARKETS"
15/07/17,ACL CENTRAL EXPENDITURE,FACEBK JJTWGC6W72,20.04,PUBLICITY,ADVERTISING SERVICES
15/07/17,ARUNDEL,ASDA SUPERSTORE,25.00,CLEANING MATERIALS,"GROCERY STORES, SUPERMARKETS"
15/07/17,HILLSIDE,SAINSBURYS SACAT 0784,26.25,PURCHASE OF FOOD (RAW MATERIALS),"GROCERY STORES, SUPERMARKETS"
15/07/17,HOLLAND CLOSE RESIDENTIAL HOME,TESCO-STORES 6647,148.59,PURCHASE OF FOOD (RAW MATERIALS),"GROCERY STORES, SUPERMARKETS"
15/07/17,HILLSIDE,SAINSBURYS TO YOU 0675,49.80,PURCHASE OF FOOD (RAW MATERIALS),"GROCERY STORES, SUPERMARKETS"
15/07/17,HILLSIDE,SAINSBURYS TO YOU 0675,189.95,PURCHASE OF FOOD (RAW MATERIALS),"GROCERY STORES, SUPERMARKETS"
16/07/17,CHEYNE WALK COMMUNITY HOME,NEW LOOK INTERNET,31.98,"CLOTHING, UNIFORM AND LAUNDRY",WOMEN'S READY TO WEAR STORES
16/07/17,CHEYNE WALK COMMUNITY HOME,AMAZON PRIME,7.99,EQUIPMENT,DIRECT MARKETING-CONTINUITY/SUBSCRIPTION MERCHANTS
16/07/17,FAIRCROFT COMMUNITY HOME,TOBY CAVERY,59.73,REFRESHMENT COSTS,"EATING PLACES, RESTAURANTS"
16/07/17,FAIRCROFT COMMUNITY HOME,KFC,13.97,REFRESHMENT COSTS,FAST FOOD RESTAURANTS
16/07/17,TRANSPORT,AMAZON.CO.UK,22.50,FURNITURE,MISCELLANEOUS AND SPECIALTY RETAIL STORES
16/07/17,VIRTUAL SCHOOL FOR LAC PUPIL PREMIUM,AMAZON EU,12.80,BOOKS,DIRECT MARKETING-OTHER DIRECT MARKETERS/NOT ELSEW.
16/07/17,VIRTUAL SCHOOL FOR LAC PUPIL PREMIUM,AMAZON EU,20.84,BOOKS,DIRECT MARKETING-OTHER DIRECT MARKETERS/NOT ELSEW.
16/07/17,FAIRCROFT COMMUNITY HOME,BEAULIEU MOTOR MUSEUM,6.70,REFRESHMENT COSTS,"EATING PLACES, RESTAURANTS"
16/07/17,BURBANK COMMUNITY HOME,W M MORRISONS,21.60,PURCHASE OF FOOD (RAW MATERIALS),"GROCERY STORES, SUPERMARKETS"
16/07/17,SOLD DAY TO DAY OPERATIONS,AMAZON UK MARKETPLACE,71.31,EQUIPMENT,BOOK STORES
16/07/17,CYWS COMMISSIONING,SAINSBURYS SACAT 0828,16.75,PURCHASE OF FOOD (RAW MATERIALS),"GROCERY STORES, SUPERMARKETS"
16/07/17,CYWS COMMISSIONING,SAINSBURYS SACAT 0828,2.50,REFRESHMENT COSTS,"GROCERY STORES, SUPERMARKETS"
16/07/17,CHEYNE WALK COMMUNITY HOME,TESCO STORE 2675,26.13,PURCHASE OF FOOD (RAW MATERIALS),"GROCERY STORES, SUPERMARKETS"
16/07/17,FAIRCROFT COMMUNITY HOME,BEAULIEU MOTOR MUSEUM,16.70,REFRESHMENT COSTS,"EATING PLACES, RESTAURANTS"
16/07/17,FAIRCROFT COMMUNITY HOME,BEAULIEU ENTERPRISES,23.70,EDUC VISITS/HOLS/CAMPS/TOYS,RECREATION SERVICES (NOT ELSEWHERE CLASSIFIED)
16/07/17,TRANSPORT,AMAZON PRIME,7.99,COMPUTER SERVICES,DIRECT MARKETING-CONTINUITY/SUBSCRIPTION MERCHANTS
16/07/17,BURBANK COMMUNITY HOME,BEEFEATER40011205,26.97,3RD PARTY PAYMENTS PRIVATE INDIV,"EATING PLACES, RESTAURANTS"
16/07/17,E&I - COMMUNITY RECYCLING CENTRES       ,GOOGLE  ADWS2060179426,500.00,PUBLICITY,DIRECT MARKETING-CONTINUITY/SUBSCRIPTION MERCHANTS
17/07/17,DOWNLANDS COUNTRYSIDE PROJECT,PREMIER INN,78.00,EDUC VISITS/HOLS/CAMPS/TOYS,PREMIER INN
17/07/17,ACL CENTRAL EXPENDITURE,FACEBK 84ULMCJW72,30.20,PUBLICITY,ADVERTISING SERVICES
17/07/17,ACL CENTRAL EXPENDITURE,W M MORRISONS,40.46,REFRESHMENT COSTS,"GROCERY STORES, SUPERMARKETS"
17/07/17,SOLD DAY TO DAY OPERATIONS,AMAZON UK MARKETPLACE,18.99,EQUIPMENT,BOOK STORES
17/07/17,SOLD DAY TO DAY OPERATIONS,AMAZON UK MARKETPLACE,11.04,EQUIPMENT,BOOK STORES
17/07/17,SOLD DAY TO DAY OPERATIONS,AMAZON UK MARKETPLACE,69.40,EQUIPMENT,BOOK STORES
17/07/17,SOLD DAY TO DAY OPERATIONS,AMAZON UK MARKETPLACE,33.62,EQUIPMENT,BOOK STORES
17/07/17,SOLD DAY TO DAY OPERATIONS,AMAZON UK MARKETPLACE,14.95,EQUIPMENT,BOOK STORES
17/07/17,SOLD DAY TO DAY OPERATIONS,AMAZON UK MARKETPLACE,69.00,EQUIPMENT,BOOK STORES
17/07/17,SOLD DAY TO DAY OPERATIONS,AMAZON UK MARKETPLACE,8.45,EQUIPMENT,BOOK STORES
17/07/17,SOLD DAY TO DAY OPERATIONS,AMAZON UK MARKETPLACE,16.35,EQUIPMENT,BOOK STORES
17/07/17,SOLD DAY TO DAY OPERATIONS,AMAZON UK MARKETPLACE,18.10,EQUIPMENT,BOOK STORES
17/07/17,SW EDUCATION PSYCHOLOGISTS,AMAZON EU,22.50,STATIONERY,DIRECT MARKETING-OTHER DIRECT MARKETERS/NOT ELSEW.
17/07/17,CHEYNE WALK COMMUNITY HOME,VINE INN,4.20,PURCHASE OF FOOD (RAW MATERIALS),"EATING PLACES, RESTAURANTS"
17/07/17,FAMILIES SURREY HEATH,TESCO STORE 3149,49.84,PURCHASE OF FOOD (RAW MATERIALS),"GROCERY STORES, SUPERMARKETS"
17/07/17,RUTH HOUSE,ARGOS RETAIL GROUP,56.92,EQUIPMENT,DISCOUNT STORES
17/07/17,ADDLESTONE YC,TESCO STORES 2454,2.55,CURRICULUM CONSUMABLES,"GROCERY STORES, SUPERMARKETS"
17/07/17,CLOSED LANDFILL,PEAK PIPE SYSTEMS LTD,17.94,3RD PARTY PAYMENTS OTHER AGENCIES,"BUILDING MATERIALS, LUMBER STORES"
17/07/17,FAMILIES SPELTHORNE,TESCO STORES-2047,21.24,REFRESHMENT COSTS,"GROCERY STORES, SUPERMARKETS"
17/07/17,CYWS COMMISSIONING,BIDDLES OF GUILDFORD,8.99,STATIONERY,"OFFICE, SCHOOL SUPPLY, AND STATIONERY STORES"
17/07/17,CYWS COMMISSIONING,ROBERT DYAS HOLDNG LTD,7.16,CURRICULUM EQUIPMENT AND FURNITURE,HARDWARE STORES
17/07/17,CYWS COMMISSIONING,MAPLIN GUILDFORD GU1,29.98,CURRICULUM EQUIPMENT AND FURNITURE,TELECOMMUNICATION EQUIPMENT INCL TELEPHONE SALES
17/07/17,TARGETED INTERVENTION,BELLS OF OUZLEY,31.26,EDUC VISITS/HOLS/CAMPS/TOYS,"EATING PLACES, RESTAURANTS"
17/07/17,FAMILIES SPELTHORNE,SPORTSDIRECT 159,8.00,EQUIPMENT,SPORTING GOODS STORES
17/07/17,LIBERTAS COMMUNITY HOME,WATERCOOLER,65.47,PURCHASE OF FOOD (RAW MATERIALS),"OFFICE, SCHOOL SUPPLY, AND STATIONERY STORES"
17/07/17,LANGDOWN STAFF COST,HOLIDAY COTTAGES,485.01,3RD PARTY PAYMENTS PRIVATE INDIV,CAMPGROUNDS AND TRAILER PARKS
17/07/17,EPSOM & EWELL CMHRS CARE,HMCTS-SURREY125,75.00,FEES,FINES
17/07/17,RUTH HOUSE,PAYPAL  KIDDIMAX,17.99,EDUC VISITS/HOLS/CAMPS/TOYS,"GAME, TOY, AND HOBBY SHOPS"
17/07/17,NW SECTION 17 CARE,TRAVELODGE,229.50,INDEPENDENT LIVING PLACEMENTS,TRAVELODGE
17/07/17,ASSET PLANNING - OPERATIONS,AXMINSTER.CO.UK,28.21,EQUIPMENT,"BUILDING MATERIALS, LUMBER STORES"
17/07/17,ORBIS HEAD OF PROCUREMENT,AMAZON EU,3.27,STATIONERY,DIRECT MARKETING-OTHER DIRECT MARKETERS/NOT ELSEW.
17/07/17,KARIBU COMMUNITY HOME,TESCO STORE 2812,356.54,PURCHASE OF FOOD (RAW MATERIALS),"GROCERY STORES, SUPERMARKETS"
17/07/17,SW SECTION 17 CARE,TRAVELODGE,63.00,CHILDREN ACT SEC 17 PAYMENTS,TRAVELODGE
17/07/17,PROPERTY OPERATIONS TEAM,WICKES,31.35,PURCHASE OF BUILDING MATERIALS,"BUILDING MATERIALS, LUMBER STORES"
17/07/17,ROW VOLUNTEERS EAST                     ,SCREWFIX DIRECT,218.98,EQUIPMENT,"BUILDING MATERIALS, LUMBER STORES"
17/07/17,RUTH HOUSE,ODEON/BOOKIT,21.75,EDUC VISITS/HOLS/CAMPS/TOYS,MOTION PICTURE THEATERS
17/07/17,BURBANK COMMUNITY HOME,WWW.SURREYCC.GOV.UK,25.00,REFRESHMENT COSTS,GOVERNMENT SERVICES-NOT ELSEWHERE CLASSIFIED
17/07/17,LIBERTAS COMMUNITY HOME,SAINSBURYS 0652,154.71,PURCHASE OF FOOD (RAW MATERIALS),"GROCERY STORES, SUPERMARKETS"
17/07/17,LIBERTAS COMMUNITY HOME,BT BILL PAYMENT 1,11.18,TELECOMMUNICATION CHARGES,TELECOMMUNICATION EQUIPMENT INCL TELEPHONE SALES
17/07/17,EXTENDED HOPE,NEXT RETAIL LTD,38.10,FURNITURE,FAMILY CLOTHING STORES
17/07/17,HOPE SERVICE - WEST,SAINSBURYS SACAT 0683,17.25,CURRICULUM CONSUMABLES,"GROCERY STORES, SUPERMARKETS"
17/07/17,RUTH HOUSE,SURREY CC CARD PAY,50.00,TRAINING USING EXTERNAL PROVIDERS,COMPUTER NETWORK/INFORMATION SERVICES
17/07/17,ACL CENTRAL EXPENDITURE,WWW.THEWORKS.CO.UK,105.00,EQUIPMENT,DISCOUNT STORES
17/07/17,FAMILIES REIGATE AND BANSTREAD,LONDIS SUPERMARKET D A,11.09,PURCHASE OF FOOD (RAW MATERIALS),"GROCERY STORES, SUPERMARKETS"
17/07/17,ISPSB - ADAPTATIONS & IMPROVEMENTS,NRS HEALTHCARE,77.27,EQUIPMENT,DENTAL/LAB/MED/OPHTHALMIC HOSP EQUIP & SUPPLIES
17/07/17,TRAINING CUST SER,EB  INTRANET NOW-THE C,381.60,TRAINING EXPENSES EXTERNAL GENERAL,BUSINESS SERVICES-NOT ELSEWHERE CLASSIFIED
17/07/17,HOPE SERVICE - WEST,SAINSBURYS 0683,134.63,PURCHASE OF FOOD (RAW MATERIALS),"GROCERY STORES, SUPERMARKETS"
17/07/17,HILLSIDE,LIDL UK,.75,PURCHASE OF FOOD (RAW MATERIALS),"GROCERY STORES, SUPERMARKETS"
17/07/17,HILLSIDE,LIDL UK,21.72,PURCHASE OF FOOD (RAW MATERIALS),"GROCERY STORES, SUPERMARKETS"
17/07/17,HILLSIDE,LIDL UK,17.16,PURCHASE OF FOOD (RAW MATERIALS),"GROCERY STORES, SUPERMARKETS"
17/07/17,RUTH HOUSE,SURREY CC CARD PAY,50.00,TRAINING USING EXTERNAL PROVIDERS,COMPUTER NETWORK/INFORMATION SERVICES
17/07/17,HILLSIDE,NEXT,10.05,"CLOTHING, UNIFORM AND LAUNDRY",FAMILY CLOTHING STORES
17/07/17,EXTENDED HOPE,SAINSBURYS 0652,150.00,EDUC VISITS/HOLS/CAMPS/TOYS,"GROCERY STORES, SUPERMARKETS"
17/07/17,RUTH HOUSE,SURREY CC CARD PAY,50.00,TRAINING USING EXTERNAL PROVIDERS,COMPUTER NETWORK/INFORMATION SERVICES
17/07/17,HOPE SERVICE - WEST,TESCO STORE 2590,8.75,PURCHASE OF FOOD (RAW MATERIALS),"GROCERY STORES, SUPERMARKETS"
17/07/17,ACL CENTRAL EXPENDITURE,SAINSBURYS SACAT 0675,28.55,REFRESHMENT COSTS,"GROCERY STORES, SUPERMARKETS"
17/07/17,RUTH HOUSE,SURREY CC CARD PAY,50.00,TRAINING USING EXTERNAL PROVIDERS,COMPUTER NETWORK/INFORMATION SERVICES
17/07/17,HERITAGE ENTERPRISE (SCAU),RADIODETECTION LTD,97.18,EQUIPMENT,ELECTRICAL PARTS AND EQUIPMENT
17/07/17,ACL CENTRAL EXPENDITURE,MILK & MORE OFFLINE,29.16,REFRESHMENT COSTS,"MISC FOOD STORE-CONVENIENCE,MRKT,SPLTY,VENDNG MACS"
17/07/17,HEAD OF C&D &PA,ARGOS RETAIL GROUP,14.99,EQUIPMENT,DISCOUNT STORES
17/07/17,HOPE SERVICE - WEST,SAINSBURYS SACAT(4409),3.35,NEWSPAPER AND PERIODICALS,"GROCERY STORES, SUPERMARKETS"
17/07/17,MALLOW CRESCENT,TESCO STORE 2590,8.50,PURCHASE OF FOOD (RAW MATERIALS),"GROCERY STORES, SUPERMARKETS"
17/07/17,MALLOW CRESCENT,TESCO STORE 2590,74.51,PURCHASE OF FOOD (RAW MATERIALS),"GROCERY STORES, SUPERMARKETS"
17/07/17,EXTENDED HOPE,TESCO STORE 2590,8.17,PURCHASE OF FOOD (RAW MATERIALS),"GROCERY STORES, SUPERMARKETS"
17/07/17,EXTENDED HOPE,TESCO STORE 2590,56.89,PURCHASE OF FOOD (RAW MATERIALS),"GROCERY STORES, SUPERMARKETS"
17/07/17,MALLOW CRESCENT,SAINSBURYS TO YOU 0652,14.55,PURCHASE OF FOOD (RAW MATERIALS),"GROCERY STORES, SUPERMARKETS"
17/07/17,MALLOW CRESCENT,SAINSBURYS TO YOU 0652,116.80,PURCHASE OF FOOD (RAW MATERIALS),"GROCERY STORES, SUPERMARKETS"
17/07/17,MALLOW CRESCENT,SAINSBURYS TO YOU 0652,11.70,PURCHASE OF FOOD (RAW MATERIALS),"GROCERY STORES, SUPERMARKETS"
17/07/17,MALLOW CRESCENT,SAINSBURYS TO YOU 0652,118.06,PURCHASE OF FOOD (RAW MATERIALS),"GROCERY STORES, SUPERMARKETS"
17/07/17,ACL CENTRAL EXPENDITURE,TESCO STORE 3149,117.83,REFRESHMENT COSTS,"GROCERY STORES, SUPERMARKETS"
17/07/17,ACL CENTRAL EXPENDITURE,TESCO STORE 2160,49.63,REFRESHMENT COSTS,"GROCERY STORES, SUPERMARKETS"
17/07/17,FAIRCROFT COMMUNITY HOME,TESCO STORE 2812,176.79,PURCHASE OF FOOD (RAW MATERIALS),"GROCERY STORES, SUPERMARKETS"
17/07/17,CORE ACTIVITY                           ,MAILCHIMP    MONTHLY,23.43,COMPUTER SOFTWARE,BUSINESS SERVICES-NOT ELSEWHERE CLASSIFIED
17/07/17,HOPE SERVICE - WEST,SAINSBURYS TO YOU 0686,59.35,PURCHASE OF FOOD (RAW MATERIALS),"GROCERY STORES, SUPERMARKETS"
17/07/17,COVEHAM,SAINSBURYS TO YOU 0687,21.25,REFRESHMENT COSTS,"GROCERY STORES, SUPERMARKETS"
17/07/17,COVEHAM,SAINSBURYS TO YOU 0687,124.84,REFRESHMENT COSTS,"GROCERY STORES, SUPERMARKETS"
17/07/17,WOODLANDS COMMUNITY HOME,AMAZON UK MARKETPLACE,12.08,EQUIPMENT,BOOK STORES
17/07/17,COVEHAM,SAINSBURYS TO YOU 0687,-3.65,REFRESHMENT COSTS,"GROCERY STORES, SUPERMARKETS"
17/07/17,ACL CENTRAL EXPENDITURE,TESCO STORE 3539,-4.00,REFRESHMENT COSTS,"GROCERY STORES, SUPERMARKETS"
17/07/17,WOODLANDS COMMUNITY HOME,AMZ BIGLIVING,-12.08,EQUIPMENT,MISCELLANEOUS AND SPECIALTY RETAIL STORES
17/07/17,TRANSPORT,AMAZON EU,20.39,COMPUTER HARDWARE,DIRECT MARKETING-OTHER DIRECT MARKETERS/NOT ELSEW.
18/07/17,LEGAL EXPENSES CHILD ADULT EDUC TEAM,EYE NETWORK,348.84,LEGAL EXPENSES,ELECTRONIC SALES
18/07/17,HILLSIDE,ESSENTIALS,2.05,PURCHASE OF FOOD (RAW MATERIALS),"MISC FOOD STORE-CONVENIENCE,MRKT,SPLTY,VENDNG MACS"
18/07/17,HILLSIDE,ESSENTIALS,11.54,PURCHASE OF FOOD (RAW MATERIALS),"MISC FOOD STORE-CONVENIENCE,MRKT,SPLTY,VENDNG MACS"
18/07/17,LIBERTAS COMMUNITY HOME,BRITISH A,"4,050.08",EDUC VISITS/HOLS/CAMPS/TOYS,BRITISH A
18/07/17,VIRTUAL SCHOOL FOR LAC PUPIL PREMIUM,AMAZON UK MARKETPLACE,216.41,SPECIALIST EDUCATIONAL STATIONERY,BOOK STORES
18/07/17,VIRTUAL SCHOOL FOR LAC PUPIL PREMIUM,AMAZON UK MARKETPLACE,22.50,STATIONERY,BOOK STORES
18/07/17,VIRTUAL SCHOOL FOR LAC PUPIL PREMIUM,AMAZON UK RETAIL AMAZO,170.69,BOOKS,MISCELLANEOUS AND SPECIALTY RETAIL STORES
18/07/17,VIRTUAL SCHOOL FOR LAC PUPIL PREMIUM,AMAZON EU,26.35,SPECIALIST EDUCATIONAL STATIONERY,DIRECT MARKETING-OTHER DIRECT MARKETERS/NOT ELSEW.
18/07/17,VIRTUAL SCHOOL FOR LAC PUPIL PREMIUM,AMAZON UK MARKETPLACE,59.10,SPECIALIST EDUCATIONAL STATIONERY,BOOK STORES
18/07/17,VIRTUAL SCHOOL FOR LAC PUPIL PREMIUM,AMAZON EU,94.45,SPECIALIST EDUCATIONAL STATIONERY,DIRECT MARKETING-OTHER DIRECT MARKETERS/NOT ELSEW.
18/07/17,VIRTUAL SCHOOL FOR LAC PUPIL PREMIUM,AMAZON UK RETAIL AMAZO,120.85,SPECIALIST EDUCATIONAL STATIONERY,MISCELLANEOUS AND SPECIALTY RETAIL STORES
18/07/17,VIRTUAL SCHOOL FOR LAC PUPIL PREMIUM,AMAZON UK MARKETPLACE,224.55,SPECIALIST EDUCATIONAL STATIONERY,BOOK STORES
18/07/17,LIBERTAS COMMUNITY HOME,SAINSBURYS 0652,10.25,STATIONERY,"GROCERY STORES, SUPERMARKETS"
18/07/17,LIBERTAS COMMUNITY HOME,SAINSBURYS 0652,50.00,"CLOTHING, UNIFORM AND LAUNDRY","GROCERY STORES, SUPERMARKETS"
18/07/17,FAMILIES SPELTHORNE,SAINSBURYS SACAT (4117,2.65,STATIONERY,"GROCERY STORES, SUPERMARKETS"
18/07/17,NW SECTION 17 CARE,TRAVELODGE,357.25,INDEPENDENT LIVING PLACEMENTS,TRAVELODGE
18/07/17,SOLD DAY TO DAY OPERATIONS,AMAZON UK MARKETPLACE,25.98,EQUIPMENT,BOOK STORES
18/07/17,HILLSIDE,WAITROSE 514,12.00,PURCHASE OF FOOD (RAW MATERIALS),"GROCERY STORES, SUPERMARKETS"
18/07/17,ACL CENTRAL EXPENDITURE,SAINSBURYS 0686,30.55,EQUIPMENT,"GROCERY STORES, SUPERMARKETS"
18/07/17,E&I - LOVE FOOD HATE WASTE              ,FACEBK A8ZLAE2AK2,74.14,PUBLICITY,ADVERTISING SERVICES
18/07/17,E&I - LOVE FOOD HATE WASTE              ,FACEBK 98ZLAE2AK2,526.21,PUBLICITY,ADVERTISING SERVICES
18/07/17,CLOSED LANDFILL,THE PLANTATION,39.20,EQUIPMENT,LAWN AND GARDEN SUPPLY STORES
18/07/17,FAMILIES SPELTHORNE,TESCO STORES-2047,2.00,REFRESHMENT COSTS,"GROCERY STORES, SUPERMARKETS"
18/07/17,FAMILIES GUILDFORD,TABLE TABLE41015900,2.85,REFRESHMENT COSTS,"EATING PLACES, RESTAURANTS"
18/07/17,ACL CENTRAL EXPENDITURE,HELLOPRINT,31.95,PUBLICITY,"QUICK COPY,REPRODUCTION AND BLUEPRINTING SERVICES"
18/07/17,HOPE SERVICE - WEST,JOHN BATTLEDAY SKI,222.00,EDUC VISITS/HOLS/CAMPS/TOYS,"CLUBS-CNTRY,MBRSHIP(ATHLET,REC,SPRTS,PRIVATE GOLF"
18/07/17,SOLD DAY TO DAY OPERATIONS,WHITEWATER THE CANOE C,125.91,EQUIPMENT,SPORTING GOODS STORES
18/07/17,DOWNLANDS COUNTRYSIDE PROJECT,NORTHPOINT VET SERVICE,95.70,MEDICAL EXPENSES,VETERINARY SERVICES
18/07/17,SOLD ESTATES MANAGEMENT,TOOLSTATION LTD,61.70,EQUIPMENT,HARDWARE STORES
18/07/17,RUTH HOUSE,SURREY CC CARD PAY,50.00,TRAINING USING EXTERNAL PROVIDERS,COMPUTER NETWORK/INFORMATION SERVICES
18/07/17,HOPE SERVICE - WEST,WICKES,10.99,CURRICULUM CONSUMABLES,"BUILDING MATERIALS, LUMBER STORES"
18/07/17,HOPE SERVICE - WEST,SAINSBURYS 0683,163.60,PURCHASE OF FOOD (RAW MATERIALS),"GROCERY STORES, SUPERMARKETS"
18/07/17,ELMBRIDGE LOCAL CARE OP,HMCTS-SURREY125,75.00,FEES,FINES
18/07/17,TARGETED INTERVENTION,TESCO STORES-2047,2.51,EDUC VISITS/HOLS/CAMPS/TOYS,"GROCERY STORES, SUPERMARKETS"
18/07/17,HILLSIDE,SAINSBURYS 0784,28.35,PURCHASE OF FOOD (RAW MATERIALS),"GROCERY STORES, SUPERMARKETS"
18/07/17,DITTONS & CLAYGATE CC,ST JOHN AMBULANCE,432.00,TRAINING USING EXTERNAL PROVIDERS,"ORGANIZATIONS, CHARITABLE AND SOCIAL SERVICES"
18/07/17,BURBANK COMMUNITY HOME,HOBBYCRAFT,48.30,EQUIPMENT,"ARTIST SUPPLY STORES, CRAFT SHOPS"
18/07/17,TRANSPORT,PAYPAL  DWE LTD,7.93,DAY TO DAY MAINTENANCE,"AUTOMOTIVE PARTS, ACCESSORIES STORES"
18/07/17,COMMUNICATIONS TEAM,ITUNES.COM/BILL,3.99,SUBSCRIPTIONS,RECORD SHOPS
18/07/17,RUTH HOUSE,AMAZON UK MARKETPLACE,17.94,EQUIPMENT,BOOK STORES
18/07/17,CORONER,DISPLAYSENSE.CO.UK,26.06,EQUIPMENT,"COMMERCIAL EQUIPMENT, NOT ELSEWHERE CLASSIFIED"
18/07/17,IMT CRITICAL ENVIRONMENTS,MILK@MORE ONLINE,56.46,REFRESHMENT COSTS,"MISC FOOD STORE-CONVENIENCE,MRKT,SPLTY,VENDNG MACS"
18/07/17,HOPE SERVICE - WEST,AMAZON UK MARKETPLACE,3.99,CURRICULUM CONSUMABLES,BOOK STORES
18/07/17,HOPE SERVICE - WEST,AMAZON UK MARKETPLACE,10.96,CURRICULUM CONSUMABLES,BOOK STORES
18/07/17,YOUTH DEMOCRACY,TRAINLINE,368.58,NON-STAFF RELATED TRANSPORT COSTS,PASSENGER RAILWAYS
18/07/17,TRANSPORT,TRAYLEN ENTERPRISE,170.00,VEHICLE REPAIRS AND MAINTENANCE,AUTOMOTIVE SERVICE SHOPS
18/07/17,ORBIS HEAD OF PROCUREMENT,UCKFIELD TOWN COUNCIL,208.80,VENUE COSTS (INCLUDING HIRE OF ROOMS),GOVERNMENT SERVICES-NOT ELSEWHERE CLASSIFIED
18/07/17,CSAF 50+,STK SHUTTERSTOCK.COM,32.00,PUBLICITY,"COMMERCIAL ART, GRAPHICS, PHOTOGRAPHY"
18/07/17,CSAF 50+,STK SHUTTERSTOCK.COM,29.00,PUBLICITY,"COMMERCIAL ART, GRAPHICS, PHOTOGRAPHY"
18/07/17,FAMILIES SURREY HEATH,TESCO STORE 3149,16.72,PURCHASE OF FOOD (RAW MATERIALS),"GROCERY STORES, SUPERMARKETS"
18/07/17,HERITAGE ENTERPRISE (SCAU),SE SHARED SERVICES,50.00,FEES,SCHOOLS & EDUCATIONAL SVC-NOT ELSEWHERE CLASSIFIED
18/07/17,SYG 2015                                ,SAINSBURYS SACAT 0802,3.10,REFRESHMENT COSTS,"GROCERY STORES, SUPERMARKETS"
18/07/17,TARGETED INTERVENTION,MCDONALDS,11.96,EDUC VISITS/HOLS/CAMPS/TOYS,"EATING PLACES, RESTAURANTS"
18/07/17,FAIRCROFT COMMUNITY HOME,SAINSBURYS 0687,22.15,PURCHASE OF FOOD (RAW MATERIALS),"GROCERY STORES, SUPERMARKETS"
18/07/17,CHEYNE WALK COMMUNITY HOME,CO-OP GROUP PETROL,12.18,EQUIPMENT,SERVICE STATIONS WITH OR WITHOUT ANCILLARY SERVICE
18/07/17,DOWNLANDS COUNTRYSIDE PROJECT,MOLE COUNTRY STORES,49.85,EQUIPMENT,AGRICULTURAL COOPERATIVES
18/07/17,LIBERTAS COMMUNITY HOME,SAINSBURYS LOC 4409,20.00,EDUC VISITS/HOLS/CAMPS/TOYS,"GROCERY STORES, SUPERMARKETS"
18/07/17,SIGNS OF SAFETY TRAINING,AMAZON UK MARKETPLACE,47.68,STATIONERY,BOOK STORES
18/07/17,DOWNLANDS COUNTRYSIDE PROJECT,TESCO STORES,20.80,REFRESHMENT COSTS,"GROCERY STORES, SUPERMARKETS"
18/07/17,SOLD ESTATES MANAGEMENT,B & Q 1018,61.94,DAY TO DAY MAINTENANCE,"BUILDING MATERIALS, LUMBER STORES"
18/07/17,WOODLANDS COMMUNITY HOME,SAINSBURYS 0686,12.45,PURCHASE OF FOOD (RAW MATERIALS),"GROCERY STORES, SUPERMARKETS"
18/07/17,WOODLANDS COMMUNITY HOME,SAINSBURYS 0686,39.53,PURCHASE OF FOOD (RAW MATERIALS),"GROCERY STORES, SUPERMARKETS"
18/07/17,FAIRCROFT COMMUNITY HOME,TESCO STORE 2812,69.80,PURCHASE OF FOOD (RAW MATERIALS),"GROCERY STORES, SUPERMARKETS"
18/07/17,PSSS ICT SUPPORT,AMAZON UK MARKETPLACE,38.55,EQUIPMENT,BOOK STORES
18/07/17,CSF BUSINESS SUPPORT EDUCATION,WWW.POSTURITE.CO.UK,-65.94,EQUIPMENT,OFFICE AND COMMERCIAL FURNITURE
18/07/17,TRANSPORT,TRAYLEN ENTERPRISE,-50.00,VEHICLE REPAIRS AND MAINTENANCE,AUTOMOTIVE SERVICE SHOPS
18/07/17,ROW MAINTENANCE,AMAZON PRIME,-79.00,EQUIPMENT,DIRECT MARKETING-CONTINUITY/SUBSCRIPTION MERCHANTS
18/07/17,LOCAL DELIVERY GROUP,AMZ AMAZON.CO.UK,-24.06,EQUIPMENT,DIRECT MARKETING-OTHER DIRECT MARKETERS/NOT ELSEW.
18/07/17,VIRTUAL SCHOOL FOR LAC PUPIL PREMIUM,AMAZON UK MARKETPLACE,71.21,STATIONERY,BOOK STORES
18/07/17,VIRTUAL SCHOOL FOR LAC PUPIL PREMIUM,AMAZON UK MARKETPLACE,40.81,BOOKS,BOOK STORES
18/07/17,VIRTUAL SCHOOL FOR LAC PUPIL PREMIUM,AMAZON EU,10.98,BOOKS,DIRECT MARKETING-OTHER DIRECT MARKETERS/NOT ELSEW.
19/07/17,COVEHAM,TIP TOP COMPUTERS,78.00,COMPUTER CONSUMABLES,COMPUTER MAIN./REPAIR/SERVICES NOT ELSEWHERE CLASS
19/07/17,ROW VOLUNTEERS EAST                     ,AMAZON.CO.UK,12.54,EQUIPMENT,MISCELLANEOUS AND SPECIALTY RETAIL STORES
19/07/17,YSS YOUTH CENTRE IMPROVEMENTS,WWW.BUYSPARES.CO.UK,35.22,EQUIPMENT,ELECTRICAL PARTS AND EQUIPMENT
19/07/17,FAMILIES SPELTHORNE,MARKS&SPENCER PLC SACA,2.90,REFRESHMENT COSTS,"GROCERY STORES, SUPERMARKETS"
19/07/17,SOLD DAY TO DAY OPERATIONS,AMAZON UK MARKETPLACE,17.97,EQUIPMENT,BOOK STORES
19/07/17,SOLD DAY TO DAY OPERATIONS,AMAZON UK MARKETPLACE,17.84,EQUIPMENT,BOOK STORES
19/07/17,SOLD DAY TO DAY OPERATIONS,AMAZON UK MARKETPLACE,11.98,EQUIPMENT,BOOK STORES
19/07/17,FAIRCROFT COMMUNITY HOME,THE HEAD OFFICE,25.00,EQUIPMENT,BARBER AND BEAUTY SHOPS
19/07/17,TANDRIDGE BOROUGH TEAM                  ,DVLA DRIVER ONLINE,34.00,EQUIPMENT,GOVERNMENT SERVICES-NOT ELSEWHERE CLASSIFIED
19/07/17,ARUNDEL,TESCO STORES 5999,218.16,REFRESHMENT COSTS,"GROCERY STORES, SUPERMARKETS"
19/07/17,SOLD ESTATES MANAGEMENT,WWW.EVAQ8.CO.UK,47.69,EQUIPMENT,SPORTING GOODS STORES
19/07/17,ASSET PLANNING - OPERATIONS,HALFORDS 0763,8.80,EQUIPMENT,BICYCLE SHOPS-SALES AND SERVICE
19/07/17,FAIRCROFT COMMUNITY HOME,EB  THE LABYRINTH CHAL,113.75,EDUC VISITS/HOLS/CAMPS/TOYS,BUSINESS SERVICES-NOT ELSEWHERE CLASSIFIED
19/07/17,ASSET PLANNING - OPERATIONS,B & Q 1029,6.10,EQUIPMENT,"BUILDING MATERIALS, LUMBER STORES"
19/07/17,ENSEMBLES & TOURS,DV247 LIMITED,29.59,EQUIPMENT,"MUSIC STORES-INSTRUMENTS, PIANOS, SHEET MUSIC"
19/07/17,DOWNLANDS COUNTRYSIDE PROJECT,TESCO STORES 3066,12.23,REFRESHMENT COSTS,"GROCERY STORES, SUPERMARKETS"
19/07/17,ELMBRIDGE LOCAL CARE OP,HMCTS-SURREY125,75.00,FEES,FINES
19/07/17,FIRE EQUIPMENT (ERR),DELTA FIRE LTD,"3,960.00",CE03 CAPITAL VEHICLES AND PLANT,MISCELLANEOUS AND SPECIALTY RETAIL STORES
19/07/17,SURREY FRS CAPITAL EQUIPMENT,DELTA FIRE LTD,"3,960.00",CE03 CAPITAL VEHICLES AND PLANT,MISCELLANEOUS AND SPECIALTY RETAIL STORES
19/07/17,COVEHAM,CURRYS SUPERSTORE,58.99,EDUC VISITS/HOLS/CAMPS/TOYS,ELECTRONIC SALES
19/07/17,HILLSIDE,TESCO STORE 3149,11.18,PURCHASE OF FOOD (RAW MATERIALS),"GROCERY STORES, SUPERMARKETS"
19/07/17,ENSEMBLES & TOURS,WWW.SOUTHERNPERCUSSION,37.00,EQUIPMENT,"MUSIC STORES-INSTRUMENTS, PIANOS, SHEET MUSIC"
19/07/17,SOLD ESTATES MANAGEMENT,B & Q 1029,177.39,EQUIPMENT,"BUILDING MATERIALS, LUMBER STORES"
19/07/17,TRAINING AND DEVELOPMENT,SYC (BAR & CATERING),205.00,REFRESHMENT COSTS,"BAR,LOUNGE,DISCO,NIGHTCLUB,TAVERN-ALCOHOLIC DRINKS"
19/07/17,TARGETED INTERVENTION,TWO RIVERS CAR PK,2.20,EDUC VISITS/HOLS/CAMPS/TOYS,AUTOMOBILE PARKING LOTS AND GARAGES
19/07/17,ENSEMBLES & TOURS,PAYPAL  CONTACT,43.89,EQUIPMENT,PROFESSIONAL SERVICES-NOT ELSEWHERE CLASSIFIED
19/07/17,TARGETED INTERVENTION,WOKING COUNCIL PARKING,2.60,EDUC VISITS/HOLS/CAMPS/TOYS,AUTOMOBILE PARKING LOTS AND GARAGES
19/07/17,SOLD CATERING,CLUSKEYS CCP LTD,25.66,EQUIPMENT,MISCELLANEOUS GENERAL MERCHANDISE
19/07/17,TARGETED INTERVENTION,SUPERDRUG STORES PLC,18.97,EXAMINATION FEES,"DRUG STORES, PHARMACIES"
19/07/17,BURBANK COMMUNITY HOME,COSTA COFFEE 43037185,6.80,REFRESHMENT COSTS,FAST FOOD RESTAURANTS
19/07/17,TRANSPORT,AMAZON UK MARKETPLACE,5.31,STATIONERY,BOOK STORES
19/07/17,HOPE SERVICE - WEST,SAINSBURYS LOC 4409,3.00,PURCHASE OF FOOD (RAW MATERIALS),"GROCERY STORES, SUPERMARKETS"
19/07/17,TARGETED INTERVENTION,CARLUCCIO S WOKING,7.60,EDUC VISITS/HOLS/CAMPS/TOYS,"EATING PLACES, RESTAURANTS"
19/07/17,TRANSPORT,AMAZON EU,26.94,FURNITURE,DIRECT MARKETING-OTHER DIRECT MARKETERS/NOT ELSEW.
19/07/17,TARGETED INTERVENTION,SQUIRES GARDEN CENTRE,5.45,EDUC VISITS/HOLS/CAMPS/TOYS,LAWN AND GARDEN SUPPLY STORES
19/07/17,MEMBER DEVELOPMENT/TRAINING,WESTMINSTER FORUM,252.00,TRAINING EXPENSES EXTERNAL GENERAL,"CONSULTING, MANAGEMENT, AND PUBLIC RELATIONS SVCS"
19/07/17,ORBIS HR PROGRAMME AND PERFORMANCE,AMAZON.CO.UK,12.96,CLEANING AND DOMESTIC SUPPLIES,MISCELLANEOUS AND SPECIALTY RETAIL STORES
19/07/17,TRAINING AND DEVELOPMENT,THEOBALDS ESTATE,"1,980.00",TRAINING EXPENSES EXTERNAL GENERAL,"LODGING-HOTELS,MOTELS,RESORTS-NOT CLASSIFIED"
19/07/17,PROPERTY OPERATIONS TEAM,SCREWFIX DIRECT,47.36,PURCHASE OF BUILDING MATERIALS,"BUILDING MATERIALS, LUMBER STORES"
19/07/17,ORDER TO CASH TEAM,COUNTY COURT,335.00,FEES,FINES
19/07/17,HOPE SERVICE - WEST,SAINSBURYS LOC 4409,5.65,PURCHASE OF FOOD (RAW MATERIALS),"GROCERY STORES, SUPERMARKETS"
19/07/17,ROW VOLUNTEERS EAST                     ,AMAZON UK MARKETPLACE,51.20,EQUIPMENT,BOOK STORES
19/07/17,DOWNLANDS COUNTRYSIDE PROJECT,SUPPLIESFOR.CO.UK,337.65,EQUIPMENT,PET SHOPS - PET FOODS AND SUPPLIES
19/07/17,DOWNLANDS COUNTRYSIDE PROJECT,SUPPLIESFOR.CO.UK,337.65,EQUIPMENT,PET SHOPS - PET FOODS AND SUPPLIES
19/07/17,FIRE & RESCUE COMMUNITY SAFETY,WEBCOM/ENABLE,28.80,PUBLICITY,COMPUTER MAIN./REPAIR/SERVICES NOT ELSEWHERE CLASS
19/07/17,WOODLANDS COMMUNITY HOME,SAINSBURYS TO YOU 0686,10.60,PURCHASE OF FOOD (RAW MATERIALS),"GROCERY STORES, SUPERMARKETS"
19/07/17,WOODLANDS COMMUNITY HOME,SAINSBURYS TO YOU 0686,82.50,PURCHASE OF FOOD (RAW MATERIALS),"GROCERY STORES, SUPERMARKETS"
19/07/17,BURBANK COMMUNITY HOME,SAINSBURYS TO YOU 0686,371.97,PURCHASE OF FOOD (RAW MATERIALS),"GROCERY STORES, SUPERMARKETS"
19/07/17,CHEYNE WALK COMMUNITY HOME,TESCO-STORES 6647,203.48,PURCHASE OF FOOD (RAW MATERIALS),"GROCERY STORES, SUPERMARKETS"
19/07/17,FAIRCROFT COMMUNITY HOME,TESCO DELIVERY SAVER2,7.00,PURCHASE OF FOOD (RAW MATERIALS),DIRECT MARKETING-CONTINUITY/SUBSCRIPTION MERCHANTS
20/07/17,TRANSPORT,OXFORD DIECAST LTD,130.60,OPERATIONAL FIRE EQUIPMENT,"GAME, TOY, AND HOBBY SHOPS"
20/07/17,COMMUNICATIONS TEAM,AMAZON UK RETAIL AMAZO,45.84,STATIONERY,MISCELLANEOUS AND SPECIALTY RETAIL STORES
20/07/17,TANDRIDGE LOCALITY TEAM,PP STATIONCARSOXTEDLTD,16.80,TRANSPORT SOCIAL CARE-TAXI,LIMOUSINES AND TAXICABS
20/07/17,COMMUNICATIONS TEAM,ISSUU,23.08,SUBSCRIPTIONS,"COMPUTERS, COMPUTER PERIPHERAL EQUIPMENT, SOFTWARE"
20/07/17,NW CARE - CP & COURT LAC,PREMIER INN,64.00,CHILDREN ACT SEC 17 PAYMENTS,PREMIER INN
20/07/17,CLOSED LANDFILL,RS COMPONENTS,66.86,EQUIPMENT,ELECTRICAL PARTS AND EQUIPMENT
20/07/17,ADDLESTONE YC,TVLICENSING.CO.UK,147.00,FEES,"CONSULTING, MANAGEMENT, AND PUBLIC RELATIONS SVCS"
20/07/17,HEAD OF COUNTRYSIDE,METHOLD VEHICLE HIRE,105.00,HIRE OF VEHICLES,AUTOMOBILE RENTAL AGENCY-NOT ELSEWHERE CLASSIFIED
20/07/17,WOODLANDS COMMUNITY HOME,GIGANTIC.COM TKTS,-110.00,EDUC VISITS/HOLS/CAMPS/TOYS,"BANDS, ORCHESTRAS, & MISC ENTRTNRS-NOT ELSWHR CLAS"
20/07/17,FAMILIES REIGATE AND BANSTREAD,AMAZON UK MARKETPLACE,7.77,EQUIPMENT,BOOK STORES
20/07/17,FAMILIES REIGATE AND BANSTREAD,BARGAIN BOOZE 2049,1.79,PURCHASE OF FOOD (RAW MATERIALS),"PACKAGE STORES, BEER, WINE, LIQUOR"
20/07/17,TANDRIDGE LOCALITY TEAM,TRAVELODGE,72.25,OTHER COMMUNITY CARE PRIV,TRAVELODGE
20/07/17,FAMILIES REIGATE AND BANSTREAD,FOODWISE HORLEY,3.09,PURCHASE OF FOOD (RAW MATERIALS),"GROCERY STORES, SUPERMARKETS"
20/07/17,ACL CENTRAL EXPENDITURE,FACEBK 8W7FJC6W72,30.13,PUBLICITY,ADVERTISING SERVICES
20/07/17,COBHAM CHILDRENS CENTRE,WAITROSE 176,7.00,CURRICULUM CONSUMABLES,"GROCERY STORES, SUPERMARKETS"
20/07/17,COBHAM CHILDRENS CENTRE,WAITROSE 176,33.38,CURRICULUM CONSUMABLES,"GROCERY STORES, SUPERMARKETS"
20/07/17,CYWS COMMISSIONING,MAPLIN GUILDFORD GU1,14.99,CURRICULUM EQUIPMENT AND FURNITURE,TELECOMMUNICATION EQUIPMENT INCL TELEPHONE SALES
20/07/17,CAMHS SOCIAL WORKERS,PIZZA HUT ONLINE WEB,22.78,PUBLICITY,"EATING PLACES, RESTAURANTS"
20/07/17,TS SERVICE MANAGEMENT,SCREWFIX DIRECT,37.99,EQUIPMENT,"BUILDING MATERIALS, LUMBER STORES"
20/07/17,SOLD DAY TO DAY OPERATIONS,AMAZON UK MARKETPLACE,10.60,EQUIPMENT,BOOK STORES
20/07/17,ROW MAINTENANCE,AMAZON EU,27.99,EQUIPMENT,DIRECT MARKETING-OTHER DIRECT MARKETERS/NOT ELSEW.
20/07/17,TRANSPORT,AMAZON UK RETAIL AMAZO,13.00,OPERATIONAL FIRE EQUIPMENT,MISCELLANEOUS AND SPECIALTY RETAIL STORES
20/07/17,TRANSPORT,AMAZON EU,13.00,OPERATIONAL FIRE EQUIPMENT,DIRECT MARKETING-OTHER DIRECT MARKETERS/NOT ELSEW.
20/07/17,TRANSPORT,AMAZON EU,13.00,OPERATIONAL FIRE EQUIPMENT,DIRECT MARKETING-OTHER DIRECT MARKETERS/NOT ELSEW.
20/07/17,ASSET PLANNING - OPERATIONS,POST OFFICE COUNTER,12.98,POSTAGE AND COURIER CHARGES,POSTAL SERVICES-GOVERNMENT ONLY
20/07/17,TRANSPORT,KENDON PACKAGING GROUP,213.10,OPERATIONAL FIRE EQUIPMENT,"OFFICE, SCHOOL SUPPLY, AND STATIONERY STORES"
20/07/17,CYWS COMMISSIONING,ROBERT DYAS HOLDNG LTD,27.47,CURRICULUM EQUIPMENT AND FURNITURE,HARDWARE STORES
20/07/17,IMT PRODUCTION APPLICATIONS TEAM,AMAZON UK MARKETPLACE,246.60,STATIONERY,BOOK STORES
20/07/17,SOLD ESTATES MANAGEMENT,AMAZON UK MARKETPLACE,9.95,EQUIPMENT,BOOK STORES
20/07/17,SOLD ESTATES MANAGEMENT,AMAZON UK MARKETPLACE,15.61,EQUIPMENT,BOOK STORES
20/07/17,CYWS COMMISSIONING,SAINSBURYS SACAT 0828,17.25,REFRESHMENT COSTS,"GROCERY STORES, SUPERMARKETS"
20/07/17,SOLD ESTATES MANAGEMENT,AMAZON.CO.UK,5.55,EQUIPMENT,MISCELLANEOUS AND SPECIALTY RETAIL STORES
20/07/17,SOLD ESTATES MANAGEMENT,AMAZON UK MARKETPLACE,8.40,EQUIPMENT,BOOK STORES
20/07/17,CS BUSINESS SUPPORT WEST,WWW.TROPHYSTORE.CO.UK,11.48,EXPENSES,"GIFT, CARD, NOVELTY AND SOUVENIR SHOPS"
20/07/17,REDHILL & BANSTEAD CMHRS CARE,HMCTS-SURREY125,75.00,FEES,FINES
20/07/17,KARIBU COMMUNITY HOME,CHESSINGTON WORLD,417.00,EDUC VISITS/HOLS/CAMPS/TOYS,"AMUSEMENT PARKS,CARNIVALS,CIRCUS,FORTUNE TELLERS"
20/07/17,SOLD ESTATES MANAGEMENT,AMAZON EU,15.87,EQUIPMENT,DIRECT MARKETING-OTHER DIRECT MARKETERS/NOT ELSEW.
20/07/17,CHEYNE WALK COMMUNITY HOME,CURRYS,229.99,EQUIPMENT,ELECTRONIC SALES
20/07/17,TARGETED INTERVENTION,TESCO STORES-2047,13.70,EDUC VISITS/HOLS/CAMPS/TOYS,"GROCERY STORES, SUPERMARKETS"
20/07/17,TRAFFIC MANAGEMENT,ARGOS LTD,19.98,EQUIPMENT,DISCOUNT STORES
20/07/17,LIBERTAS COMMUNITY HOME,MARKS&SPENCER PLC,168.50,"CLOTHING, UNIFORM AND LAUNDRY","GROCERY STORES, SUPERMARKETS"
20/07/17,SYG 2015                                ,AMAZON EU,40.00,EQUIPMENT,DIRECT MARKETING-OTHER DIRECT MARKETERS/NOT ELSEW.
20/07/17,CHEYNE WALK COMMUNITY HOME,AMAZON UK MARKETPLACE,16.98,EQUIPMENT,BOOK STORES
20/07/17,FAMILIES SURREY HEATH,WILKO RETAIL LIMIT,10.00,CURRICULUM CONSUMABLES,HOUSEHOLD APPLIANCE STORES
20/07/17,CYWS COMMISSIONING,COMMERCIAL KITCHEN EQU,15.00,CURRICULUM CONSUMABLES,"COMMERCIAL EQUIPMENT, NOT ELSEWHERE CLASSIFIED"
20/07/17,ARUNDEL,ASDA SUPERSTORE,35.00,CLEANING MATERIALS,"GROCERY STORES, SUPERMARKETS"
20/07/17,COUNTY HALL,TLC (SOUTHERN) LTD,165.40,EQUIPMENT,HOUSEHOLD APPLIANCE STORES
20/07/17,TRANSPORT,LIFT COMPONENTS,310.32,OPERATIONAL FIRE EQUIPMENT,ELECTRICAL PARTS AND EQUIPMENT
20/07/17,SOLD ESTATES MANAGEMENT,WWW.CLADINGCENTRE.COM,331.80,DAY TO DAY MAINTENANCE,"BUILDING MATERIALS, LUMBER STORES"
20/07/17,PROPERTY OPERATIONS TEAM,SCREWFIX GUILDFORD,94.46,PURCHASE OF BUILDING MATERIALS,"BUILDING MATERIALS, LUMBER STORES"
20/07/17,QUADRANT COURT WOKING,WICKES,30.00,EQUIPMENT,HOME SUPPLY WAREHOUSE STORES
20/07/17,HILLSIDE,TESCO STORE 3149,4.00,PURCHASE OF FOOD (RAW MATERIALS),"GROCERY STORES, SUPERMARKETS"
20/07/17,HILLSIDE,TESCO STORE 3149,58.29,PURCHASE OF FOOD (RAW MATERIALS),"GROCERY STORES, SUPERMARKETS"
20/07/17,DRAMA WARDROBE,JEM DRY CLEANING,199.75,CLEANING AND DOMESTIC SUPPLIES,DRY CLEANERS
20/07/17,SOLD ESTATES MANAGEMENT,AMAZON UK MARKETPLACE,55.47,VEHICLE RUNNING COSTS,BOOK STORES
20/07/17,SOLD DAY TO DAY OPERATIONS,AMAZON EU,10.98,EQUIPMENT,DIRECT MARKETING-OTHER DIRECT MARKETERS/NOT ELSEW.
20/07/17,RUTH HOUSE,G J HONOUR,148.20,PURCHASE OF FOOD (RAW MATERIALS),"MISC FOOD STORE-CONVENIENCE,MRKT,SPLTY,VENDNG MACS"
20/07/17,LIBERTAS COMMUNITY HOME,JUSTGIVING.COM,100.00,EDUC VISITS/HOLS/CAMPS/TOYS,"ORGANIZATIONS, CHARITABLE AND SOCIAL SERVICES"
20/07/17,TRANSPORT,FELTEN SHEET METAL,282.24,OPERATIONAL FIRE EQUIPMENT,HARDWARE EQUIPMENT AND SUPPLIES
20/07/17,TRANSPORT,GEOGRAPHERS A-Z,90.62,OPERATIONAL FIRE EQUIPMENT,BOOK STORES
20/07/17,SOLD DAY TO DAY OPERATIONS,AMAZON UK MARKETPLACE,139.85,FIXTURES AND FITTINGS,BOOK STORES
20/07/17,TRANSPORT,SP SERVICES,59.94,OPERATIONAL FIRE EQUIPMENT,DENTAL/LAB/MED/OPHTHALMIC HOSP EQUIP & SUPPLIES
20/07/17,LIBERTAS COMMUNITY HOME,CURRYS S/S,46.99,FURNITURE,ELECTRONIC SALES
20/07/17,CONDITION REPAIRS - TEAM 3 - NPR,WWW.SIGNFIX.CO.UK,94.90,EQUIPMENT,INDUSTRIAL SUPPLIES NOT ELSEWHERE CLASSIFIED
20/07/17,SOUTH WEST AREA TEAM,SURREY CC CARD PAY,50.00,TRAINING EXPENSES EXTERNAL GENERAL,COMPUTER NETWORK/INFORMATION SERVICES
20/07/17,PSSS HEARING IMPAIRED,WWW.DIGITALSAVE.CO.UK,12.99,EQUIPMENT,ELECTRONIC SALES
20/07/17,HOPE SERVICE - WEST,ASDA SUPERSTORE,7.60,PURCHASE OF FOOD (RAW MATERIALS),"GROCERY STORES, SUPERMARKETS"
20/07/17,NORTH EAST AGENCY PLACE (ED),AMAZON EU,33.98,EQUIPMENT,DIRECT MARKETING-OTHER DIRECT MARKETERS/NOT ELSEW.
20/07/17,ACL CENTRAL EXPENDITURE,AMAZON EU,27.07,EQUIPMENT,DIRECT MARKETING-OTHER DIRECT MARKETERS/NOT ELSEW.
20/07/17,HOPE SERVICE - WEST,SAINSBURYS TO YOU 0686,65.80,PURCHASE OF FOOD (RAW MATERIALS),"GROCERY STORES, SUPERMARKETS"
20/07/17,LIBERTAS COMMUNITY HOME,SIX CARD CONTACTLESS S,4.00,VEHICLE RUNNING COSTS,AUTOMOBILE PARKING LOTS AND GARAGES
20/07/17,PROPERTY OPERATIONS TEAM,SCREWFIX GUILDFORD,-2.99,PURCHASE OF BUILDING MATERIALS,"BUILDING MATERIALS, LUMBER STORES"
20/07/17,KARIBU COMMUNITY HOME,NOTONTHEHIGHSTREET.COM,-24.00,EDUC VISITS/HOLS/CAMPS/TOYS,MISCELLANEOUS AND SPECIALTY RETAIL STORES
20/07/17,TRANSPORT,AMAZON EU,165.93,OPERATIONAL FIRE EQUIPMENT,DIRECT MARKETING-OTHER DIRECT MARKETERS/NOT ELSEW.
20/07/17,TRANSPORT,AMAZON UK MARKETPLACE,49.98,OPERATIONAL FIRE EQUIPMENT,BOOK STORES
20/07/17,TRANSPORT,AMAZON EU,9.16,STATIONERY,DIRECT MARKETING-OTHER DIRECT MARKETERS/NOT ELSEW.
21/07/17,NE CARE - CP & COURT LAC,SURREY CC CARD PAY,-9.00,OTHER COMMUNITY CARE VOL,COMPUTER NETWORK/INFORMATION SERVICES
21/07/17,NE CARE - CP & COURT LAC,SURREY CC CARD PAY,40.00,OTHER COMMUNITY CARE VOL,COMPUTER NETWORK/INFORMATION SERVICES
21/07/17,LEAVING CARE PACKAGES,TVLICENSING.CO.UK,147.00,EQUIPMENT,"CONSULTING, MANAGEMENT, AND PUBLIC RELATIONS SVCS"
21/07/17,COUNTRYSIDE PROJECT DEVELOPMENT,SURVEYMONKEY.COM,26.00,SUBSCRIPTIONS,DIRECT MARKETING-CONTINUITY/SUBSCRIPTION MERCHANTS
21/07/17,SW CARE - NON-LAC CP & COURT,GRO HM PASSPORT OFFICE,-23.40,LEGAL EXPENSES,GOVERNMENT SERVICES-NOT ELSEWHERE CLASSIFIED
21/07/17,FAIRCROFT COMMUNITY HOME,BURGER KING GUILDFORD,17.87,REFRESHMENT COSTS,FAST FOOD RESTAURANTS
21/07/17,RUTH HOUSE,HOBBYCRAFT,39.00,EDUC VISITS/HOLS/CAMPS/TOYS,"ARTIST SUPPLY STORES, CRAFT SHOPS"
21/07/17,ARUNDEL,TESCO STORES 5999,137.33,REFRESHMENT COSTS,"GROCERY STORES, SUPERMARKETS"
21/07/17,ARUNDEL,TESCO STORES 5999,14.00,REFRESHMENT COSTS,"GROCERY STORES, SUPERMARKETS"
21/07/17,ROW MAINTENANCE,AMAZON UK MARKETPLACE,27.30,EQUIPMENT,BOOK STORES
21/07/17,ROW MAINTENANCE,AMAZON UK MARKETPLACE,170.00,EQUIPMENT,BOOK STORES
21/07/17,SUPERFAST BROADBAND ECONOMIC DEVELOPMENT,LAYERSHIFT,60.00,COMPUTER SERVICES,COMPUTER NETWORK/INFORMATION SERVICES
21/07/17,SOLD DAY TO DAY OPERATIONS,AMAZON UK MARKETPLACE,8.60,EQUIPMENT,BOOK STORES
21/07/17,WOODLANDS COMMUNITY HOME,SAINSBURYS SACAT 0686,5.00,EQUIPMENT,"GROCERY STORES, SUPERMARKETS"
21/07/17,WOODLANDS COMMUNITY HOME,SAINSBURYS SACAT 0686,26.46,PURCHASE OF FOOD (RAW MATERIALS),"GROCERY STORES, SUPERMARKETS"
21/07/17,ASSET PLANNING GROUP,C-SCOPE INTERNATIONAL,244.80,EQUIPMENT,SPORTING GOODS STORES
21/07/17,DEVELOPMENT TEAM,AMAZON UK MARKETPLACE,79.99,STATIONERY,BOOK STORES
21/07/17,BURBANK COMMUNITY HOME,W M MORRISONS,15.85,PURCHASE OF FOOD (RAW MATERIALS),"GROCERY STORES, SUPERMARKETS"
21/07/17,ASSET PLANNING - OPERATIONS,BRITISH STANDARDS,139.20,BOOKS,BUSINESS SERVICES-NOT ELSEWHERE CLASSIFIED
21/07/17,DEVELOPMENT TEAM,AMAZON.CO.UK,161.00,STATIONERY,MISCELLANEOUS AND SPECIALTY RETAIL STORES
21/07/17,TRANSPORT,WWW.CAMLOCK.COM,132.00,OPERATIONAL FIRE EQUIPMENT,"BUILDING MATERIALS, LUMBER STORES"
21/07/17,RBDM - GENERAL,AMAZON.CO.UK,58.95,EQUIPMENT,MISCELLANEOUS AND SPECIALTY RETAIL STORES
21/07/17,HOPE SERVICE - WEST,PAYPAL  FFT,30.00,TRAINING EXPENSES EXTERNAL GENERAL,"ORGANIZATIONS, CHARITABLE AND SOCIAL SERVICES"
21/07/17,HERITAGE PUBLIC SERVICE,WILKO RETAIL LIMIT,6.00,REFRESHMENT COSTS,HOUSEHOLD APPLIANCE STORES
21/07/17,TRANSPORT,INTRAMARK,142.20,"CLOTHING, UNIFORM AND LAUNDRY",MISCELLANEOUS AND SPECIALTY RETAIL STORES
21/07/17,ACL CENTRAL EXPENDITURE,POTCLAYS LIMITED,86.21,EQUIPMENT,"GAME, TOY, AND HOBBY SHOPS"
21/07/17,PE/CDT MAINTENANCE OVERHEADS,CSI MANUFACTURING,436.75,ITEMS PURCHASED FOR RE-SALE,"COMMERCIAL EQUIPMENT, NOT ELSEWHERE CLASSIFIED"
21/07/17,BURBANK COMMUNITY HOME,H&M,20.04,"CLOTHING, UNIFORM AND LAUNDRY",MEN'S AND WOMEN'S CLOTHING STORES
21/07/17,LIBERTAS COMMUNITY HOME,HOMEBASE LTD 050,20.00,EQUIPMENT,"BUILDING MATERIALS, LUMBER STORES"
21/07/17,HEAD OF SERVICES FOR YOUNG PEOPLE,CAPITA RECRUITMENT VET,52.10,FEES,PROFESSIONAL SERVICES-NOT ELSEWHERE CLASSIFIED
21/07/17,LIBERTAS COMMUNITY HOME,POST OFFICE COUNTER,3.90,POSTAGE AND COURIER CHARGES,POSTAL SERVICES-GOVERNMENT ONLY
21/07/17,IMT CRITICAL ENVIRONMENTS,COMMS EXP,181.20,COMPUTER HARDWARE,ELECTRONIC SALES
21/07/17,TRANSPORT,DRINKMASTER LTD,210.60,OPERATIONAL FIRE EQUIPMENT,"MISC FOOD STORE-CONVENIENCE,MRKT,SPLTY,VENDNG MACS"
21/07/17,SW CARE - NON-LAC CP & COURT,GRO HM PASSPORT OFFICE,23.40,LEGAL EXPENSES,GOVERNMENT SERVICES-NOT ELSEWHERE CLASSIFIED
21/07/17,IMT CRITICAL ENVIRONMENTS,AMAZON UK MARKETPLACE,12.98,EQUIPMENT,BOOK STORES
21/07/17,MALLOW CRESCENT,ARGOS RETAIL GROUP,79.96,EQUIPMENT,DISCOUNT STORES
21/07/17,SOLD BUSINESS SUPPORT,AMAZON.CO.UK,34.86,EQUIPMENT,MISCELLANEOUS AND SPECIALTY RETAIL STORES
21/07/17,SOLD DAY TO DAY OPERATIONS,AMAZON UK MARKETPLACE,13.94,EQUIPMENT,BOOK STORES
21/07/17,SOLD BUSINESS SUPPORT,AMAZON UK MARKETPLACE,7.28,EQUIPMENT,BOOK STORES
21/07/17,ORDER TO CASH TEAM,WWW.GOV.UK,10.00,FEES,PROFESSIONAL SERVICES-NOT ELSEWHERE CLASSIFIED
21/07/17,POLICY AND PERFORMANCE TEAM,CIVIL SERVICE COLLEGE,780.00,TRAINING EXPENSES EXTERNAL GENERAL,"SCHOOLS, BUSINESS AND SECRETARIAL"
21/07/17,LIBERTAS COMMUNITY HOME,SAINSBURYS 0652,21.80,PURCHASE OF FOOD (RAW MATERIALS),"GROCERY STORES, SUPERMARKETS"
21/07/17,LIBERTAS COMMUNITY HOME,SAINSBURYS 0652,113.81,PURCHASE OF FOOD (RAW MATERIALS),"GROCERY STORES, SUPERMARKETS"
21/07/17,LIBERTAS COMMUNITY HOME,SAINSBURYS 0652,2.50,EQUIPMENT,"GROCERY STORES, SUPERMARKETS"
21/07/17,NW TEACHERS,WWW.ELKLAN.CO.UK,495.00,TRAINING USING EXTERNAL PROVIDERS,SCHOOLS & EDUCATIONAL SVC-NOT ELSEWHERE CLASSIFIED
21/07/17,PROPERTY OPERATIONS TEAM,SCREWFIX GUILDFORD,28.98,PURCHASE OF BUILDING MATERIALS,"BUILDING MATERIALS, LUMBER STORES"
21/07/17,SPELTHORNE CMHRS CARE,HMCTS-SURREY125,75.00,FEES,FINES
21/07/17,HILLSIDE,SAINSBURYS 0675,95.21,PURCHASE OF FOOD (RAW MATERIALS),"GROCERY STORES, SUPERMARKETS"
21/07/17,TRAINING AND DEVELOPMENT,MERCURE BRIGHTON,576.00,TRAINING EXPENSES EXTERNAL GENERAL,"LODGING-HOTELS,MOTELS,RESORTS-NOT CLASSIFIED"
21/07/17,TARGETED INTERVENTION,TESCO STORES-2047,5.20,EDUC VISITS/HOLS/CAMPS/TOYS,"GROCERY STORES, SUPERMARKETS"
21/07/17,PROPERTY OPERATIONS TEAM,WICKES,27.54,PURCHASE OF BUILDING MATERIALS,"BUILDING MATERIALS, LUMBER STORES"
21/07/17,TRANSPORT,AMAZON UK MARKETPLACE,6.94,OPERATIONAL FIRE EQUIPMENT,BOOK STORES
21/07/17,HOPE SERVICE - WEST,LIDL UK,14.30,REFRESHMENT COSTS,"GROCERY STORES, SUPERMARKETS"
21/07/17,WOODLANDS COMMUNITY HOME,SAINSBURYS TO YOU 0686,3.00,PURCHASE OF FOOD (RAW MATERIALS),"GROCERY STORES, SUPERMARKETS"
21/07/17,WOODLANDS COMMUNITY HOME,SAINSBURYS TO YOU 0686,111.80,PURCHASE OF FOOD (RAW MATERIALS),"GROCERY STORES, SUPERMARKETS"
21/07/17,RUTH HOUSE,SAINSBURYS TO YOU 0686,129.90,PURCHASE OF FOOD (RAW MATERIALS),"GROCERY STORES, SUPERMARKETS"
21/07/17,RUTH HOUSE,SAINSBURYS TO YOU 0686,515.70,PURCHASE OF FOOD (RAW MATERIALS),"GROCERY STORES, SUPERMARKETS"
21/07/17,E&I - COMMUNITY RECYCLING CENTRES       ,GOOGLE  ADWS2060179426,500.00,PUBLICITY,DIRECT MARKETING-CONTINUITY/SUBSCRIPTION MERCHANTS
21/07/17,APPLEWOOD,ASDA HOME SHOPPING,174.25,PURCHASE OF FOOD (RAW MATERIALS),"GROCERY STORES, SUPERMARKETS"
21/07/17,RUTH HOUSE,ARGOS LTD,-9.99,EQUIPMENT,DISCOUNT STORES
21/07/17,APPLEWOOD,ASDA HOME SHOPPING,-.51,PURCHASE OF FOOD (RAW MATERIALS),"GROCERY STORES, SUPERMARKETS"
21/07/17,COMMUNICATIONS TEAM,AMZ OPENNY UK,-6.99,STATIONERY,MISCELLANEOUS AND SPECIALTY RETAIL STORES
22/07/17,"NE REF, ASS & INT SERVICE - HUB 1",APL /STATIONC,28.77,TRANSPORT SOCIAL CARE-TAXI,LIMOUSINES AND TAXICABS
22/07/17,FAIRCROFT COMMUNITY HOME,SAINSBURYS SACAT 0687,16.60,PURCHASE OF FOOD (RAW MATERIALS),"GROCERY STORES, SUPERMARKETS"
22/07/17,BURBANK COMMUNITY HOME,SPORTSDIRECT 174,64.55,"CLOTHING, UNIFORM AND LAUNDRY",SPORTING GOODS STORES
22/07/17,TANDRIDGE LOCALITY TEAM,TRAVELODGE,169.00,OTHER COMMUNITY CARE PRIV,TRAVELODGE
22/07/17,CHEYNE WALK COMMUNITY HOME,CINEWORLD CRA CP,72.10,EDUC VISITS/HOLS/CAMPS/TOYS,"THEATRICAL PRODUCERS(EXCL MOTION PIX),TICKET AGNCY"
22/07/17,BURBANK COMMUNITY HOME,SHOE ZONE LTD,20.05,"CLOTHING, UNIFORM AND LAUNDRY",SHOE STORES
22/07/17,SOLD ESTATES MANAGEMENT,PYFORD MARINA,327.40,DAY TO DAY MAINTENANCE,"MARINAS, MARINE SERVICE/SUPPLIES"
22/07/17,CS BUSINESS SUPPORT WEST,AMAZON EU,8.72,EXPENSES,DIRECT MARKETING-OTHER DIRECT MARKETERS/NOT ELSEW.
22/07/17,FAIRCROFT COMMUNITY HOME,BREWERS FAYRE 41511790,26.27,REFRESHMENT COSTS,"EATING PLACES, RESTAURANTS"
22/07/17,BURBANK COMMUNITY HOME,W M MORRISONS,10.00,3RD PARTY PAYMENTS PRIVATE INDIV,"GROCERY STORES, SUPERMARKETS"
22/07/17,TRANSPORT,AMAZON UK RETAIL AMAZO,17.48,COMPUTER HARDWARE,MISCELLANEOUS AND SPECIALTY RETAIL STORES
22/07/17,FAIRCROFT COMMUNITY HOME,3C_ PORTSMOUTH CITY CO,5.00,MISCELLANEOUS STAFF TRAVEL,AUTOMOBILE PARKING LOTS AND GARAGES
22/07/17,FAIRCROFT COMMUNITY HOME,J D SPORTS 542,100.10,"CLOTHING, UNIFORM AND LAUNDRY",SPORTING GOODS STORES
22/07/17,SOLD DAY TO DAY OPERATIONS,WWW.QUICKSARCHERY.CO.U,412.33,EQUIPMENT,SPORTING GOODS STORES
22/07/17,HOLLAND CLOSE RESIDENTIAL HOME,TESCO-STORES 6647,158.66,PURCHASE OF FOOD (RAW MATERIALS),"GROCERY STORES, SUPERMARKETS"
22/07/17,HILLSIDE,TESCO STORE 3149,56.22,PURCHASE OF FOOD (RAW MATERIALS),"GROCERY STORES, SUPERMARKETS"
22/07/17,HILLSIDE,TESCO STORE 3149,240.92,PURCHASE OF FOOD (RAW MATERIALS),"GROCERY STORES, SUPERMARKETS"
22/07/17,VIRTUAL SCHOOL FOR LAC PUPIL PREMIUM,AMAZON EU,122.94,BOOKS,DIRECT MARKETING-OTHER DIRECT MARKETERS/NOT ELSEW.
22/07/17,FAMILY GROUP CONFERENCES,AMAZON UK MARKETPLACE,20.99,BOOKS,BOOK STORES
23/07/17,CHEYNE WALK COMMUNITY HOME,PRODUCT SUPPORT AG,2.00,EQUIPMENT,DIRECT MARKETING-CONTINUITY/SUBSCRIPTION MERCHANTS
23/07/17,BURBANK COMMUNITY HOME,PRIMARK,10.50,"CLOTHING, UNIFORM AND LAUNDRY",FAMILY CLOTHING STORES
23/07/17,BURBANK COMMUNITY HOME,PRIMARK,8.00,"CLOTHING, UNIFORM AND LAUNDRY",FAMILY CLOTHING STORES
23/07/17,WOODLANDS COMMUNITY HOME,VUE BSL-SITE,51.53,EDUC VISITS/HOLS/CAMPS/TOYS,MOTION PICTURE THEATERS
23/07/17,BURBANK COMMUNITY HOME,SOFTWARENERDS.CO.UK,34.00,EQUIPMENT,ELECTRONIC SALES
23/07/17,WOODLANDS COMMUNITY HOME,ASDA  STORES 4775,23.58,PURCHASE OF FOOD (RAW MATERIALS),"GROCERY STORES, SUPERMARKETS"
23/07/17,BURBANK COMMUNITY HOME,DEBENHAMS,24.00,"CLOTHING, UNIFORM AND LAUNDRY",DEPARTMENT STORES
23/07/17,WOODLANDS COMMUNITY HOME,PETS AT HOME,4.50,CLEANING MATERIALS,VETERINARY SERVICES
23/07/17,COUNTYWIDE MANAGED PRINT SERVICE,AMAZON UK MARKETPLACE,32.79,COMPUTER CONSUMABLES,BOOK STORES
23/07/17,WOODLANDS COMMUNITY HOME,ARGOS LTD,39.99,3RD PARTY PAYMENTS PRIVATE INDIV,DISCOUNT STORES
23/07/17,CHEYNE WALK COMMUNITY HOME,TESCO STORES 2560,11.75,EDUC VISITS/HOLS/CAMPS/TOYS,"GROCERY STORES, SUPERMARKETS"
23/07/17,BUSINESS IMPROVEMENTS,AMAZON.CO.UK,80.14,EQUIPMENT,MISCELLANEOUS AND SPECIALTY RETAIL STORES
23/07/17,FAIRCROFT COMMUNITY HOME,SAINSBURYS 0687,43.14,PURCHASE OF FOOD (RAW MATERIALS),"GROCERY STORES, SUPERMARKETS"
23/07/17,BURBANK COMMUNITY HOME,W M MORRISONS,8.63,PURCHASE OF FOOD (RAW MATERIALS),"GROCERY STORES, SUPERMARKETS"
23/07/17,BURBANK COMMUNITY HOME,SAINSBURYS SACAT 0802,4.30,PURCHASE OF FOOD (RAW MATERIALS),"GROCERY STORES, SUPERMARKETS"
23/07/17,REMA ETHNIC/LANGUAGE MINORITY SUPPORT,AMAZON EU,55.47,BOOKS,DIRECT MARKETING-OTHER DIRECT MARKETERS/NOT ELSEW.
23/07/17,SOLD CATERING,ASDA SUPERSTORE,43.42,PURCHASE OF FOOD (RAW MATERIALS),"GROCERY STORES, SUPERMARKETS"
23/07/17,COVEHAM,AMAZON EU,16.99,EDUC VISITS/HOLS/CAMPS/TOYS,DIRECT MARKETING-OTHER DIRECT MARKETERS/NOT ELSEW.
23/07/17,ACL CENTRAL EXPENDITURE,FACEBK LMC2ECNW72,30.12,PUBLICITY,ADVERTISING SERVICES
24/07/17,YSS YOUTH CENTRE IMPROVEMENTS,TVLICENSING.CO.UK,147.00,FEES,"CONSULTING, MANAGEMENT, AND PUBLIC RELATIONS SVCS"
24/07/17,YSS YOUTH CENTRE IMPROVEMENTS,TVLICENSING.CO.UK,147.00,FEES,"CONSULTING, MANAGEMENT, AND PUBLIC RELATIONS SVCS"
24/07/17,BURBANK COMMUNITY HOME,TFL PENALTY CHARGE,65.00,PURCHASE CARD TRANSACTION LOG DEFAULT,"BRIDGE AND ROAD FEES, TOLLS"
24/07/17,SURREY ARTS GENERAL,TVLICENSING.CO.UK,147.00,EQUIPMENT,"CONSULTING, MANAGEMENT, AND PUBLIC RELATIONS SVCS"
24/07/17,FAIRCROFT COMMUNITY HOME,GREAT ESCAPE UK,99.00,EDUC VISITS/HOLS/CAMPS/TOYS,COMPUTER SOFTWARE STORES
24/07/17,WOODLANDS COMMUNITY HOME,TENPIN,4.00,EDUC VISITS/HOLS/CAMPS/TOYS,"CLUBS-CNTRY,MBRSHIP(ATHLET,REC,SPRTS,PRIVATE GOLF"
24/07/17,WOODLANDS COMMUNITY HOME,TENPIN,13.00,REFRESHMENT COSTS,"CLUBS-CNTRY,MBRSHIP(ATHLET,REC,SPRTS,PRIVATE GOLF"
24/07/17,HOLLAND CLOSE RESIDENTIAL HOME,HOMEBASE LTD 247,26.17,FIXTURES AND FITTINGS,"BUILDING MATERIALS, LUMBER STORES"
24/07/17,FAMILIES GUILDFORD,CO-OP GROUP FOOD,4.46,PURCHASE OF FOOD (RAW MATERIALS),"GROCERY STORES, SUPERMARKETS"
24/07/17,WOODLANDS COMMUNITY HOME,WWW.DOMINOS.CO.UK,50.44,PURCHASE OF FOOD (RAW MATERIALS),"EATING PLACES, RESTAURANTS"
24/07/17,FAMILIES MOLE VALLEY,LIDL UK,8.40,PURCHASE OF FOOD (RAW MATERIALS),"GROCERY STORES, SUPERMARKETS"
24/07/17,CHEYNE WALK COMMUNITY HOME,SPICE BOYS INDIAN,15.00,PURCHASE OF FOOD (RAW MATERIALS),FAST FOOD RESTAURANTS
24/07/17,FAMILIES ELMBRIDGE,SAINSBURYS SACAT 2663,2.05,PURCHASE OF FOOD (RAW MATERIALS),"GROCERY STORES, SUPERMARKETS"
24/07/17,WOODLANDS COMMUNITY HOME,SAINSBURYS 0686,12.60,PURCHASE OF FOOD (RAW MATERIALS),"GROCERY STORES, SUPERMARKETS"
24/07/17,PE/CDT MAINTENANCE OVERHEADS,BEARINGS AND BELTS,7.21,ITEMS PURCHASED FOR RE-SALE,"ARCHITECTURAL, ENGINEERING, AND SURVEYING SERVICES"
24/07/17,SOLD DAY TO DAY OPERATIONS,WWW.HYDRASPORTS.CO.UK,194.45,EQUIPMENT,SPORTING GOODS STORES
24/07/17,WOODLANDS COMMUNITY HOME,WWW.TENPIN.CO.UK,68.70,EDUC VISITS/HOLS/CAMPS/TOYS,"CLUBS-CNTRY,MBRSHIP(ATHLET,REC,SPRTS,PRIVATE GOLF"
24/07/17,SOLD DAY TO DAY OPERATIONS,THE OUTDOORS COMPANY,153.20,"CLOTHING, UNIFORM AND LAUNDRY",SPORTING GOODS STORES
24/07/17,ADDLESTONE YC,TESCO STORES 2454,8.96,PURCHASE OF FOOD (RAW MATERIALS),"GROCERY STORES, SUPERMARKETS"
24/07/17,PRISON CAPITATION                       ,AMAZON UK MARKETPLACE,48.40,STATIONERY,BOOK STORES
24/07/17,PRISON CAPITATION                       ,AMAZON UK MARKETPLACE,39.54,STATIONERY,BOOK STORES
24/07/17,HILLSIDE,WILKO RETAIL LIMIT,2.50,CLEANING AND DOMESTIC SUPPLIES,HOUSEHOLD APPLIANCE STORES
24/07/17,FAMILIES SPELTHORNE,TESCO STORES-2047,1.60,REFRESHMENT COSTS,"GROCERY STORES, SUPERMARKETS"
24/07/17,FAMILIES SPELTHORNE,TESCO STORES-2047,1.60,REFRESHMENT COSTS,"GROCERY STORES, SUPERMARKETS"
24/07/17,HILLSIDE,SAINSBURYS SACAT 0784,6.85,PURCHASE OF FOOD (RAW MATERIALS),"GROCERY STORES, SUPERMARKETS"
24/07/17,LOWER MOLE COUNTRYSIDE PROJECT,TESCO STORES 6320,26.88,POSTAGE AND COURIER CHARGES,"GROCERY STORES, SUPERMARKETS"
24/07/17,PROPERTY OPERATIONS TEAM,WICKES,34.95,PURCHASE OF BUILDING MATERIALS,"BUILDING MATERIALS, LUMBER STORES"
24/07/17,WOODLANDS COMMUNITY HOME,AMAZON UK MARKETPLACE,11.25,EQUIPMENT,BOOK STORES
24/07/17,WOODLANDS COMMUNITY HOME,AMAZON UK MARKETPLACE,2.50,POSTAGE AND COURIER CHARGES,BOOK STORES
24/07/17,WOODLANDS COMMUNITY HOME,AMAZON UK MARKETPLACE,134.99,UPKEEP OF GROUNDS,BOOK STORES
24/07/17,PROPERTY OPERATIONS TEAM,TOOLSTATION LTD,12.50,PURCHASE OF BUILDING MATERIALS,HARDWARE STORES
24/07/17,CSAF 50+,WWW.RYMAN.CO.UK,49.90,STATIONERY,"OFFICE, SCHOOL SUPPLY, AND STATIONERY STORES"
24/07/17,CHILDREN'S RIGHTS TEAM,RYMAN,43.47,EQUIPMENT,"OFFICE, SCHOOL SUPPLY, AND STATIONERY STORES"
24/07/17,CHILDREN'S RIGHTS TEAM,TOYS R US,4.98,EQUIPMENT,MISCELLANEOUS AND SPECIALTY RETAIL STORES
24/07/17,FAIRCROFT COMMUNITY HOME,ODEON,9.60,REFRESHMENT COSTS,MOTION PICTURE THEATERS
24/07/17,DEMOCRATIC SERVICES TEAM,WWW.EXPRESSENVELOPES.C,64.68,STATIONERY,"OFFICE, SCHOOL SUPPLY, AND STATIONERY STORES"
24/07/17,FAIRCROFT COMMUNITY HOME,ODEON,4.85,REFRESHMENT COSTS,MOTION PICTURE THEATERS
24/07/17,FAIRCROFT COMMUNITY HOME,ODEON,32.25,EDUC VISITS/HOLS/CAMPS/TOYS,MOTION PICTURE THEATERS
24/07/17,EXTENDED HOPE,THE BAKERY SHOP,8.15,REFRESHMENT COSTS,BAKERIES
24/07/17,FAMILIES SPELTHORNE,FARMFOODS- SUNBURY,6.82,REFRESHMENT COSTS,"GROCERY STORES, SUPERMARKETS"
24/07/17,FAIRCROFT COMMUNITY HOME,MCDONALDS,9.44,REFRESHMENT COSTS,"EATING PLACES, RESTAURANTS"
24/07/17,FAMILIES REIGATE AND BANSTREAD,LONDIS SUPERMARKET D A,19.89,PURCHASE OF FOOD (RAW MATERIALS),"GROCERY STORES, SUPERMARKETS"
24/07/17,ORBIS TRAINING PROPERTY,WWW.THOMASTELFORD.ORG.,300.00,TRAINING EXPENSES EXTERNAL GENERAL,MISCELLANEOUS PUBLISHING AND PRINTING
24/07/17,BURBANK COMMUNITY HOME,WICKES,21.23,FIXTURES AND FITTINGS,HOME SUPPLY WAREHOUSE STORES
24/07/17,HOPE SERVICE - WEST,WWW.THECLEVERBAGGE,38.37,CURRICULUM CONSUMABLES,"QUICK COPY,REPRODUCTION AND BLUEPRINTING SERVICES"
24/07/17,MISC EDCAT SUPPORT,WWW.PARAGON.NET.UK RT,8.63,COMPUTER SERVICES,DIRECT MARKETING-CONTINUITY/SUBSCRIPTION MERCHANTS
24/07/17,ROW MAINTENANCE,DRAINAGE SALES,21.46,PURCHASE OF BUILDING MATERIALS,"BUILDING MATERIALS, LUMBER STORES"
24/07/17,DEMOCRATIC SERVICES TEAM,AMAZON.CO.UK,39.90,REFRESHMENT COSTS,MISCELLANEOUS AND SPECIALTY RETAIL STORES
24/07/17,ROW MAINTENANCE,FINE MESH METALS V/T,158.71,PURCHASE OF BUILDING MATERIALS,INDUSTRIAL SUPPLIES NOT ELSEWHERE CLASSIFIED
24/07/17,LIBERTAS COMMUNITY HOME,SAINSBURYS 0652,28.80,PURCHASE OF FOOD (RAW MATERIALS),"GROCERY STORES, SUPERMARKETS"
24/07/17,LIBERTAS COMMUNITY HOME,SAINSBURYS 0652,79.69,PURCHASE OF FOOD (RAW MATERIALS),"GROCERY STORES, SUPERMARKETS"
24/07/17,PROPERTY OPERATIONS TEAM,WEYBRIDGE,30.05,PURCHASE OF BUILDING MATERIALS,"BUILDING MATERIALS, LUMBER STORES"
24/07/17,ARUNDEL,TESCO STORES 5999,64.23,REFRESHMENT COSTS,"GROCERY STORES, SUPERMARKETS"
24/07/17,ARUNDEL,TESCO STORES 5999,2.00,REFRESHMENT COSTS,"GROCERY STORES, SUPERMARKETS"
24/07/17,SOLD ESTATES MANAGEMENT,HALFORDS 0763,30.95,VEHICLE REPAIRS AND MAINTENANCE,BICYCLE SHOPS-SALES AND SERVICE
24/07/17,SOLD DAY TO DAY OPERATIONS,AMAZON UK MARKETPLACE,38.97,EQUIPMENT,BOOK STORES
24/07/17,SOLD ESTATES MANAGEMENT,NATIONAL TYRE SERV,170.00,VEHICLE REPAIRS AND MAINTENANCE,"AUTOMOTIVE PARTS, ACCESSORIES STORES"
24/07/17,HILLSIDE,TESCO STORE 3149,5.60,PURCHASE OF FOOD (RAW MATERIALS),"GROCERY STORES, SUPERMARKETS"
24/07/17,HILLSIDE,TESCO STORE 3149,30.20,PURCHASE OF FOOD (RAW MATERIALS),"GROCERY STORES, SUPERMARKETS"
24/07/17,ACL CENTRAL EXPENDITURE,AMAZON EU,43.00,EQUIPMENT,DIRECT MARKETING-OTHER DIRECT MARKETERS/NOT ELSEW.
24/07/17,NW SECTION 17 CARE,TRAVELODGE,348.00,INDEPENDENT LIVING PLACEMENTS,TRAVELODGE
24/07/17,HOLLAND CLOSE RESIDENTIAL HOME,MARKS&SPENCER PLC,12.90,PURCHASE OF FOOD (RAW MATERIALS),"GROCERY STORES, SUPERMARKETS"
24/07/17,HOLLAND CLOSE RESIDENTIAL HOME,WILKO RETAIL LIMIT,9.25,CLEANING MATERIALS,HOUSEHOLD APPLIANCE STORES
24/07/17,TARGETED INTERVENTION,TESCO STORES-2047,20.74,EDUC VISITS/HOLS/CAMPS/TOYS,"GROCERY STORES, SUPERMARKETS"
24/07/17,ROW VOLUNTEERS EAST                     ,SHELL HORLEY,6.58,EQUIPMENT,SERVICE STATIONS WITH OR WITHOUT ANCILLARY SERVICE
24/07/17,MALLOW CRESCENT,TESCO STORE 2590,8.19,PURCHASE OF FOOD (RAW MATERIALS),"GROCERY STORES, SUPERMARKETS"
24/07/17,MALLOW CRESCENT,TESCO STORE 2590,107.23,PURCHASE OF FOOD (RAW MATERIALS),"GROCERY STORES, SUPERMARKETS"
24/07/17,DOWNLANDS COUNTRYSIDE PROJECT,WICKES BUILDING,107.98,PURCHASE OF BUILDING MATERIALS,"BUILDING MATERIALS, LUMBER STORES"
24/07/17,EXTENDED HOPE,TESCO STORE 2590,21.24,PURCHASE OF FOOD (RAW MATERIALS),"GROCERY STORES, SUPERMARKETS"
24/07/17,EXTENDED HOPE,TESCO STORE 2590,186.06,PURCHASE OF FOOD (RAW MATERIALS),"GROCERY STORES, SUPERMARKETS"
24/07/17,FAIRCROFT COMMUNITY HOME,AMAZON UK MARKETPLACE,20.97,EQUIPMENT,BOOK STORES
24/07/17,FAIRCROFT COMMUNITY HOME,AMAZON UK MARKETPLACE,11.97,EQUIPMENT,BOOK STORES
24/07/17,FAIRCROFT COMMUNITY HOME,TESCO STORE 2812,181.19,PURCHASE OF FOOD (RAW MATERIALS),"GROCERY STORES, SUPERMARKETS"
24/07/17,MALLOW CRESCENT,SAINSBURYS TO YOU 0652,5.40,PURCHASE OF FOOD (RAW MATERIALS),"GROCERY STORES, SUPERMARKETS"
24/07/17,MALLOW CRESCENT,SAINSBURYS TO YOU 0652,124.65,PURCHASE OF FOOD (RAW MATERIALS),"GROCERY STORES, SUPERMARKETS"
24/07/17,DOWNLANDS COUNTRYSIDE PROJECT,TESCO STORES,7.24,REFRESHMENT COSTS,"GROCERY STORES, SUPERMARKETS"
24/07/17,MALLOW CRESCENT,SAINSBURYS TO YOU 0652,16.60,PURCHASE OF FOOD (RAW MATERIALS),"GROCERY STORES, SUPERMARKETS"
24/07/17,MALLOW CRESCENT,SAINSBURYS TO YOU 0652,106.22,PURCHASE OF FOOD (RAW MATERIALS),"GROCERY STORES, SUPERMARKETS"
24/07/17,CSAF 50+,STK SHUTTERSTOCK.COM,-32.00,PUBLICITY,"COMMERCIAL ART, GRAPHICS, PHOTOGRAPHY"
24/07/17,CSF COMMUNICATIONS TEAM,HOO HOOTSUITE MEDIA I,-9.59,SUBSCRIPTIONS,DIRECT MARKETING-CONTINUITY/SUBSCRIPTION MERCHANTS
25/07/17,SW LOOKED AFTER TEAM,BRITISH A,401.74,MISCELLANEOUS STAFF TRAVEL,BRITISH A
25/07/17,BURBANK COMMUNITY HOME,IZ  JESSICA KINGSLEY (,38.50,EQUIPMENT,MISCELLANEOUS AND SPECIALTY RETAIL STORES
25/07/17,HOPE SERVICE - WEST,BP RUSHETT CONNECT,9.99,VEHICLE REPAIRS AND MAINTENANCE,SERVICE STATIONS WITH OR WITHOUT ANCILLARY SERVICE
25/07/17,BURBANK COMMUNITY HOME,AMAZON.CO.UK,10.94,3RD PARTY PAYMENTS PRIVATE INDIV,MISCELLANEOUS AND SPECIALTY RETAIL STORES
25/07/17,NW CARE - LAC,PREMIER INN,84.00,CHILDREN ACT SEC 17 PAYMENTS,PREMIER INN
25/07/17,SE CARE - NON-LAC CP & COURT,WWW.ARGOS.CO.UK,143.94,OTHER COMMUNITY CARE VOL,DISCOUNT STORES
25/07/17,E&I - COMMUNITY RECYCLING CENTRES       ,GOOGLE  ADWS2060179426,500.00,PUBLICITY,DIRECT MARKETING-CONTINUITY/SUBSCRIPTION MERCHANTS
25/07/17,ACL CENTRAL EXPENDITURE,FACEBK 693NHCSW72,30.12,PUBLICITY,ADVERTISING SERVICES
25/07/17,BURBANK COMMUNITY HOME,ASDA STORES 4823,12.90,"CLOTHING, UNIFORM AND LAUNDRY","GROCERY STORES, SUPERMARKETS"
25/07/17,FAMILIES GUILDFORD,CO-OP GROUP FOOD,5.00,PURCHASE OF FOOD (RAW MATERIALS),"GROCERY STORES, SUPERMARKETS"
25/07/17,CS BUSINESS SUPPORT WEST,AMAZON UK MARKETPLACE,14.21,EQUIPMENT,BOOK STORES
25/07/17,CHILDREN'S RIGHTS TEAM,AMAZON UK MARKETPLACE,18.98,EQUIPMENT,BOOK STORES
25/07/17,HILLSIDE,SAINSBURYS SACAT 0784,2.45,PURCHASE OF FOOD (RAW MATERIALS),"GROCERY STORES, SUPERMARKETS"
25/07/17,RUTH HOUSE,MUSBURY FABRICS,149.34,EQUIPMENT,MISCELLANEOUS HOUSE FURNISHING SPECIALTY SHOPS
25/07/17,SERVICE DELIVERY RESOURCES,CANTEL (UK) LIMITED,737.88,OPERATIONAL FIRE EQUIPMENT,DENTAL/LAB/MED/OPHTHALMIC HOSP EQUIP & SUPPLIES
25/07/17,FAMILIES REIGATE AND BANSTREAD,OXYGEN FREEJUMPING,119.50,EDUC VISITS/HOLS/CAMPS/TOYS,"CLUBS-CNTRY,MBRSHIP(ATHLET,REC,SPRTS,PRIVATE GOLF"
25/07/17,PRISON CAPITATION                       ,AMAZON UK MARKETPLACE,25.99,STATIONERY,BOOK STORES
25/07/17,SECTOR MANAGER,WWW.REXINTER.COM,598.75,ITEMS PURCHASED FOR RE-SALE,"GIFT, CARD, NOVELTY AND SOUVENIR SHOPS"
25/07/17,ORDER TO CASH TEAM,WWW.MONEYCLAIM.GOV,77.00,FEES,GOVERNMENT SERVICES-NOT ELSEWHERE CLASSIFIED
25/07/17,BANSTEAD YOUTH CENTRE,MR SNOB LIMITED,39.00,DAY TO DAY MAINTENANCE,"HAT CLEANING SHOPS, SHOE REPAIR SHOPS, SHOE SHINE"
25/07/17,TARGETED INTERVENTION,STARBUCKS,8.30,EDUC VISITS/HOLS/CAMPS/TOYS,FAST FOOD RESTAURANTS
25/07/17,HOPE SERVICE - WEST,AMAZON UK MARKETPLACE,13.33,CURRICULUM CONSUMABLES,BOOK STORES
25/07/17,QUADRANT COURT WOKING,HORACE SMITH LOCKSMITH,14.80,EQUIPMENT,HARDWARE STORES
25/07/17,WOKING CMHRS CARE,HMCTS-SURREY125,75.00,FEES,FINES
25/07/17,TARGETED INTERVENTION,TWO RIVERS CAR PK,1.20,EDUC VISITS/HOLS/CAMPS/TOYS,AUTOMOBILE PARKING LOTS AND GARAGES
25/07/17,NW CARE - CP & COURT LAC,HOUNSLOW.GOV.UK,10.00,FEES,GOVERNMENT SERVICES-NOT ELSEWHERE CLASSIFIED
25/07/17,NW CARE - CP & COURT LAC,HOUNSLOW.GOV.UK,10.00,FEES,GOVERNMENT SERVICES-NOT ELSEWHERE CLASSIFIED
25/07/17,NW CARE - CP & COURT LAC,WWW.MANCHESTER.GOV.UK,11.00,FEES,GOVERNMENT SERVICES-NOT ELSEWHERE CLASSIFIED
25/07/17,FAMILIES WOKING,WICKES,7.48,EQUIPMENT,HOME SUPPLY WAREHOUSE STORES
25/07/17,PROPERTY OPERATIONS TEAM,WICKES,35.91,PURCHASE OF BUILDING MATERIALS,"BUILDING MATERIALS, LUMBER STORES"
25/07/17,HERITAGE ENTERPRISE (SCAU),RADIODETECTION LTD,103.18,EQUIPMENT,ELECTRICAL PARTS AND EQUIPMENT
25/07/17,DEMOCRATIC SERVICES TEAM,AMAZON UK MARKETPLACE,14.77,REFRESHMENT COSTS,BOOK STORES
25/07/17,HOPE SERVICE - WEST,AMAZON.CO.UK,33.70,CURRICULUM CONSUMABLES,MISCELLANEOUS AND SPECIALTY RETAIL STORES
25/07/17,ASSET PLANNING - OPERATIONS,B & Q 1029,1.78,EQUIPMENT,"BUILDING MATERIALS, LUMBER STORES"
25/07/17,SOLD ESTATES MANAGEMENT,THE PROTECTIVE TEXTILE,89.51,DAY TO DAY MAINTENANCE,"PIECE GOODS,NOTIONS,AND OTHER DRY GOODS"
25/07/17,HOPE SERVICE - WEST,SAINSBURYS 0683,74.15,PURCHASE OF FOOD (RAW MATERIALS),"GROCERY STORES, SUPERMARKETS"
25/07/17,PE/CDT MAINTENANCE OVERHEADS,DENFORD LIMITED,385.56,ITEMS PURCHASED FOR RE-SALE,"COMMERCIAL EQUIPMENT, NOT ELSEWHERE CLASSIFIED"
25/07/17,NW CARE - LAC,SURREY CC CARD PAY,11.00,FEES,COMPUTER NETWORK/INFORMATION SERVICES
25/07/17,NW LOOKED AFTER TEAM,TRAVELODGE,46.00,CHILDREN ACT SEC 17 PAYMENTS,TRAVELODGE
25/07/17,HILLSIDE,SAINSBURYS 0675,244.10,"CLOTHING, UNIFORM AND LAUNDRY","GROCERY STORES, SUPERMARKETS"
25/07/17,WOODLANDS COMMUNITY HOME,SAINSBURYS SACAT 0686,3.05,PURCHASE OF FOOD (RAW MATERIALS),"GROCERY STORES, SUPERMARKETS"
25/07/17,WOODLANDS COMMUNITY HOME,SAINSBURYS SACAT 0686,24.00,PURCHASE OF FOOD (RAW MATERIALS),"GROCERY STORES, SUPERMARKETS"
25/07/17,WOODLANDS COMMUNITY HOME,SAINSBURYS SACAT 0686,6.00,DAY TO DAY MAINTENANCE,"GROCERY STORES, SUPERMARKETS"
25/07/17,HILLSIDE,SAINSBURYS 0675,2.20,PURCHASE OF FOOD (RAW MATERIALS),"GROCERY STORES, SUPERMARKETS"
25/07/17,HILLSIDE,SAINSBURYS 0675,39.75,PURCHASE OF FOOD (RAW MATERIALS),"GROCERY STORES, SUPERMARKETS"
25/07/17,WOODLANDS COMMUNITY HOME,ARGOS BROOKWOOD IN,11.99,EDUC VISITS/HOLS/CAMPS/TOYS,DISCOUNT STORES
25/07/17,NW CARE - LAC,SURREY CC CARD PAY,11.00,FEES,COMPUTER NETWORK/INFORMATION SERVICES
25/07/17,TRANSPORT,LEWIS'S MEDICAL SUPPLI,50.33,OPERATIONAL FIRE EQUIPMENT,DENTAL/LAB/MED/OPHTHALMIC HOSP EQUIP & SUPPLIES
25/07/17,BURBANK COMMUNITY HOME,CO-OP GROUP FOOD,11.60,PURCHASE OF FOOD (RAW MATERIALS),"GROCERY STORES, SUPERMARKETS"
25/07/17,CORPORATE GROUP - LEGAL SERVICES,LEWES PARKING,5.20,EXPENSES,SCHOOLS & EDUCATIONAL SVC-NOT ELSEWHERE CLASSIFIED
25/07/17,COVEHAM,SAINSBURYS TO YOU 0687,19.35,REFRESHMENT COSTS,"GROCERY STORES, SUPERMARKETS"
25/07/17,COVEHAM,SAINSBURYS TO YOU 0687,159.05,REFRESHMENT COSTS,"GROCERY STORES, SUPERMARKETS"
25/07/17,FAIRCROFT COMMUNITY HOME,TESCO STORE 2812,73.00,PURCHASE OF FOOD (RAW MATERIALS),"GROCERY STORES, SUPERMARKETS"
25/07/17,TRANSPORT,BUCK & HICKMAN,407.90,OPERATIONAL FIRE EQUIPMENT,HARDWARE EQUIPMENT AND SUPPLIES
25/07/17,TRANSPORT,AMAZON UK MARKETPLACE,25.56,STATIONERY,BOOK STORES
25/07/17,TRANSPORT,AMAZON EU,43.35,OPERATIONAL FIRE EQUIPMENT,DIRECT MARKETING-OTHER DIRECT MARKETERS/NOT ELSEW.
25/07/17,SEND TRANSPORT COMMISSIONING,CARE.CITRIXONLINE.COM,238.80,COMPUTER SOFTWARE,DIRECT MARKETING-CONTINUITY/SUBSCRIPTION MERCHANTS
25/07/17,HERITAGE PUBLIC SERVICE,CARTRIDGE SAVE,-52.06,STATIONERY,STATIONERY/OFFICE SUPPLIES/PRINTING & WRITING PAP.
25/07/17,CSF COMMUNICATIONS TEAM,HOOTSUITE MEDIA INC.,-9.59,SUBSCRIPTIONS,BUSINESS SERVICES-NOT ELSEWHERE CLASSIFIED
25/07/17,LOCAL DELIVERY GROUP,AMAZON.CO.UK,22.41,EQUIPMENT,MISCELLANEOUS AND SPECIALTY RETAIL STORES
26/07/17,HOLLAND CLOSE RESIDENTIAL HOME,SURREY CC CARD PAY,-34.00,EDUC VISITS/HOLS/CAMPS/TOYS,COMPUTER NETWORK/INFORMATION SERVICES
26/07/17,LIBERTAS COMMUNITY HOME,CHAMPNEYS DAY SPA GUIL,40.00,EDUC VISITS/HOLS/CAMPS/TOYS,HEALTH  AND BEAUTY SPAS
26/07/17,ACL CENTRAL EXPENDITURE,AMAZON UK RETAIL AMAZO,11.97,EQUIPMENT,MISCELLANEOUS AND SPECIALTY RETAIL STORES
26/07/17,FAMILIES GUILDFORD,TABLE TABLE41015900,2.80,REFRESHMENT COSTS,"EATING PLACES, RESTAURANTS"
26/07/17,BURBANK COMMUNITY HOME,GOV.UK/DART-CHARGE,5.00,MISCELLANEOUS STAFF TRAVEL,"BRIDGE AND ROAD FEES, TOLLS"
26/07/17,WOODLANDS COMMUNITY HOME,VUE BSL-SITE,25.58,EDUC VISITS/HOLS/CAMPS/TOYS,MOTION PICTURE THEATERS
26/07/17,WOODLANDS COMMUNITY HOME,VUE BSL-ATM,25.08,EDUC VISITS/HOLS/CAMPS/TOYS,MOTION PICTURE THEATERS
26/07/17,WOODLANDS COMMUNITY HOME,FREEDOM LEISURE,26.97,SWIMMING POOLS,GOVERNMENT SERVICES-NOT ELSEWHERE CLASSIFIED
26/07/17,WOODLANDS COMMUNITY HOME,FREEDOM LEISURE,14.40,SWIMMING POOLS,GOVERNMENT SERVICES-NOT ELSEWHERE CLASSIFIED
26/07/17,CS BUSINESS SUPPORT WEST,MILK & MORE OFFLINE,141.60,REFRESHMENT COSTS,"MISC FOOD STORE-CONVENIENCE,MRKT,SPLTY,VENDNG MACS"
26/07/17,FAMILIES MOLE VALLEY,TESCO DIRECT,32.00,"CLOTHING, UNIFORM AND LAUNDRY",MISCELLANEOUS AND SPECIALTY RETAIL STORES
26/07/17,SOLD MANAGEMENT AND OVERHEADS,AMAZON UK MARKETPLACE,22.90,EQUIPMENT,BOOK STORES
26/07/17,WOODLANDS COMMUNITY HOME,SAINSBURYS 0686,2.00,PURCHASE OF FOOD (RAW MATERIALS),"GROCERY STORES, SUPERMARKETS"
26/07/17,WOODLANDS COMMUNITY HOME,SAINSBURYS 0686,26.00,EQUIPMENT,"GROCERY STORES, SUPERMARKETS"
26/07/17,BOOKS - ADULT FICTION                   ,AMAZON EU,15.98,LIBRARY RESOURCES,DIRECT MARKETING-OTHER DIRECT MARKETERS/NOT ELSEW.
26/07/17,ARUNDEL,TESCO STORES 5999,116.78,REFRESHMENT COSTS,"GROCERY STORES, SUPERMARKETS"
26/07/17,RUTH HOUSE,G J HONOUR,159.95,PURCHASE OF FOOD (RAW MATERIALS),"MISC FOOD STORE-CONVENIENCE,MRKT,SPLTY,VENDNG MACS"
26/07/17,EXTENDED HOPE,AMAZON UK MARKETPLACE,1.99,EQUIPMENT,BOOK STORES
26/07/17,EXTENDED HOPE,AMAZON UK MARKETPLACE,3.95,STATIONERY,BOOK STORES
26/07/17,TRANSPORT,PP ANSON U.K. LTD,"1,077.48",OPERATIONAL FIRE EQUIPMENT,DENTAL/LAB/MED/OPHTHALMIC HOSP EQUIP & SUPPLIES
26/07/17,LIBERTAS COMMUNITY HOME,"BOOTS,GUILDFORD",2.74,REFRESHMENT COSTS,"DRUG STORES, PHARMACIES"
26/07/17,TRANSPORT,KIOWA LIMITED,501.60,OPERATIONAL FIRE EQUIPMENT,BUSINESS SERVICES-NOT ELSEWHERE CLASSIFIED
26/07/17,PROPERTY OPERATIONS TEAM,TOPPS TILES KINGST,16.99,PURCHASE OF BUILDING MATERIALS,FLOOR COVERING STORES
26/07/17,TS SERVICE MANAGEMENT,TRADING STANDARDS INST,118.00,SUBSCRIPTIONS,DIRECT MARKETING-COMBINATION CATALOG/RETAIL MERCH.
26/07/17,MISC EDCAT SUPPORT,HTTP://WWW.DERBYSHIRE.,492.24,VENUE COSTS (INCLUDING HIRE OF ROOMS),GOVERNMENT SERVICES-NOT ELSEWHERE CLASSIFIED
26/07/17,EXTENDED HOPE,ARGOS LTD,11.99,EQUIPMENT,DISCOUNT STORES
26/07/17,BURBANK COMMUNITY HOME,WOKING COUNCIL PARKING,1.30,MISCELLANEOUS STAFF TRAVEL,AUTOMOBILE PARKING LOTS AND GARAGES
26/07/17,HOLLAND CLOSE RESIDENTIAL HOME,SURREY CC CARD PAY,102.00,EDUC VISITS/HOLS/CAMPS/TOYS,COMPUTER NETWORK/INFORMATION SERVICES
26/07/17,HILLSIDE,ANYVAN,117.00,EQUIPMENT,"COURIER SVC-AIR & GROUND, FREIGHT FORWARDERS"
26/07/17,BURBANK COMMUNITY HOME,TRESPASS (WOKING),19.99,EQUIPMENT,"SPORTS APPAREL, RIDING APPAREL STORES"
26/07/17,BURBANK COMMUNITY HOME,MUFFIN BREAK,6.60,PURCHASE OF FOOD (RAW MATERIALS),FAST FOOD RESTAURANTS
26/07/17,CHEYNE WALK COMMUNITY HOME,TESCO STORE 2560,47.70,PURCHASE OF FOOD (RAW MATERIALS),"GROCERY STORES, SUPERMARKETS"
26/07/17,FAIRCROFT COMMUNITY HOME,FARNCOMBE BOAT HOUSE,200.00,EDUC VISITS/HOLS/CAMPS/TOYS,BOAT LEASES AND BOAT RENTALS
26/07/17,BURBANK COMMUNITY HOME,COSTA COFFEE 43037185,6.35,REFRESHMENT COSTS,FAST FOOD RESTAURANTS
26/07/17,RUTH HOUSE,ARGOS RETAIL GROUP,23.96,EQUIPMENT,DISCOUNT STORES
26/07/17,MALLOW CRESCENT,AMAZON UK MARKETPLACE,3.35,EQUIPMENT,BOOK STORES
26/07/17,READY FOR WORK YSS,VUE NCS CITB HS&E TEST,19.50,EDUC VISITS/HOLS/CAMPS/TOYS,SCHOOLS & EDUCATIONAL SVC-NOT ELSEWHERE CLASSIFIED
26/07/17,SURREY ARTS GENERAL,AMAZON.CO.UK,5.58,EQUIPMENT,MISCELLANEOUS AND SPECIALTY RETAIL STORES
26/07/17,TRAINING LEADERSHIP TEAM DEVELOPMENT,BALANCE GLOBAL,358.80,TRAINING USING EXTERNAL PROVIDERS,"SCHOOLS, BUSINESS AND SECRETARIAL"
26/07/17,READY FOR WORK YSS,VUE NCS CITB HS&E TEST,19.50,EDUC VISITS/HOLS/CAMPS/TOYS,SCHOOLS & EDUCATIONAL SVC-NOT ELSEWHERE CLASSIFIED
26/07/17,READY FOR WORK YSS,VUE NCS CITB HS&E TEST,19.50,EDUC VISITS/HOLS/CAMPS/TOYS,SCHOOLS & EDUCATIONAL SVC-NOT ELSEWHERE CLASSIFIED
26/07/17,MASH,AMAZON UK MARKETPLACE,16.55,EQUIPMENT,BOOK STORES
26/07/17,FAIRCROFT COMMUNITY HOME,SAINSBURYS 0687,41.35,PURCHASE OF FOOD (RAW MATERIALS),"GROCERY STORES, SUPERMARKETS"
26/07/17,READY FOR WORK YSS,VUE NCS CITB HS&E TEST,19.50,EDUC VISITS/HOLS/CAMPS/TOYS,SCHOOLS & EDUCATIONAL SVC-NOT ELSEWHERE CLASSIFIED
26/07/17,HOPE SERVICE - WEST,FREEDOM LEISURE,15.00,EDUC VISITS/HOLS/CAMPS/TOYS,GOVERNMENT SERVICES-NOT ELSEWHERE CLASSIFIED
26/07/17,FAMILIES SPELTHORNE,W M MORRISONS,14.84,REFRESHMENT COSTS,"GROCERY STORES, SUPERMARKETS"
26/07/17,HILLSIDE,SAINSBURYS 0675,61.43,PURCHASE OF FOOD (RAW MATERIALS),"GROCERY STORES, SUPERMARKETS"
26/07/17,CONSORT HOUSE REDHILL,WWWTESTMETERCOUK,26.40,EQUIPMENT,"COMMERCIAL EQUIPMENT, NOT ELSEWHERE CLASSIFIED"
26/07/17,RUTH HOUSE,ARGOS RETAIL GROUP,18.98,EDUC VISITS/HOLS/CAMPS/TOYS,DISCOUNT STORES
26/07/17,REIGATE AND BANSTEAD LOCALITY TEAM,AMAZON UK MARKETPLACE,16.48,EQUIPMENT,BOOK STORES
26/07/17,ORDER TO CASH TEAM,WWW.GOV.UK,10.00,FEES,PROFESSIONAL SERVICES-NOT ELSEWHERE CLASSIFIED
26/07/17,PROPERTY OPERATIONS TEAM,SCREWFIX GUILDFORD,26.47,PURCHASE OF BUILDING MATERIALS,"BUILDING MATERIALS, LUMBER STORES"
26/07/17,DOWNLANDS COUNTRYSIDE PROJECT,ROVERTOW,210.00,VEHICLE REPAIRS AND MAINTENANCE,"CAMPER DEALERS, RECREATIONAL AND UTILITY TRAILERS"
26/07/17,CORPORATE GROUP - LEGAL SERVICES,RINGGO PARKING,9.99,EXPENSES,AUTOMOBILE PARKING LOTS AND GARAGES
26/07/17,MALLOW CRESCENT,SAINSBURYS TO YOU 0652,18.60,PURCHASE OF FOOD (RAW MATERIALS),"GROCERY STORES, SUPERMARKETS"
26/07/17,MALLOW CRESCENT,SAINSBURYS TO YOU 0652,98.14,PURCHASE OF FOOD (RAW MATERIALS),"GROCERY STORES, SUPERMARKETS"
26/07/17,BURBANK COMMUNITY HOME,SAINSBURYS TO YOU 0686,266.24,PURCHASE OF FOOD (RAW MATERIALS),"GROCERY STORES, SUPERMARKETS"
26/07/17,WOODLANDS COMMUNITY HOME,SAINSBURYS TO YOU 0686,14.20,PURCHASE OF FOOD (RAW MATERIALS),"GROCERY STORES, SUPERMARKETS"
26/07/17,WOODLANDS COMMUNITY HOME,SAINSBURYS TO YOU 0686,97.17,PURCHASE OF FOOD (RAW MATERIALS),"GROCERY STORES, SUPERMARKETS"
26/07/17,CHEYNE WALK COMMUNITY HOME,TESCO-STORES 6647,251.86,PURCHASE OF FOOD (RAW MATERIALS),"GROCERY STORES, SUPERMARKETS"
26/07/17,CAMHS SOCIAL WORKERS,MIXAM UK LTD,44.00,PUBLICITY,MISCELLANEOUS PUBLISHING AND PRINTING
26/07/17,DEMOCRATIC SERVICES TEAM,AMAZON.CO.UK,.17,STATIONERY,MISCELLANEOUS AND SPECIALTY RETAIL STORES
27/07/17,IMT CRITICAL ENVIRONMENTS,AMAZON UK RETAIL AMAZO,11.01,FIXTURES AND FITTINGS,MISCELLANEOUS AND SPECIALTY RETAIL STORES
27/07/17,TRAINING AND DEVELOPMENT,PREMIER INN,247.96,TRAINING EXPENSES EXTERNAL GENERAL,PREMIER INN
27/07/17,TRAINING AND DEVELOPMENT,PREMIER INN,242.96,TRAINING EXPENSES EXTERNAL GENERAL,PREMIER INN
27/07/17,TRAINING AND DEVELOPMENT,PREMIER INN,250.96,TRAINING EXPENSES EXTERNAL GENERAL,PREMIER INN
27/07/17,TRAINING AND DEVELOPMENT,PREMIER INN,301.95,TRAINING EXPENSES EXTERNAL GENERAL,PREMIER INN
27/07/17,TRAINING AND DEVELOPMENT,PREMIER INN,296.95,TRAINING EXPENSES EXTERNAL GENERAL,PREMIER INN
27/07/17,TRAINING AND DEVELOPMENT,PREMIER INN,306.95,TRAINING EXPENSES EXTERNAL GENERAL,PREMIER INN
27/07/17,FAMILIES RUNNYMEDE,TVLICENSING.CO.UK,147.00,FEES,"CONSULTING, MANAGEMENT, AND PUBLIC RELATIONS SVCS"
27/07/17,LOWER MOLE COUNTRYSIDE PROJECT,WWW.ARGOS.CO.UK,68.42,EQUIPMENT,DISCOUNT STORES
27/07/17,BURBANK COMMUNITY HOME,WOKING COUNCIL PARKING,1.30,EDUC VISITS/HOLS/CAMPS/TOYS,AUTOMOBILE PARKING LOTS AND GARAGES
27/07/17,WOODLANDS COMMUNITY HOME,GAP 7976,27.99,"CLOTHING, UNIFORM AND LAUNDRY",FAMILY CLOTHING STORES
27/07/17,BURBANK COMMUNITY HOME,WILKO WOKING,4.00,EQUIPMENT,HOUSEHOLD APPLIANCE STORES
27/07/17,WOODLANDS COMMUNITY HOME,SUPERDRY GUNWHARF QUAY,123.94,"CLOTHING, UNIFORM AND LAUNDRY",WOMEN'S ACCESSORY AND SPECIALTY STORES
27/07/17,SW SECTION 17 CARE,TRAVELODGE,86.00,CHILDREN ACT SEC 17 PAYMENTS,TRAVELODGE
27/07/17,SW CARE - LAC,SURREY CC CARD PAY,31.00,LEGAL EXPENSES,COMPUTER NETWORK/INFORMATION SERVICES
27/07/17,WOODLANDS COMMUNITY HOME,MCDONALDS,14.27,PURCHASE OF FOOD (RAW MATERIALS),FAST FOOD RESTAURANTS
27/07/17,FAMILIES SPELTHORNE,CO-OP GROUP 070762,3.15,REFRESHMENT COSTS,"GROCERY STORES, SUPERMARKETS"
27/07/17,FAMILIES MOLE VALLEY,CARD FACTORY,4.94,EQUIPMENT,"GIFT, CARD, NOVELTY AND SOUVENIR SHOPS"
27/07/17,FAMILIES MOLE VALLEY,ARGOS LTD,31.99,EQUIPMENT,DISCOUNT STORES
27/07/17,SOLD ESTATES MANAGEMENT,GUILDFORD LOCK & SAFE,31.20,EQUIPMENT,HARDWARE EQUIPMENT AND SUPPLIES
27/07/17,TRANSPORT,MEDIMARKSCI,701.02,OPERATIONAL FIRE EQUIPMENT,VETERINARY SERVICES
27/07/17,FAMILIES ELMBRIDGE,SAINSBURYS 2663,10.50,REFRESHMENT COSTS,"GROCERY STORES, SUPERMARKETS"
27/07/17,FAIRCROFT COMMUNITY HOME,ODEON UPT,45.25,EDUC VISITS/HOLS/CAMPS/TOYS,MOTION PICTURE THEATERS
27/07/17,LIBRARIES CENTRAL,CILIP.ORG.UK,795.00,SUBSCRIPTIONS,"CLUBS-CNTRY,MBRSHIP(ATHLET,REC,SPRTS,PRIVATE GOLF"
27/07/17,CHEYNE WALK COMMUNITY HOME,WWW.AIRHOPTRAMPELINEOA,26.00,EDUC VISITS/HOLS/CAMPS/TOYS,RECREATIONAL AND SPORTING CAMPS
27/07/17,LIBERTAS COMMUNITY HOME,HORTON PARK GOLF,17.50,EDUC VISITS/HOLS/CAMPS/TOYS,"EATING PLACES, RESTAURANTS"
27/07/17,ARUNDEL,TESCO STORES 5999,89.38,REFRESHMENT COSTS,"GROCERY STORES, SUPERMARKETS"
27/07/17,VIRTUAL SERVICE MANAGER,AMAZON UK MARKETPLACE,8.93,EQUIPMENT,BOOK STORES
27/07/17,HILLSIDE,BOOTS/0906,6.99,MEDICAL EXPENSES,"DRUG STORES, PHARMACIES"
27/07/17,CS BUSINESS SUPPORT WEST,AMAZON EU,17.65,COMPUTER HARDWARE,DIRECT MARKETING-OTHER DIRECT MARKETERS/NOT ELSEW.
27/07/17,ACL CENTRAL EXPENDITURE,AMAZON UK MARKETPLACE,7.58,COMPUTER HARDWARE,BOOK STORES
27/07/17,HILLSIDE,BOOTS/0906,11.41,MEDICAL EXPENSES,"DRUG STORES, PHARMACIES"
27/07/17,TRAVEL AND TRANSPORT GROUP,POUNDLAND,4.00,CLEANING AND DOMESTIC SUPPLIES,DISCOUNT STORES
27/07/17,WORKPLACE COMMERCIAL TEAM,APPLE STORE R227,9.00,EQUIPMENT,ELECTRONIC SALES
27/07/17,BURBANK COMMUNITY HOME,WOKING COUNCIL PARKING,3.90,MISCELLANEOUS STAFF TRAVEL,AUTOMOBILE PARKING LOTS AND GARAGES
27/07/17,ORBIS HR PROGRAMME AND PERFORMANCE,AMAZON UK MARKETPLACE,28.47,EQUIPMENT,BOOK STORES
27/07/17,HOLLAND CLOSE RESIDENTIAL HOME,PARKDEAN HOLIDAY P,755.16,EDUC VISITS/HOLS/CAMPS/TOYS,CAMPGROUNDS AND TRAILER PARKS
27/07/17,HOLLAND CLOSE RESIDENTIAL HOME,PARKDEAN HOLIDAY P,755.16,EDUC VISITS/HOLS/CAMPS/TOYS,CAMPGROUNDS AND TRAILER PARKS
27/07/17,FAIRCROFT COMMUNITY HOME,WWW.FRAGRANCEDIRECT.CO,22.95,EQUIPMENT,COSMETIC STORES
27/07/17,RUTH HOUSE,PAYPAL  REZUMEUKLTD,54.00,LIBRARY RESOURCES,"CONSULTING, MANAGEMENT, AND PUBLIC RELATIONS SVCS"
27/07/17,SE CARE - CP & COURT LAC,ARGOS RETAIL GROUP,18.00,EQUIPMENT,DISCOUNT STORES
27/07/17,BOOKS - ADULT NON-FICTION               ,AMAZON UK RETAIL AMAZO,13.48,LIBRARY RESOURCES,MISCELLANEOUS AND SPECIALTY RETAIL STORES
27/07/17,BROCKHURST RESIDENTIAL CARE,WWW.SURREYHEATH.GOV.UK,47.71,DAY TO DAY MAINTENANCE,"THEATRICAL PRODUCERS(EXCL MOTION PIX),TICKET AGNCY"
27/07/17,COUNTY HALL,HRP LTD,76.74,EQUIPMENT,HOUSEHOLD APPLIANCE STORES
27/07/17,ACL CENTRAL EXPENDITURE,AMAZON EU,12.99,EQUIPMENT,DIRECT MARKETING-OTHER DIRECT MARKETERS/NOT ELSEW.
27/07/17,HILLSIDE,SAINSBURYS 0675,61.35,PURCHASE OF FOOD (RAW MATERIALS),"GROCERY STORES, SUPERMARKETS"
27/07/17,TARGETED INTERVENTION,TESCO STORES-2047,20.65,EDUC VISITS/HOLS/CAMPS/TOYS,"GROCERY STORES, SUPERMARKETS"
27/07/17,KARIBU COMMUNITY HOME,TESCO STORE 2812,358.47,PURCHASE OF FOOD (RAW MATERIALS),"GROCERY STORES, SUPERMARKETS"
27/07/17,IMT CRITICAL ENVIRONMENTS,AMAZON EU,43.68,REFRESHMENT COSTS,DIRECT MARKETING-OTHER DIRECT MARKETERS/NOT ELSEW.
27/07/17,SURREY ARTS GENERAL,AMZ NUTWELL MEDICAL SU,-6.97,EQUIPMENT,MISCELLANEOUS AND SPECIALTY RETAIL STORES
28/07/17,SW CARE - LAC,THE REGISTRAR OF B,11.00,LEGAL EXPENSES,GOVERNMENT SERVICES-NOT ELSEWHERE CLASSIFIED
28/07/17,KARIBU COMMUNITY HOME,HAVEN HOLIDAYS,499.00,EDUC VISITS/HOLS/CAMPS/TOYS,CAMPGROUNDS AND TRAILER PARKS
28/07/17,SW CARE - CP & COURT LAC,HM PASSPORT,180.00,LEGAL EXPENSES,GOVERNMENT SERVICES-NOT ELSEWHERE CLASSIFIED
28/07/17,LIBERTAS COMMUNITY HOME,TESCO STORE 2590,16.99,TELECOMMUNICATION CHARGES,"GROCERY STORES, SUPERMARKETS"
28/07/17,FAIRCROFT COMMUNITY HOME,WWW.THEO2.CO.UK/UPATTH,190.00,EDUC VISITS/HOLS/CAMPS/TOYS,"THEATRICAL PRODUCERS(EXCL MOTION PIX),TICKET AGNCY"
28/07/17,NW SECTION 17 CARE,WORPLESDON PLACE,210.00,INDEPENDENT LIVING PLACEMENTS,"BAR,LOUNGE,DISCO,NIGHTCLUB,TAVERN-ALCOHOLIC DRINKS"
28/07/17,SW NIL RECOURSE TO PUBLIC FUNDS CARE,TRAVELODGE,245.75,CHILDREN ACT SEC 17 PAYMENTS,TRAVELODGE
28/07/17,ARUNDEL,TESCO STORES 5999,189.75,REFRESHMENT COSTS,"GROCERY STORES, SUPERMARKETS"
28/07/17,DOWNLANDS COUNTRYSIDE PROJECT,HALFORDS 0731,11.99,VEHICLE RUNNING COSTS,BICYCLE SHOPS-SALES AND SERVICE
28/07/17,ARUNDEL,AMAZON.CO.UK,4.12,EDUC VISITS/HOLS/CAMPS/TOYS,MISCELLANEOUS AND SPECIALTY RETAIL STORES
28/07/17,CSAF 50+,PAYPAL  SPRINTPRINT,44.82,STATIONERY,CHEMICALS/ALLIED PRODUCTS NOT ELSEWHERE CLASSIFIED
28/07/17,FAMILIES REIGATE AND BANSTREAD,LIDL UK,35.23,PURCHASE OF FOOD (RAW MATERIALS),"GROCERY STORES, SUPERMARKETS"
28/07/17,EMERGENCY MANAGEMENT,PREMIER INN,560.00,SUBSISTENCE AND CONFERENCE EXPENSES,PREMIER INN
28/07/17,MASH,SIGHT FOR SURREY,441.00,FEES,"ORGANIZATIONS, CHARITABLE AND SOCIAL SERVICES"
28/07/17,EMERGENCY MANAGEMENT,PREMIER INN,259.00,SUBSISTENCE AND CONFERENCE EXPENSES,PREMIER INN
28/07/17,FAMILIES WOKING,HOBBYCRAFT,2.50,EQUIPMENT,"ARTIST SUPPLY STORES, CRAFT SHOPS"
28/07/17,HOPE SERVICE - WEST,GUILDFORD LOCK & SAFE,51.53,CURRICULUM EQUIPMENT AND FURNITURE,HARDWARE EQUIPMENT AND SUPPLIES
28/07/17,IMT CRITICAL ENVIRONMENTS,AMAZON.CO.UK,2.30,EQUIPMENT,MISCELLANEOUS AND SPECIALTY RETAIL STORES
28/07/17,IMT CRITICAL ENVIRONMENTS,AMAZON UK PRIME AMZN.C,79.00,SUBSCRIPTIONS,DIRECT MARKETING-CONTINUITY/SUBSCRIPTION MERCHANTS
28/07/17,SE CP & COURT TEAM,PREMIER INN,65.99,INDEPENDENT LIVING PLACEMENTS,PREMIER INN
28/07/17,READY FOR WORK YSS,VUE NCS CITB HS&E TEST,19.50,EDUC VISITS/HOLS/CAMPS/TOYS,SCHOOLS & EDUCATIONAL SVC-NOT ELSEWHERE CLASSIFIED
28/07/17,RUTH HOUSE,SHELL OTTERSHW 842,5.75,VEHICLE RUNNING COSTS,SERVICE STATIONS WITH OR WITHOUT ANCILLARY SERVICE
28/07/17,LIBERTAS COMMUNITY HOME,SAINSBURYS 0652,10.10,PURCHASE OF FOOD (RAW MATERIALS),"GROCERY STORES, SUPERMARKETS"
28/07/17,LIBERTAS COMMUNITY HOME,SAINSBURYS 0652,89.17,PURCHASE OF FOOD (RAW MATERIALS),"GROCERY STORES, SUPERMARKETS"
28/07/17,LIBERTAS COMMUNITY HOME,SAINSBURYS 0652,11.00,EQUIPMENT,"GROCERY STORES, SUPERMARKETS"
28/07/17,FAIRCROFT COMMUNITY HOME,SAINSBURYS SACAT 0687,7.60,PURCHASE OF FOOD (RAW MATERIALS),"GROCERY STORES, SUPERMARKETS"
28/07/17,ACL CENTRAL EXPENDITURE,AMAZON.CO.UK,2.25,DAY TO DAY MAINTENANCE,MISCELLANEOUS AND SPECIALTY RETAIL STORES
28/07/17,ACL CENTRAL EXPENDITURE,W P NOTCUTT LTD,487.80,EQUIPMENT,"BUILDING MATERIALS, LUMBER STORES"
28/07/17,RUTH HOUSE,LAIDLAW LTD,114.44,EQUIPMENT,HARDWARE STORES
28/07/17,WOODLANDS COMMUNITY HOME,HOBBYCRAFT,24.00,EDUC VISITS/HOLS/CAMPS/TOYS,"ARTIST SUPPLY STORES, CRAFT SHOPS"
28/07/17,TARGETED INTERVENTION,TESCO STORES-2047,2.05,EXAMINATION FEES,"GROCERY STORES, SUPERMARKETS"
28/07/17,HILLSIDE,SAINSBURYS 0675,111.40,PURCHASE OF FOOD (RAW MATERIALS),"GROCERY STORES, SUPERMARKETS"
28/07/17,COMMUNICATIONS TEAM,SPARKOL,21.60,SUBSCRIPTIONS,COMPUTER SOFTWARE STORES
28/07/17,SE CARE - LAC,PREMIER INN,158.50,INDEPENDENT LIVING PLACEMENTS,PREMIER INN
28/07/17,COUNTY HALL,JCM LOCKSMITHS LTD,86.54,DAY TO DAY MAINTENANCE,HARDWARE STORES
28/07/17,PROPERTY OPERATIONS TEAM,B & Q 1029,20.82,PURCHASE OF BUILDING MATERIALS,"BUILDING MATERIALS, LUMBER STORES"
28/07/17,WOODLANDS COMMUNITY HOME,HOMEBASE LTD 084,9.96,EQUIPMENT,"BUILDING MATERIALS, LUMBER STORES"
28/07/17,ARUNDEL,HYPNOS CONTRACT BEDS L,465.00,EQUIPMENT,"EQUIP, FURNITURE, HOME FURNSHNGS STRS (EXCPT APPL)"
28/07/17,RUTH HOUSE,SAINSBURYS TO YOU 0686,41.30,PURCHASE OF FOOD (RAW MATERIALS),"GROCERY STORES, SUPERMARKETS"
28/07/17,RUTH HOUSE,SAINSBURYS TO YOU 0686,183.25,PURCHASE OF FOOD (RAW MATERIALS),"GROCERY STORES, SUPERMARKETS"
28/07/17,APPLEWOOD,ASDA HOME SHOPPING,240.27,PURCHASE OF FOOD (RAW MATERIALS),"GROCERY STORES, SUPERMARKETS"
28/07/17,PSSS ICT SUPPORT,AMAZON UK MARKETPLACE,99.00,EQUIPMENT,MISCELLANEOUS AND SPECIALTY RETAIL STORES
28/07/17,ACL CENTRAL EXPENDITURE,EDUCATION & TRAINI,-100.00,TRAINING EXPENSES EXTERNAL GENERAL,"COLLEGES, UNIV, PRO SCHOOLS, JUNIOR COLLEGES"
28/07/17,MISC EDCAT SUPPORT,AMAZON PRIME,-7.99,EQUIPMENT,DIRECT MARKETING-CONTINUITY/SUBSCRIPTION MERCHANTS
28/07/17,APPLEWOOD,ASDA HOME SHOPPING,-1.12,PURCHASE OF FOOD (RAW MATERIALS),"GROCERY STORES, SUPERMARKETS"
28/07/17,TRANSPORT,PAYPAL  DWE LTD,-7.93,DAY TO DAY MAINTENANCE,"AUTOMOTIVE PARTS, ACCESSORIES STORES"
29/07/17,FAMILIES REIGATE AND BANSTREAD,TESCO STORE 3235,15.00,PURCHASE OF FOOD (RAW MATERIALS),"GROCERY STORES, SUPERMARKETS"
29/07/17,FAMILIES REIGATE AND BANSTREAD,TESCO STORE 3235,20.16,STATIONERY,"GROCERY STORES, SUPERMARKETS"
29/07/17,IMT PRODUCTION APPLICATIONS TEAM,RACKSPACE EMAIL & APPS,189.16,COMPUTER SERVICES,COMPUTER NETWORK/INFORMATION SERVICES
29/07/17,SOLD CURRICULUM PROGRAMME DELIVERY,THE POST OFFICE,3.24,POSTAGE AND COURIER CHARGES,POSTAL SERVICES-GOVERNMENT ONLY
29/07/17,HOLLAND CLOSE RESIDENTIAL HOME,TESCO-STORES 6647,156.26,PURCHASE OF FOOD (RAW MATERIALS),"GROCERY STORES, SUPERMARKETS"
29/07/17,HILLSIDE,SAINSBURYS TO YOU 0675,6.00,PURCHASE OF FOOD (RAW MATERIALS),"GROCERY STORES, SUPERMARKETS"
29/07/17,HILLSIDE,SAINSBURYS TO YOU 0675,175.25,PURCHASE OF FOOD (RAW MATERIALS),"GROCERY STORES, SUPERMARKETS"
29/07/17,EMERGENCY MANAGEMENT,SAINSBURYS TO YOU 0683,82.50,REFRESHMENT COSTS,"GROCERY STORES, SUPERMARKETS"
29/07/17,SURREY ARTS GENERAL,WWW.STUDIO-MUSIC.C,119.85,EQUIPMENT,MISCELLANEOUS PUBLISHING AND PRINTING
29/07/17,SOLD MANAGEMENT AND OVERHEADS,AMAZON EU,67.90,EQUIPMENT,DIRECT MARKETING-OTHER DIRECT MARKETERS/NOT ELSEW.
30/07/17,EXTENDED HOPE,ODEON,5.50,EDUC VISITS/HOLS/CAMPS/TOYS,MOTION PICTURE THEATERS
30/07/17,EXTENDED HOPE,ODEON,12.00,EDUC VISITS/HOLS/CAMPS/TOYS,MOTION PICTURE THEATERS
30/07/17,CAMHS SOCIAL WORKERS,AMAZON PRIME,7.99,PUBLICITY,DIRECT MARKETING-CONTINUITY/SUBSCRIPTION MERCHANTS
30/07/17,RUTH HOUSE,AMAZON UK MARKETPLACE,44.75,EQUIPMENT,BOOK STORES
30/07/17,STAINES LIBRARY,AMAZON UK MARKETPLACE,54.74,EQUIPMENT,BOOK STORES
30/07/17,ARUNDEL,ASDA SUPERSTORE,17.00,REFRESHMENT COSTS,"GROCERY STORES, SUPERMARKETS"
30/07/17,TS SERVICE MANAGEMENT,NORTON  AP1232181628,89.99,COMPUTER SOFTWARE,DIRECT MARKETING-CONTINUITY/SUBSCRIPTION MERCHANTS
30/07/17,TRANSPORT,AMAZON EU,102.48,OPERATIONAL FIRE EQUIPMENT,DIRECT MARKETING-OTHER DIRECT MARKETERS/NOT ELSEW.
30/07/17,HILLSIDE,TK MAXX,12.99,"CLOTHING, UNIFORM AND LAUNDRY",VARIETY STORES
30/07/17,COVEHAM,SAINSBURYS TO YOU 0687,147.89,REFRESHMENT COSTS,"GROCERY STORES, SUPERMARKETS"
30/07/17,COVEHAM,SAINSBURYS TO YOU 0687,122.60,CLEANING MATERIALS,"GROCERY STORES, SUPERMARKETS"
31/07/17,CHEYNE WALK COMMUNITY HOME,SKY BUSINESS,135.60,LIBRARY RESOURCES,"CABLE, SATELLITE, OTHER PAY TELEVISION, RADIO SVCS"
31/07/17,IMT CRITICAL ENVIRONMENTS,AMAZON.CO.UK,24.99,REFRESHMENT COSTS,MISCELLANEOUS AND SPECIALTY RETAIL STORES
31/07/17,WOODLANDS COMMUNITY HOME,BRITISH A,818.26,EDUC VISITS/HOLS/CAMPS/TOYS,BRITISH A
31/07/17,IMT TECHNICAL DELIVERY,"CLOUD9 IDE, INC",22.79,COMPUTER SERVICES,"COMPUTERS, COMPUTER PERIPHERAL EQUIPMENT, SOFTWARE"
31/07/17,PE/CDT MAINTENANCE OVERHEADS,XYLEM HOLDINGS LTD TER,85.94,ITEMS PURCHASED FOR RE-SALE,"SPORTS APPAREL, RIDING APPAREL STORES"
31/07/17,MALLOW CRESCENT,TESCO STORE 2590,1.50,PURCHASE OF FOOD (RAW MATERIALS),"GROCERY STORES, SUPERMARKETS"
31/07/17,MALLOW CRESCENT,TESCO STORE 2590,82.61,PURCHASE OF FOOD (RAW MATERIALS),"GROCERY STORES, SUPERMARKETS"
31/07/17,FAIRCROFT COMMUNITY HOME,TESCO STORE 2812,204.44,PURCHASE OF FOOD (RAW MATERIALS),"GROCERY STORES, SUPERMARKETS"
31/07/17,EXTENDED HOPE,TESCO STORE 2590,10.72,PURCHASE OF FOOD (RAW MATERIALS),"GROCERY STORES, SUPERMARKETS"
31/07/17,EXTENDED HOPE,TESCO STORE 2590,66.15,PURCHASE OF FOOD (RAW MATERIALS),"GROCERY STORES, SUPERMARKETS"
31/07/17,LIBERTAS COMMUNITY HOME,SAINSBURYS SACAT 0652,10.35,PURCHASE OF FOOD (RAW MATERIALS),"GROCERY STORES, SUPERMARKETS"
31/07/17,WOODLANDS COMMUNITY HOME,BURGER KING GUILDFORD,13.97,EDUC VISITS/HOLS/CAMPS/TOYS,FAST FOOD RESTAURANTS
31/07/17,E&I - COMMUNITY RECYCLING CENTRES       ,GOOGLE  ADWS2060179426,500.00,PUBLICITY,DIRECT MARKETING-CONTINUITY/SUBSCRIPTION MERCHANTS
31/07/17,ACL CENTRAL EXPENDITURE,FACEBK 7BJVGCNW72,19.39,PUBLICITY,ADVERTISING SERVICES
31/07/17,WOODLANDS COMMUNITY HOME,SPORTSDIRECT 234,232.08,"CLOTHING, UNIFORM AND LAUNDRY",SPORTING GOODS STORES
31/07/17,WOODLANDS COMMUNITY HOME,ATIX    2058373,121.50,EDUC VISITS/HOLS/CAMPS/TOYS,TOURIST ATTRACTIONS AND EXHIBITS
31/07/17,RECRUITMENT,FACEBK KWB62C6Q82,35.00,STAFF ADVERTISING ,ADVERTISING SERVICES
31/07/17,WOODLANDS COMMUNITY HOME,SAINSBURYS PFS0487,58.58,VEHICLE RUNNING COSTS,SERVICE STATIONS WITH OR WITHOUT ANCILLARY SERVICE
31/07/17,CHEYNE WALK COMMUNITY HOME,TESCO STORE 2560,35.00,EDUC VISITS/HOLS/CAMPS/TOYS,"GROCERY STORES, SUPERMARKETS"
31/07/17,CHEYNE WALK COMMUNITY HOME,TESCO STORE 2560,59.00,EQUIPMENT,"GROCERY STORES, SUPERMARKETS"
31/07/17,ACL CENTRAL EXPENDITURE,FACEBK LJSKUCWBB2,5.91,PUBLICITY,ADVERTISING SERVICES
31/07/17,ACL CENTRAL EXPENDITURE,FACEBK KJSKUCWBB2,158.65,PUBLICITY,ADVERTISING SERVICES
31/07/17,LIGHTWATER LIBRARY,AMAZON EU,19.74,EQUIPMENT,DIRECT MARKETING-OTHER DIRECT MARKETERS/NOT ELSEW.
31/07/17,SW NIL RECOURSE TO PUBLIC FUNDS CARE,TRAVELODGE,555.75,INDEPENDENT LIVING PLACEMENTS,TRAVELODGE
31/07/17,FAMILIES ELMBRIDGE,SAINSBURYS SACAT 2663,9.85,PURCHASE OF FOOD (RAW MATERIALS),"GROCERY STORES, SUPERMARKETS"
31/07/17,HOPE SERVICE - WEST,SAINSBURYS 0683,76.03,PURCHASE OF FOOD (RAW MATERIALS),"GROCERY STORES, SUPERMARKETS"
31/07/17,WOODLANDS COMMUNITY HOME,GRAVITY FORCE LTD,6.00,REFRESHMENT COSTS,RECREATION SERVICES (NOT ELSEWHERE CLASSIFIED)
31/07/17,WOODLANDS COMMUNITY HOME,GRAVITY FORCE LTD,39.00,EDUC VISITS/HOLS/CAMPS/TOYS,RECREATION SERVICES (NOT ELSEWHERE CLASSIFIED)
31/07/17,SOUTH EAST AREA TEAM,CO-OP GROUP 500149,2.29,CURRICULUM CONSUMABLES,"GROCERY STORES, SUPERMARKETS"
31/07/17,WOODLANDS COMMUNITY HOME,KFC,24.05,PURCHASE OF FOOD (RAW MATERIALS),FAST FOOD RESTAURANTS
31/07/17,IMT CRITICAL ENVIRONMENTS,AMAZON UK MARKETPLACE,3.99,FIXTURES AND FITTINGS,BOOK STORES
31/07/17,NW LOOKED AFTER TEAM,WWW.DHL INTERNATIONAL,51.08,OTHER COMMUNITY CARE VOL,"COURIER SVC-AIR & GROUND, FREIGHT FORWARDERS"
31/07/17,FAIRCROFT COMMUNITY HOME,WWW.GOAPE.CO.UK,99.00,EDUC VISITS/HOLS/CAMPS/TOYS,RECREATIONAL AND SPORTING CAMPS
31/07/17,LOWER MOLE COUNTRYSIDE PROJECT,TIMPSON LTD,14.00,EQUIPMENT,"HAT CLEANING SHOPS, SHOE REPAIR SHOPS, SHOE SHINE"
31/07/17,FAMILIES SURREY HEATH,TESCO STORES 3149,11.90,EQUIPMENT,"GROCERY STORES, SUPERMARKETS"
31/07/17,HOLLAND CLOSE RESIDENTIAL HOME,THORPE PARK,80.00,EDUC VISITS/HOLS/CAMPS/TOYS,TOURIST ATTRACTIONS AND EXHIBITS
31/07/17,PROPERTY OPERATIONS TEAM,SCREWFIX,3.48,PURCHASE OF BUILDING MATERIALS,"BUILDING MATERIALS, LUMBER STORES"
31/07/17,HILLSIDE,KENDALL CARS CAMBERLEY,240.00,NON-STAFF RELATED TRANSPORT COSTS,AUTOMOBILE RENTAL AGENCY-NOT ELSEWHERE CLASSIFIED
31/07/17,HEAD OF COUNTRYSIDE,WWW.YOURTICKETBOOKING.,78.00,TRAINING EXPENSES EXTERNAL GENERAL,BUSINESS SERVICES-NOT ELSEWHERE CLASSIFIED
31/07/17,COMLIANCE TEAM,WWW.CIBSE.ORG,"1,350.00",TRAINING EXPENSES EXTERNAL GENERAL,"ORGANIZATIONS, MEMBERSHIP-NOT ELSEWHERE CLASSIFIED"
31/07/17,E&I - LOVE FOOD HATE WASTE              ,FACEBK CJBJDDJ2S2,12.70,PUBLICITY,ADVERTISING SERVICES
31/07/17,E&I - LOVE FOOD HATE WASTE              ,FACEBK BJBJDDJ2S2,4.41,PUBLICITY,ADVERTISING SERVICES
31/07/17,HEAD OF CHILDREN'S SERVICE,WWW.PLASTICBUILDINGSUP,216.27,FIXTURES AND FITTINGS,PLUMBING AND HEATING EQUIPMENT
31/07/17,CHEYNE WALK COMMUNITY HOME,GRO HM PASSPORT OFFICE,9.25,FEES,GOVERNMENT SERVICES-NOT ELSEWHERE CLASSIFIED
31/07/17,PROPERTY OPERATIONS TEAM,SCREWFIX GUILDFORD,21.98,PURCHASE OF BUILDING MATERIALS,"BUILDING MATERIALS, LUMBER STORES"
31/07/17,HILLSIDE,SAINSBURYS 0784,23.05,PURCHASE OF FOOD (RAW MATERIALS),"GROCERY STORES, SUPERMARKETS"
31/07/17,ELMBRIDGE CMHRS CARE,HMCTS-SURREY125,75.00,FEES,FINES
31/07/17,CHILDREN'S RIGHTS TEAM,CO-OP GROUP FOOD,9.70,REFRESHMENT COSTS,"GROCERY STORES, SUPERMARKETS"
31/07/17,LIBERTAS COMMUNITY HOME,SAINSBURYS 0652,18.50,PURCHASE OF FOOD (RAW MATERIALS),"GROCERY STORES, SUPERMARKETS"
31/07/17,LIBERTAS COMMUNITY HOME,SAINSBURYS 0652,166.34,PURCHASE OF FOOD (RAW MATERIALS),"GROCERY STORES, SUPERMARKETS"
31/07/17,FOSTERING SERVICE CENTRAL COSTS,WWW.BACKCS.CO.UK,51.58,EQUIPMENT,DENTAL/LAB/MED/OPHTHALMIC HOSP EQUIP & SUPPLIES
31/07/17,PE/CDT MAINTENANCE OVERHEADS,MARGNOR FASTENERS,27.89,EQUIPMENT,MISCELLANEOUS AND SPECIALTY RETAIL STORES
31/07/17,SE CARE - LAC,FUNERAL SVS LTD,68.70,OTHER COMMUNITY CARE VOL,FUNERAL SERVICE AND CREMATORIES
31/07/17,FOSTERING SERVICE CENTRAL COSTS,TESCO DIRECT,38.00,EQUIPMENT,MISCELLANEOUS AND SPECIALTY RETAIL STORES
31/07/17,102 THOMPSON AVENUE,WWW.JOHNLEWIS.COM,249.00,EQUIPMENT,DEPARTMENT STORES
31/07/17,CHILDREN'S RIGHTS TEAM,WWW.DOMINOS.CO.UK,55.95,REFRESHMENT COSTS,"EATING PLACES, RESTAURANTS"
31/07/17,MGMT TRAINEE STAFF COSTS,WWW.QA.COM,456.00,TRAINING EXPENSES EXTERNAL GENERAL,SCHOOLS & EDUCATIONAL SVC-NOT ELSEWHERE CLASSIFIED
31/07/17,PE/CDT MAINTENANCE OVERHEADS,MANBAT LTD,16.80,EQUIPMENT,"DURABLE GOODS, NOT ELSEWHERE CLASSIFIED"
31/07/17,MALLOW CRESCENT,SAINSBURYS TO YOU 0652,10.00,PURCHASE OF FOOD (RAW MATERIALS),"GROCERY STORES, SUPERMARKETS"
31/07/17,MALLOW CRESCENT,SAINSBURYS TO YOU 0652,120.51,PURCHASE OF FOOD (RAW MATERIALS),"GROCERY STORES, SUPERMARKETS"
31/07/17,NE CARE - NON-LAC CP & COURT,A4 CARS,20.00,NON-STAFF RELATED TRANSPORT COSTS,LIMOUSINES AND TAXICABS
31/07/17,FAMILIES SPELTHORNE,SAINSBURYS SACAT (4117,6.95,REFRESHMENT COSTS,"GROCERY STORES, SUPERMARKETS"
31/07/17,NE CARE - CP & COURT LAC,LOVE2SHOP.CO.UK,506.45,OTHER COMMUNITY CARE VOL,"ASSOCIATIONS-CIVIC, SOCIAL, AND FRATERNAL"
31/07/17,PE/CDT MAINTENANCE OVERHEADS,HARROD UK SPORT,192.13,ITEMS PURCHASED FOR RE-SALE,"SPORTS APPAREL, RIDING APPAREL STORES"
31/07/17,SOLD PROFESSIONAL TRAINING AND DEVLPMNT,BRITISH CANOEING,120.00,EXAMINATION FEES,"CLUBS-CNTRY,MBRSHIP(ATHLET,REC,SPRTS,PRIVATE GOLF"
31/07/17,EXTENDED HOPE,POST OFFICE COUNTER,112.00,POSTAGE AND COURIER CHARGES,POSTAL SERVICES-GOVERNMENT ONLY
31/07/17,ACL CENTRAL EXPENDITURE,W P NOTCUTT LTD,468.42,EQUIPMENT,"BUILDING MATERIALS, LUMBER STORES"
31/07/17,NE CARE - CP & COURT LAC,SURREY CC CARD PAY,29.00,OTHER COMMUNITY CARE VOL,COMPUTER NETWORK/INFORMATION SERVICES
31/07/17,MALLOW CRESCENT,SAINSBURYS TO YOU 0652,7.10,PURCHASE OF FOOD (RAW MATERIALS),"GROCERY STORES, SUPERMARKETS"
31/07/17,MALLOW CRESCENT,SAINSBURYS TO YOU 0652,127.24,PURCHASE OF FOOD (RAW MATERIALS),"GROCERY STORES, SUPERMARKETS"
31/07/17,WOODLANDS COMMUNITY HOME,SAINSBURYS TO YOU 0686,15.95,PURCHASE OF FOOD (RAW MATERIALS),"GROCERY STORES, SUPERMARKETS"
31/07/17,WOODLANDS COMMUNITY HOME,SAINSBURYS TO YOU 0686,117.10,PURCHASE OF FOOD (RAW MATERIALS),"GROCERY STORES, SUPERMARKETS"
01/08/17,HOLLAND CLOSE RESIDENTIAL HOME,KINDLE UNLIMITED AMAZO,7.99,SUBSCRIPTIONS,DIGITAL GOODS AUDIOVISUAL MEDIA
01/08/17,WOODLANDS COMMUNITY HOME,PANTILES SERVICE STATI,10.00,VEHICLE RUNNING COSTS,SERVICE STATIONS WITH OR WITHOUT ANCILLARY SERVICE
01/08/17,ROW VOLUNTEERS WEST                     ,METHOLD VEHICLE HIRE,42.00,HIRE OF VEHICLES,AUTOMOBILE RENTAL AGENCY-NOT ELSEWHERE CLASSIFIED
01/08/17,PORTAGE SERVICE (SE),AMAZON.CO.UK,13.20,EQUIPMENT,MISCELLANEOUS AND SPECIALTY RETAIL STORES
01/08/17,NW SECTION 17 CARE,WORPLESDON PLACE,99.00,INDEPENDENT LIVING PLACEMENTS,"BAR,LOUNGE,DISCO,NIGHTCLUB,TAVERN-ALCOHOLIC DRINKS"
01/08/17,NW EDUCATION PSYCHOLOGISTS,BILD CHARITY IMPREST A,97.00,SUBSCRIPTIONS,BUSINESS SERVICES-NOT ELSEWHERE CLASSIFIED
01/08/17,RUTH HOUSE,PRIMARK,53.60,"CLOTHING, UNIFORM AND LAUNDRY",FAMILY CLOTHING STORES
01/08/17,YSS YOUTH CENTRE IMPROVEMENTS,TVLICENSING.CO.UK,147.00,FEES,"CONSULTING, MANAGEMENT, AND PUBLIC RELATIONS SVCS"
01/08/17,WOODLANDS COMMUNITY HOME,GETYOURGUIDE TICKETS,217.55,EDUC VISITS/HOLS/CAMPS/TOYS,TOURIST ATTRACTIONS AND EXHIBITS
01/08/17,BURBANK COMMUNITY HOME,ODEON,3.00,PURCHASE OF FOOD (RAW MATERIALS),MOTION PICTURE THEATERS
01/08/17,BURBANK COMMUNITY HOME,ODEON,11.80,3RD PARTY PAYMENTS PRIVATE INDIV,MOTION PICTURE THEATERS
01/08/17,BURBANK COMMUNITY HOME,ODEON,9.75,3RD PARTY PAYMENTS PRIVATE INDIV,MOTION PICTURE THEATERS
01/08/17,KARIBU COMMUNITY HOME,ODEON,3.99,PURCHASE OF FOOD (RAW MATERIALS),MOTION PICTURE THEATERS
01/08/17,KARIBU COMMUNITY HOME,ODEON,15.24,EDUC VISITS/HOLS/CAMPS/TOYS,MOTION PICTURE THEATERS
01/08/17,KARIBU COMMUNITY HOME,THORPE PARK,72.98,EDUC VISITS/HOLS/CAMPS/TOYS,TOURIST ATTRACTIONS AND EXHIBITS
